account_party,address,code,date,document_number,expense_code_name,expense_code_name_short,id,party_cell,party_cell_code,party_cell_geoobject,purpose,source_bank_account_number,source_bank_account_type,sum,target_legal_personality,target_legal_personality_code,target_type
СЛУГА НАРОДУ,"Київ, Куренівський провулок, 19/5",70,2019-12-28,94440,Банківські послуги,Інші витрати,364586,Центральний офіс,40422142,Україна,Комісія за пакетне обслуговування зг. договору №59741/1 від 01.02.2018 за період з 01.12.2019 по 31.12.2019р.,2600800159741,current,190.00,"ПАТ КБ ""Глобус""",35591059,юридична особа
СЛУГА НАРОДУ,"Київ, вулиця Глибочицька, 32б",79,2019-12-24,339,"Оренда будинків і приміщень та експлуатаційні витрати (прибирання, страхування орендованих будинків, охорона, сигналізація, ремонт, вивіз сміття, тощо)",Оренда нерухомості,364585,Центральний офіс,40422142,Україна,Часткова оплата за оренду приміщення за грудень 2019 р. згідно догвору 1/н7-1/ПЗ-10.09.2019 від 10.09.2019 без ПДВ,2600800159741,current,170000.00,"ТОВ ""Агенція ""Печерські зорі""",42713012,юридична особа
СЛУГА НАРОДУ,"Київ, вулиця Глибочицька, 32б",79,2019-12-24,338,"Оренда будинків і приміщень та експлуатаційні витрати (прибирання, страхування орендованих будинків, охорона, сигналізація, ремонт, вивіз сміття, тощо)",Оренда нерухомості,364584,Центральний офіс,40422142,Україна,Часткова оплата за суборенду приміщення за грудень 2019 р. згідно догвору 2/н7-1/ПЗ-10.09.2019 від 10.09.2019 без ПДВ,2600800159741,current,170000.00,"ТОВ ""Агенція ""Старий Поділ""",42712978,юридична особа
СЛУГА НАРОДУ,"Київ, Куренівський провулок, 19/5",70,2019-12-24,12526,Банківські послуги,Інші витрати,364583,Центральний офіс,40422142,Україна,Оплата за проведення платежів по системі Клієнт-Банк зг. Договору №59741/1 вiд 01.02.2018 за період з 24.12.2019 по 24.12.2019. Без ПДВ.,2600800159741,current,4.00,"ПАТ КБ ""Глобус""",35591059,юридична особа
СЛУГА НАРОДУ,"Київ, Куренівський провулок, 19/5",70,2019-12-19,6448,Банківські послуги,Інші витрати,364582,Центральний офіс,40422142,Україна,Оплата за проведення платежів по системі Клієнт-Банк зг. Договору №59741/1 вiд 01.02.2018 за період з 19.11.2019 по 19.11.2019. Без ПДВ.,2600800159741,current,2.00,"ПАТ КБ ""Глобус""",35591059,юридична особа
СЛУГА НАРОДУ,,66,2019-12-18,83,Повернення внесків приватних внесків (донорам),Повернення приватних внесків (донорам),364596,Центральний офіс,40422142,Україна,Повернення добр.внеску на партію,2600800159741,current,1384150.00,Дєдов Вячеслав Анатолійович,,фізична особа
СЛУГА НАРОДУ,,66,2019-12-18,84,Повернення внесків приватних внесків (донорам),Повернення приватних внесків (донорам),364595,Центральний офіс,40422142,Україна,Повернення добр.внеску,2600800159741,current,131000.00,Дєдов Вячеслав Анатолійович,,фізична особа
СЛУГА НАРОДУ,"Київ, Куренівський провулок, 19/5",70,2019-12-18,5624,Банківські послуги,Інші витрати,364581,Центральний офіс,40422142,Україна,Оплата за проведення платежів по системі Клієнт-Банк зг. Договору №59741/1 вiд 01.02.2018 за період з 18.12.2019 по 18.12.2019. Без ПДВ.,2600800159741,current,2.00,"ПАТ КБ ""Глобус""",35591059,юридична особа
СЛУГА НАРОДУ,"Київ, вулиця Миколи Грінченка, 2/1",76,2019-12-12,336,Послуги зв’язку,Послуги зв’язку,364580,Центральний офіс,40422142,Україна,Абонплата за інтернет у листопаді 2019 зг.рах.№2/5761-151019КН19102801 від 28.10.19 в т. ч. ПДВ 20% 2000.00 грн.,2600800159741,current,12000.00,"ТОВ ""КН-тел""",38958619,юридична особа
СЛУГА НАРОДУ,"Київ, вулиця Миколи Грінченка, 2/1",76,2019-12-12,337,Послуги зв’язку,Послуги зв’язку,364579,Центральний офіс,40422142,Україна,Абонплата за інтернет у грудні 2019 зг.рах.№2/5761-151019КН19112501 від 25.11.19 в т. ч. ПДВ 20% 1333.33 грн.,2600800159741,current,8000.00,"ТОВ ""КН-тел""",38958619,юридична особа
СЛУГА НАРОДУ,"Київ, Куренівський провулок, 19/5",70,2019-12-12,5161,Банківські послуги,Інші витрати,364578,Центральний офіс,40422142,Україна,Оплата за проведення платежів по системі Клієнт-Банк зг. Договору №59741/1 вiд 01.02.2018 за період з 12.12.2019 по 12.12.2019. Без ПДВ.,2600800159741,current,4.00,"ПАТ КБ ""Глобус""",35591059,юридична особа
СЛУГА НАРОДУ,"Київ, Паркова дорога, 16",62,2019-12-09,334,Сплата ЄСВ,Податкові платежі,364577,Центральний офіс,40422142,Україна,"Гарантійний платіж зг.рах№299 від 28.11.19, Дог.№28112019-АСН від 28.11.19",2600800159741,current,1236739.87,"ТОВ ""Акамант""",37956495,юридична особа
СЛУГА НАРОДУ,"Київ, Паркова дорога, 16",79,2019-12-09,335,"Оренда будинків і приміщень та експлуатаційні витрати (прибирання, страхування орендованих будинків, охорона, сигналізація, ремонт, вивіз сміття, тощо)",Оренда нерухомості,364576,Центральний офіс,40422142,Україна,"Оплата за оренду приміщення зг.рах№302 від 28.11.19, Дог.№28112019-АСН від 28.11.19",2600800159741,current,97172.50,"ТОВ ""Акамант""",37956495,юридична особа
СЛУГА НАРОДУ,"Київ, Паркова дорога, 16",70,2019-12-09,333,Банківські послуги,Інші витрати,364575,Центральний офіс,40422142,Україна,"Оплата за відшкодування вартості експл.витрат зг.рах№303 від 28.11.19, Дог.№28112019-АСН від 28.11.19",2600800159741,current,26501.60,"ТОВ ""Акамант""",37956495,юридична особа
СЛУГА НАРОДУ,"Київ, Куренівський провулок, 19/5",70,2019-12-09,6827,Банківські послуги,Інші витрати,364574,Центральний офіс,40422142,Україна,Оплата за проведення платежів по системі Клієнт-Банк зг. Договору №59741/1 вiд 01.02.2018 за період з 09.12.2019 по 09.12.2019. Без ПДВ.,2600800159741,current,6.00,"ПАТ КБ ""Глобус""",35591059,юридична особа
СЛУГА НАРОДУ,"Київ, Куренівський провулок, 19/5",70,2019-12-03,6215,Банківські послуги,Інші витрати,364573,Центральний офіс,40422142,Україна,Оплата за проведення платежів по системі Клієнт-Банк зг. Договору №59741/1 вiд 01.02.2018 за період з 03.12.2019 по 03.12.2019. Без ПДВ.,2600800159741,current,4.00,"ПАТ КБ ""Глобус""",35591059,юридична особа
СЛУГА НАРОДУ,,58,2019-12-03,332,"Виготовлення друкованих матеріалів (плакатів, листівок, буклетів та інших агітаційних матеріалів)",Друкована агітація,364525,Центральний офіс,40422142,Україна,"Оплата за календар, листівки зг.рах.№175 від 03.12.19 Без ПДВ",2600800159741,current,66500.00,Брецький А,,фізична особа
СЛУГА НАРОДУ,,70,2019-12-03,331,Банківські послуги,Інші витрати,364524,Центральний офіс,40422142,Україна,Оплата за прапорець зг.рах.№174 від 02.12.19 Без ПДВ,2600800159741,current,28375.00,Брецький А,,фізична особа
СЛУГА НАРОДУ,"Дніпропетровська область, Кривий Ріг, площа Горького, 10",79,2019-12-02,329,"Оренда будинків і приміщень та експлуатаційні витрати (прибирання, страхування орендованих будинків, охорона, сигналізація, ремонт, вивіз сміття, тощо)",Оренда нерухомості,364572,Центральний офіс,40422142,Україна,"Оплата субооренди в жовтні зг.рах№3 від 10.10.19,Дог№1 від 12.09.19 Без ПДВ",2600800159741,current,30500.00,"ТОВ ""Торгівельний центр 95""",43218224,юридична особа
СЛУГА НАРОДУ,"Дніпропетровська область, Кривий Ріг, площа Горького, 10",79,2019-12-02,328,"Оренда будинків і приміщень та експлуатаційні витрати (прибирання, страхування орендованих будинків, охорона, сигналізація, ремонт, вивіз сміття, тощо)",Оренда нерухомості,364571,Центральний офіс,40422142,Україна,"Оплата субооренди в вересні зг.рах№1 від 12.09.19,Дог№1 від 12.09.19 Без ПДВ",2600800159741,current,30500.00,"ТОВ ""Торгівельний центр 95""",43218224,юридична особа
СЛУГА НАРОДУ,"Дніпропетровська область, Кривий Ріг, площа Горького, 10",70,2019-12-02,330,Банківські послуги,Інші витрати,364570,Центральний офіс,40422142,Україна,"Оплата за ком.послуги в жовтні зг.рах.№396 від 31.10.19, Дог.№1/1 від 12.09.19 Без ПДВ",2600800159741,current,4869.32,"ТОВ ""ТЦ ""ПРОСПЕКТ""",42803108,юридична особа
СЛУГА НАРОДУ,"Дніпропетровська область, Кривий Ріг, площа Горького, 10",79,2019-12-02,327,"Оренда будинків і приміщень та експлуатаційні витрати (прибирання, страхування орендованих будинків, охорона, сигналізація, ремонт, вивіз сміття, тощо)",Оренда нерухомості,364569,Центральний офіс,40422142,Україна,"Оплата за комунальні послуги зг.рах№344 від 30.09.19, Дог.№1/1 від 12.09.19 Без ПДВ",2600800159741,current,3924.36,"ТОВ ""ТЦ ""ПРОСПЕКТ""",42803108,юридична особа
СЛУГА НАРОДУ,"Київ, Куренівський провулок, 19/5",70,2019-12-02,29439,Банківські послуги,Інші витрати,364568,Центральний офіс,40422142,Україна,Оплата за проведення платежів по системі Клієнт-Банк зг. Договору №59741/1 вiд 01.02.2018 за період з 02.12.2019 по 02.12.2019. Без ПДВ.,2600800159741,current,8.00,"ПАТ КБ ""Глобус""",35591059,юридична особа
СЛУГА НАРОДУ,"Київ, Куренівський провулок, 19/5",70,2019-11-29,107255,Банківські послуги,Інші витрати,364567,Центральний офіс,40422142,Україна,Комісія за пакетне обслуговування зг. договору №59741/1 від 01.02.2018 за період з 01.11.2019 по 30.11.2019р.,2600800159741,current,190.00,"ПАТ КБ ""Глобус""",35591059,юридична особа
СЛУГА НАРОДУ,"Київ, Куренівський провулок, 19/5",70,2019-11-29,93177,Банківські послуги,Інші витрати,364566,Центральний офіс,40422142,Україна,Оплата за проведення платежів по системі Клієнт-Банк зг. Договору №59741/1 вiд 01.02.2018 за період з 29.11.2019 по 29.11.2019. Без ПДВ.,2600800159741,current,10.00,"ПАТ КБ ""Глобус""",35591059,юридична особа
СЛУГА НАРОДУ,"Дніпропетровська область, Дніпровський район, Підгородне, Центральна вулиця, 46",59,2019-11-29,323,Грошова застава,Грошова застава,364565,Центральний офіс,40422142,Україна,Грошова застава за реєстрацію кандидата на голову Підгородненської ОТГ зг.рішення ЦВК №1936 від 25.10.19,2600800159741,current,3286.00,Підгородненська міська виборча комісія,43354552,юридична особа
СЛУГА НАРОДУ,"Дніпропетровська область, Дніпровський район, Підгородне, Центральна вулиця, 46",59,2019-11-29,322,Грошова застава,Грошова застава,364564,Центральний офіс,40422142,Україна,Грошова застава за реєстрацію кандидатів виборчого списку в багатомандатному окрузі зг.рішення ЦВК №1936 від 25.10.19,2600800159741,current,3286.00,Підгородненська міська виборча комісія,43354552,юридична особа
СЛУГА НАРОДУ,"Київ, проспект Перемоги, 73/1",79,2019-11-29,324,"Оренда будинків і приміщень та експлуатаційні витрати (прибирання, страхування орендованих будинків, охорона, сигналізація, ремонт, вивіз сміття, тощо)",Оренда нерухомості,364563,Центральний офіс,40422142,Україна,Оплата за послуги пультовоої охорони за грудень зг.рах.№ВО200001524 від 01.12.19 ПДВ 20% 216.67 грн.,2600800159741,current,1300.00,"ТОВ ""Венбест-охорона""",37311652,юридична особа
СЛУГА НАРОДУ,"Київ, проспект Перемоги, 73/1",70,2019-11-29,325,Банківські послуги,Інші витрати,364562,Центральний офіс,40422142,Україна,Оплата за послуги нагляду за ПС та техн.обслуг. за грудень зг.рах.№ВО200001994 від 01.12.19 в т. ч. ПДВ 20% 116.67 грн.,2600800159741,current,700.00,"ТОВ ""Венбест-охорона""",37311652,юридична особа
СЛУГА НАРОДУ,,69,2019-11-29,326,Організація заходів та інші організаційні послуги,Організація заходів та інші організаційні послуги,364523,Центральний офіс,40422142,Україна,Оплата за організацію заходу 02.12.19 зг.рах.№33 від 29.11.19 Без ПДВ,2600800159741,current,73935.00,Яковенко Назарій Миколайович,,фізична особа
СЛУГА НАРОДУ,"Сумська область, Путивльський район, Путивль",59,2019-11-21,317,Грошова застава,Грошова застава,364561,Центральний офіс,40422142,Україна,Грошова застава за реєстрацію кандидата на голову Путивльської ОТГ зг.рішння ЦВК №1936 від 25.10.19,2600800159741,current,2660.00,Путивльська міська виборча комісія,34025473,юридична особа
СЛУГА НАРОДУ,"Сумська область, Путивльський район, Путивль",59,2019-11-21,316,Грошова застава,Грошова застава,364560,Центральний офіс,40422142,Україна,Грошова застава за реєстрацію кандидатів виборчого списку в багатомандатному окрузі зг.рішння ЦВК №1936 від 25.10.19,2600800159741,current,2660.00,Путивльська міська виборча комісія,34025473,юридична особа
СЛУГА НАРОДУ,"Київ, вулиця Леоніда Первомайського, 9А",70,2019-11-21,321,Банківські послуги,Інші витрати,364559,Центральний офіс,40422142,Україна,"22030001 ""Судовий збір"" (Державна судова адміністраці України, 050), судовий збір у розмірі 1921,00грн.з кожної сторони""",2600800159741,current,1921.00,УДКСУ у Печерському районі м. Києва,38004897,юридична особа
СЛУГА НАРОДУ,"Київ, вулиця Саксаганського, 110",70,2019-11-21,318,Банківські послуги,Інші витрати,364558,Центральний офіс,40422142,Україна,Кошти згідно виконавчого впровадження ВП №60318317 (сума судового збору),2600800159741,current,1921.00,Шевченківський районний відділ державної виконавчої служби у м. Києві,34967593,юридична особа
СЛУГА НАРОДУ,"Полтавська область, Зіньківський район, Зіньків, вулиця Воздвиженська, 67",59,2019-11-21,315,Грошова застава,Грошова застава,364557,Центральний офіс,40422142,Україна,Грошова застава за реєстрацію кандидата на голову Зіньківської ОТГ зг.рішення ЦВК №1927 від 18.10.19,2600800159741,current,1471.00,Зіньківська міська виборча комісія,33977134,юридична особа
СЛУГА НАРОДУ,"Полтавська область, Зіньківський район, Зіньків, вулиця Воздвиженська, 67",59,2019-11-21,314,Грошова застава,Грошова застава,364556,Центральний офіс,40422142,Україна,Грошова застава за реєстрацію кандидатів виборчого списку в багатомандатному окрузі зг.рішення ЦВК №1927 від 18.10.19,2600800159741,current,1471.00,Зіньківська міська виборча комісія,33977134,юридична особа
СЛУГА НАРОДУ,"Київ, вулиця Саксаганського, 110",52,2019-11-21,320,Інша реклама (без класифікації),Реклама (без класифікації),364555,Центральний офіс,40422142,Україна,Кошти згідно виконавчого впровадження ВП №60318317 (сума витрат на проведення виконавчих дій),2600800159741,current,200.00,Шевченківський районний відділ державної виконавчої служби у м. Києві,34967593,юридична особа
СЛУГА НАРОДУ,"Київ, вулиця Саксаганського, 110",76,2019-11-21,319,Послуги зв’язку,Послуги зв’язку,364554,Центральний офіс,40422142,Україна,Кошти згідно виконавчого впровадження ВП №60318317 (сума виконавчого збору),2600800159741,current,192.00,Шевченківський районний відділ державної виконавчої служби у м. Києві,34967593,юридична особа
СЛУГА НАРОДУ,"Київ, Куренівський провулок, 19/5",70,2019-11-21,4741,Банківські послуги,Інші витрати,364553,Центральний офіс,40422142,Україна,Оплата за проведення платежів по системі Клієнт-Банк зг. Договору №59741/1 вiд 01.02.2018 за період з 21.11.2019 по 21.11.2019. Без ПДВ.,2600800159741,current,16.00,"ПАТ КБ ""Глобус""",35591059,юридична особа
СЛУГА НАРОДУ,"Київ, Куренівський провулок, 19/5",70,2019-11-20,5242,Банківські послуги,Інші витрати,364552,Центральний офіс,40422142,Україна,Оплата за проведення платежів по системі Клієнт-Банк зг. Договору №59741/1 вiд 01.02.2018 за період з 20.11.2019 по 20.11.2019. Без ПДВ.,2600800159741,current,2.00,"ПАТ КБ ""Глобус""",35591059,юридична особа
СЛУГА НАРОДУ,,57,2019-11-20,313,Виготовлення брендованої продукції,"Виготовлення брендованої продукції (футболки, кепки, парасольки)",364522,Центральний офіс,40422142,Україна,Оплата за значок металевий зг.рах.№164 від 14.11.2019 Без ПДВ,2600800159741,current,29500.00,Брецький А,,фізична особа
СЛУГА НАРОДУ,"Київ, вулиця В'ячеслава Чорновола, 27, 226",73,2019-11-19,309,Придбання меблів,Придбання меблів,364551,Центральний офіс,40422142,Україна,Доплата за меблі згідно рахунку 141 від 24.09.2019 р. в т. ч. ПДВ 20% 123725.43 грн.,2600800159741,current,742352.60,"ТОВ ""Комфортзон""",36335185,юридична особа
СЛУГА НАРОДУ,"Київ, вулиця Глибочицька, 32б",79,2019-11-19,311,"Оренда будинків і приміщень та експлуатаційні витрати (прибирання, страхування орендованих будинків, охорона, сигналізація, ремонт, вивіз сміття, тощо)",Оренда нерухомості,364550,Центральний офіс,40422142,Україна,За оренду приміщення за листопад 2019 р. згідно догвору 1/н7-1/ПЗ-10.09.2019 від 10.09.2019 без ПДВ,2600800159741,current,295312.70,"ТОВ ""Агенція ""Печерські зорі""",42713012,юридична особа
СЛУГА НАРОДУ,"Київ, вулиця Глибочицька, 32б",79,2019-11-19,312,"Оренда будинків і приміщень та експлуатаційні витрати (прибирання, страхування орендованих будинків, охорона, сигналізація, ремонт, вивіз сміття, тощо)",Оренда нерухомості,364549,Центральний офіс,40422142,Україна,За суборенду приміщення за листопад 2019 р. згідно догвору 2/н7-1/ПЗ-10.09.2019 від 10.09.2019 без ПДВ,2600800159741,current,289056.00,"ТОВ ""Агенція ""Старий Поділ""",42712978,юридична особа
СЛУГА НАРОДУ,"Київ, вулиця В'ячеслава Чорновола, 27, 226",70,2019-11-19,310,Банківські послуги,Інші витрати,364548,Центральний офіс,40422142,Україна,Оплата за блок розетки зг.рах.№176 від 14.11.19 в т. ч. ПДВ 20% 6336.00 грн.,2600800159741,current,38016.00,"ТОВ ""Комфортзон""",36335185,юридична особа
СЛУГА НАРОДУ,"Київ, Куренівський провулок, 19/5",70,2019-11-19,5287,Банківські послуги,Інші витрати,364547,Центральний офіс,40422142,Україна,Оплата за проведення платежів по системі Клієнт-Банк зг. Договору №59741/1 вiд 01.02.2018 за період з 19.11.2019 по 19.11.2019. Без ПДВ.,2600800159741,current,8.00,"ПАТ КБ ""Глобус""",35591059,юридична особа
СЛУГА НАРОДУ,"Київ, Куренівський провулок, 19/5",70,2019-11-14,5188,Банківські послуги,Інші витрати,364546,Центральний офіс,40422142,Україна,Оплата за проведення платежів по системі Клієнт-Банк зг. Договору №59741/1 вiд 01.02.2018 за період з 14.11.2019 по 14.11.2019. Без ПДВ.,2600800159741,current,4.00,"ПАТ КБ ""Глобус""",35591059,юридична особа
СЛУГА НАРОДУ,,69,2019-11-14,308,Організація заходів та інші організаційні послуги,Організація заходів та інші організаційні послуги,364521,Центральний офіс,40422142,Україна,Оплата за бейджи зг.рах.№162 від 12.11.19,2600800159741,current,28595.40,Брецький А,,фізична особа
СЛУГА НАРОДУ,,78,2019-11-14,307,Оренда обладнання та технічних засобів,Оренда обладнання та технічних засобів,364520,Центральний офіс,40422142,Україна,Оплата за оренду обладнання зг. рах№92 від 06.11.19 Без ПДВ,2600800159741,current,9251.00,Рябих Артем Юрійович,,фізична особа
СЛУГА НАРОДУ,"Київ, Куренівський провулок, 19/5",70,2019-11-13,5662,Банківські послуги,Інші витрати,364545,Центральний офіс,40422142,Україна,Оплата за проведення платежів по системі Клієнт-Банк зг. Договору №59741/1 вiд 01.02.2018 за період з 13.11.2019 по 13.11.2019. Без ПДВ.,2600800159741,current,2.00,"ПАТ КБ ""Глобус""",35591059,юридична особа
СЛУГА НАРОДУ,,69,2019-11-13,306,Організація заходів та інші організаційні послуги,Організація заходів та інші організаційні послуги,364519,Центральний офіс,40422142,Україна,"Оплата за бейджи, наліпки зг.рах.№162 від 12.11.19 Без ПДВ",2600800159741,current,28595.00,Брецький А,,фізична особа
СЛУГА НАРОДУ,"Київ, Куренівський провулок, 19/5",70,2019-11-11,5686,Банківські послуги,Інші витрати,364544,Центральний офіс,40422142,Україна,Оплата за проведення платежів по системі Клієнт-Банк зг. Договору №59741/1 вiд 01.02.2018 за період з 11.11.2019 по 11.11.2019. Без ПДВ.,2600800159741,current,2.00,"ПАТ КБ ""Глобус""",35591059,юридична особа
СЛУГА НАРОДУ,,69,2019-11-11,305,Організація заходів та інші організаційні послуги,Організація заходів та інші організаційні послуги,364518,Центральний офіс,40422142,Україна,Оплата за організацію заходу 11.11.19 зг.рах.№31 від 11.11.19 Без ПДВ,2600800159741,current,74200.00,Яковенко Назарій Миколайович,,фізична особа
СЛУГА НАРОДУ,"Київ, вулиця Миколи Грінченка, 2/1",76,2019-11-08,299,Послуги зв’язку,Послуги зв’язку,364543,Центральний офіс,40422142,Україна,Підключення та абонплата інтернет за жовтень 2019 зг.рах.№2/5761-151019КН19101601 від 01.10.19 в т. ч. ПДВ 20% 2016.67 грн.,2600800159741,current,12100.00,"ТОВ ""КН-тел""",38958619,юридична особа
СЛУГА НАРОДУ,"Київ, проспект Перемоги, 73/1",79,2019-11-08,303,"Оренда будинків і приміщень та експлуатаційні витрати (прибирання, страхування орендованих будинків, охорона, сигналізація, ремонт, вивіз сміття, тощо)",Оренда нерухомості,364542,Центральний офіс,40422142,Україна,Оплата за послуги пультовоої охорони за листопад зг.рах.№ВО000033961 від 01.11.19 ПДВ 20% 216.67 грн.,2600800159741,current,1300.00,"ТОВ ""Венбест-охорона""",37311652,юридична особа
СЛУГА НАРОДУ,"Київ, проспект Перемоги, 73/1",79,2019-11-08,301,"Оренда будинків і приміщень та експлуатаційні витрати (прибирання, страхування орендованих будинків, охорона, сигналізація, ремонт, вивіз сміття, тощо)",Оренда нерухомості,364541,Центральний офіс,40422142,Україна,Оплата за послуги пультовоої охорони за жовтень зг.рах.№ВО000033960 від 01.10.19 ПДВ 20% 216.67 грн.,2600800159741,current,1300.00,"ТОВ ""Венбест-охорона""",37311652,юридична особа
СЛУГА НАРОДУ,"Київ, проспект Перемоги, 73/1",70,2019-11-08,304,Банківські послуги,Інші витрати,364540,Центральний офіс,40422142,Україна,Оплата за послуги нагляду за ПС та техн.обслуг. за листопад зг.рах.№ВО000033963 від 01.11.19 в т. ч. ПДВ 20% 116.67 грн.,2600800159741,current,700.00,"ТОВ ""Венбест-охорона""",37311652,юридична особа
СЛУГА НАРОДУ,"Київ, проспект Перемоги, 73/1",70,2019-11-08,302,Банківські послуги,Інші витрати,364539,Центральний офіс,40422142,Україна,Оплата за послуги нагляду за ПС та техн.обслуг. за жовтень зг.рах.№ВО000033962 від 01.10.19 в т. ч. ПДВ 20% 116.67 грн.,2600800159741,current,700.00,"ТОВ ""Венбест-охорона""",37311652,юридична особа
СЛУГА НАРОДУ,"Київ, Куренівський провулок, 19/5",70,2019-11-08,6597,Банківські послуги,Інші витрати,364538,Центральний офіс,40422142,Україна,Оплата за проведення платежів по системі Клієнт-Банк зг. Договору №59741/1 вiд 01.02.2018 за період з 08.11.2019 по 08.11.2019. Без ПДВ.,2600800159741,current,12.00,"ПАТ КБ ""Глобус""",35591059,юридична особа
СЛУГА НАРОДУ,,69,2019-11-08,300,Організація заходів та інші організаційні послуги,Організація заходів та інші організаційні послуги,364517,Центральний офіс,40422142,Україна,Оплата за організацію заходу 10.11.19 зг.рах.№30 від 07.11.19 Без ПДВ,2600800159741,current,179246.00,Яковенко Назарій Миколайович,,фізична особа
СЛУГА НАРОДУ,"Київ, Куренівський провулок, 19/5",70,2019-10-31,102072,Банківські послуги,Інші витрати,364537,Центральний офіс,40422142,Україна,Комісія за пакетне обслуговування зг. договору №59741/1 від 01.02.2018 за період з 01.10.2019 по 31.10.2019р.,2600800159741,current,190.00,"ПАТ КБ ""Глобус""",35591059,юридична особа
СЛУГА НАРОДУ,"Київ, вулиця Старосільська, 1",66,2019-10-17,3422,Повернення внесків приватних внесків (донорам),Повернення приватних внесків (донорам),364589,Центральний офіс,40422142,Україна,Повернення добр.внеску,2600800159741,current,1900000.00,"ТОВ ""ТД ""Еко лідер""",40040248,юридична особа
СЛУГА НАРОДУ,"Київ, вулиця Старосільська, 1",66,2019-10-17,3424,Повернення внесків приватних внесків (донорам),Повернення приватних внесків (донорам),364588,Центральний офіс,40422142,Україна,Повернення добр.внеску,2600800159741,current,1000000.00,"ТОВ ""ТД ""Еко лідер""",40040248,юридична особа
СЛУГА НАРОДУ,"Дніпропетровська область, Криворізький район, Шевченківське",79,2019-10-17,,"Оренда будинків і приміщень та експлуатаційні витрати (прибирання, страхування орендованих будинків, охорона, сигналізація, ремонт, вивіз сміття, тощо)",Оренда нерухомості,364536,Центральний офіс,40422142,Україна,"Плата за суборенду приміщення за липень, серпень 2019 р. відповідно до рахунку на оплату №133 від 31.08.2019 р. та №157 від 31.07.2017 р.",2600800159741,current,36000.00,"ТОВ ""Кар-гіл""",41662682,юридична особа
СЛУГА НАРОДУ,"Харківська область, Харків, вулиця Алчевських, 31",79,2019-10-17,,"Оренда будинків і приміщень та експлуатаційні витрати (прибирання, страхування орендованих будинків, охорона, сигналізація, ремонт, вивіз сміття, тощо)",Оренда нерухомості,364535,Центральний офіс,40422142,Україна,Гарантійний платіж з відшкодування комун. послуг згідно з рах. №211 від 30.09.2019 відповідно до дог. надан. послуг та відш. вит. №35в-19 від 20.02.2019 без ПДВ,2600800159741,current,9236.11,"ТОВ ""Віза консалт груп""",33481026,юридична особа
СЛУГА НАРОДУ,"Київ, Куренівський провулок, 19/5",70,2019-10-17,,Банківські послуги,Інші витрати,364534,Центральний офіс,40422142,Україна,,2600800159741,current,14.00,"ПАТ КБ ""Глобус""",35591059,юридична особа
СЛУГА НАРОДУ,,73,2019-10-17,81,Придбання меблів,Придбання меблів,364516,Центральний офіс,40422142,Україна,Сплата за оренду столів згідно рахунку 103/19 від 03.10.2019 ПДВ немає,2600800159741,current,17500.00,Яківець Наталія Іванівна,,фізична особа
СЛУГА НАРОДУ,,73,2019-10-17,79,Придбання меблів,Придбання меблів,364515,Центральний офіс,40422142,Україна,Сплата за оренду меблів згідно рахунку 0210 від 09.09.2019 ПДВ немає,2600800159741,current,9557.00,Коляда Назар Миколайович,,фізична особа
СЛУГА НАРОДУ,"Черкаська область, Черкаси, вулиця Надпільна, 248",66,2019-10-16,323,Повернення внесків приватних внесків (донорам),Повернення приватних внесків (донорам),364593,Центральний офіс,40422142,Україна,Повернення добр.внеску,2600800159741,current,300000.00,"ТОВ ""Інокс сервіс""",41122148,юридична особа
СЛУГА НАРОДУ,"Київ, вулиця Старосільська, 1",66,2019-10-16,74,Повернення внесків приватних внесків (донорам),Повернення приватних внесків (донорам),364591,Центральний офіс,40422142,Україна,Відп.до абз.7 ст15. з-н Укр.про пол. партії,2600800159741,current,300000.00,"ТОВ ""ТД ""Еко лідер""",40040248,юридична особа
СЛУГА НАРОДУ,"Київ, вулиця Старосільська, 1",66,2019-10-16,73,Повернення внесків приватних внесків (донорам),Повернення приватних внесків (донорам),364590,Центральний офіс,40422142,Україна,Відп.до абз.7 ст15. з-н Укр.про пол. партії,2600800159741,current,200000.00,"ТОВ ""ТД ""Еко лідер""",40040248,юридична особа
СЛУГА НАРОДУ,"Київська обл., Біла Церква, вулиця Театральна, 9",66,2019-10-16,,Повернення внесків приватних внесків (донорам),Повернення приватних внесків (донорам),364587,Центральний офіс,40422142,Україна,Повернення добр.внеску,2600800159741,current,700000.00,"ТОВ ""Петралекс агро""",38010125,юридична особа
СЛУГА НАРОДУ,"Київ, Куренівський провулок, 19/5",70,2019-10-16,,Банківські послуги,Інші витрати,364533,Центральний офіс,40422142,Україна,Оплата за проведення платежів по системі Клієнт-Банк зг. Договору №59741/1 вiд 01.02.2018 за період з 16.10.2019 по 16.10.2019. Без ПДВ.,2600800159741,current,1150.00,"ПАТ КБ ""Глобус""",35591059,юридична особа
СЛУГА НАРОДУ,"Київ, Куренівський провулок, 19/5",70,2019-10-16,,Банківські послуги,Інші витрати,364532,Центральний офіс,40422142,Україна,Оплата за проведення платежів по системі Клієнт-Банк зг. Договору №59741/1 вiд 01.02.2018за період 16.10.19по16.10.19.БезП,2600800159741,current,8.00,"ПАТ КБ ""Глобус""",35591059,юридична особа
СЛУГА НАРОДУ,"Київ, Куренівський провулок, 19/5",70,2019-10-07,6990,Банківські послуги,Інші витрати,364531,Центральний офіс,40422142,Україна,Оплата за проведення платежів по системі Клієнт-Банк зг. Договору №59741/1 вiд 01.02.2018 за період з 07.10.2019 по 07.10.2019. Без ПДВ.,2600800159741,current,2.00,"ПАТ КБ ""Глобус""",35591059,юридична особа
СЛУГА НАРОДУ,"Київ, бульвар Лесі Українки, 5А",79,2019-10-04,,"Оренда будинків і приміщень та експлуатаційні витрати (прибирання, страхування орендованих будинків, охорона, сигналізація, ремонт, вивіз сміття, тощо)",Оренда нерухомості,364530,Центральний офіс,40422142,Україна,"Сплата за оренду приміщення за вересень 2019 р, згідно договору 1/01-19 від 21.01.2019 р у т.ч. ПДВ",2600800159741,current,758730.00,"ТОВ ""Кіностолиця""",37633561,юридична особа
СЛУГА НАРОДУ,"Київ, Куренівський провулок, 19/5",70,2019-10-04,,Банківські послуги,Інші витрати,364529,Центральний офіс,40422142,Україна,Оплата за проведення платежів по системі Клієнт-Банк зг. Договору №59741/1 вiд 01.02.2018 за період з 04.10.2019 по 04.10.2019. Без ПДВ.,2600800159741,current,2.00,"ПАТ КБ ""Глобус""",35591059,юридична особа
СЛУГА НАРОДУ,"Черкаська область, Черкаси, вулиця Надпільна, 248",66,2019-10-03,69,Повернення внесків приватних внесків (донорам),Повернення приватних внесків (донорам),364594,Центральний офіс,40422142,Україна,Відп.до абз.7 ст15. з-н Укр.про пол. партії,2600800159741,current,2700000.00,"ТОВ ""Інокс сервіс""",41122148,юридична особа
СЛУГА НАРОДУ,"Черкаська область, Черкаси, вулиця Надпільна, 248",66,2019-10-03,,Повернення внесків приватних внесків (донорам),Повернення приватних внесків (донорам),364592,Центральний офіс,40422142,Україна,Повернення добр.внеску,2600800159741,current,2700000.00,"ТОВ ""Інокс сервіс""",41122148,юридична особа
СЛУГА НАРОДУ,"Київ, вулиця Глибочицька, 32б",79,2019-10-02,,"Оренда будинків і приміщень та експлуатаційні витрати (прибирання, страхування орендованих будинків, охорона, сигналізація, ремонт, вивіз сміття, тощо)",Оренда нерухомості,364528,Центральний офіс,40422142,Україна,За оренду приміщення за жовтень 2019 та вересень 2020 р. згідно догвору 1/н7-1/ПЗ-10.09.2019 від 10.09.2019 без ПДВ,2600800159741,current,590625.40,"ТОВ ""Агенція ""Печерські зорі""",42713012,юридична особа
СЛУГА НАРОДУ,"Київ, вулиця Глибочицька, 32б",79,2019-10-02,,"Оренда будинків і приміщень та експлуатаційні витрати (прибирання, страхування орендованих будинків, охорона, сигналізація, ремонт, вивіз сміття, тощо)",Оренда нерухомості,364527,Центральний офіс,40422142,Україна,За суборенду приміщення за жовтень 2019 та вересень 2020 р. згідно догвору 2/н7-1/ПЗ-10.09.2019 від 10.09.2019 без ПДВ,2600800159741,current,578112.00,"ТОВ ""Агенція ""Старий Поділ""",42712978,юридична особа
СЛУГА НАРОДУ,"Київ, Куренівський провулок, 19/5",70,2019-10-02,,Банківські послуги,Інші витрати,364526,Центральний офіс,40422142,Україна,Оплата за проведення платежів по системі Клієнт-Банк зг.Договору №59741/1 вiд 01.02.2018 за період з 02.10.2019 по 02.10.2019без.п,2600800159741,current,4.00,"ПАТ КБ ""Глобус""",35591059,юридична особа
СЛУГА НАРОДУ,"Київ, Куренівський провулок, 19/5",70,2019-09-30,80426,Банківські послуги,Інші витрати,364510,Центральний офіс,40422142,Україна,Комісія за пакетне обслуговування зг. договору №59741/1 від 01.02.2018 за період з 01.09.2019 по 30.09.2019р.,2600800159741,current,190.00,"ПАТ КБ ""Глобус""",35591059,юридична особа
СЛУГА НАРОДУ,"Київ, Куренівський провулок, 19/5",70,2019-09-27,4668,Банківські послуги,Інші витрати,364509,Центральний офіс,40422142,Україна,Комісія за пакетне обслуговування зг. договору №59741/1 від 01.02.2018 за період з 01.09.2019 по 30.09.2019р.,2600800159741,current,2.00,"ПАТ КБ ""Глобус""",35591059,юридична особа
СЛУГА НАРОДУ,,69,2019-09-27,65,Організація заходів та інші організаційні послуги,Організація заходів та інші організаційні послуги,364424,Центральний офіс,40422142,Україна,"Організація заходу 05\09\2019 згідно рахунку 12 від 04.09.2019 р. Сума 78 758,00 грн ПДВ (без податку) 0,00 грн",2600800159741,current,78758.00,Яковенко Назарій Миколайович,,фізична особа
СЛУГА НАРОДУ,,73,2019-09-26,63,Придбання меблів,Придбання меблів,364508,Центральний офіс,40422142,Україна,Часткова сплата за меблі згідно рахунку 141 від 24.09.2019 р. у т.ч. ПДВ,2600800159741,current,2969410.00,"ТОВ ""Комфортзон""",36335185,юридична особа
СЛУГА НАРОДУ,"Київ, Куренівський провулок, 19/5",70,2019-09-26,4594,Банківські послуги,Інші витрати,364507,Центральний офіс,40422142,Україна,Оплата за проведення платежів по системі Клієнт-Банк зг. Договору №59741/1 вiд 01.02.2018 за період з 26.09.2019 по 26.09.2019. Без ПДВ.,2600800159741,current,2.00,"ПАТ КБ ""Глобус""",35591059,юридична особа
СЛУГА НАРОДУ,"Київ, Куренівський провулок, 19/5",70,2019-09-25,5118,Банківські послуги,Інші витрати,364506,Центральний офіс,40422142,Україна,Оплата за проведення платежів по системі Клієнт-Банк зг. Договору №59741/1 вiд 01.02.2018 за період з 25.09.2019 по 25.09.2019. Без ПДВ.,2600800159741,current,4.00,"ПАТ КБ ""Глобус""",35591059,юридична особа
СЛУГА НАРОДУ,"Київська обл., Васильківський район, Іванковичі",66,2019-09-25,62,Повернення внесків приватних внесків (донорам),Повернення приватних внесків (донорам),364428,Центральний офіс,40422142,Україна,"Повернення добров. вн. ЛЄСОВОГО ТАРАСА ВАЛЕНТИРОВИЧА 2783108452, обл. Київська, с. Іванковичі, вул. Шкільна 28/1, відп. абз.7 ст.15 ЗУ ""Про політ.п. в Україні""",2600800159741,current,1300000.00,Лєсовий Тарас Валентинович,,фізична особа
СЛУГА НАРОДУ,"Одеська область, Лиманський район, Фонтанка",66,2019-09-25,60,Повернення внесків приватних внесків (донорам),Повернення приватних внесків (донорам),364427,Центральний офіс,40422142,Україна,"Повернення добров. вн. КОЗАЧЕНКО ТЕТЯНІ БОРИСІВНІ, 2259519080,Од. обл., Лим. р-н,с.Фонтанка, вул. Дворяньска 36, відп. абз.7 ст.15 ЗУ ""Про політ.п. в Україні""",2600800159741,current,800000.00,Козаченко Тетяна Борисівна,,фізична особа
СЛУГА НАРОДУ,"Одеська область, Лиманський район, Фонтанка",66,2019-09-25,61,Повернення внесків приватних внесків (донорам),Повернення приватних внесків (донорам),364426,Центральний офіс,40422142,Україна,"Повернення добров. вн. КОЗАЧЕНКО ТЕТЯНІ БОРИСІВНІ, 2259519080,Од. обл., Лим. р-н,с.Фонтанка, вул. Дворяньска 36, відп. абз.7 ст.15 ЗУ ""Про політ.п. в Україні""",2600800159741,current,550000.00,Козаченко Тетяна Борисівна,,фізична особа
СЛУГА НАРОДУ,,70,2019-09-16,56,Банківські послуги,Інші витрати,364505,Центральний офіс,40422142,Україна,Сплата за кавомашини згідно рахунку СФ-02457001 від 13.09.2019 у т.ч. ПДВ,2600800159741,current,40690.00,"ТОВ ""Розетка.УА""",37193071,юридична особа
СЛУГА НАРОДУ,,74,2019-09-16,57,"Придбання канцтоварів, паперу, інших предметів і матеріалів, а також госп товари",Придбання канцтоварів та госп. товарів,364504,Центральний офіс,40422142,Україна,Сплата за канцтовари згідно рахунку00014218 від 13 вересня 2019 р.,2600800159741,current,19123.99,"ТОВ ""Салві груп""",38526993,юридична особа
СЛУГА НАРОДУ,,74,2019-09-16,58,"Придбання канцтоварів, паперу, інших предметів і матеріалів, а також госп товари",Придбання канцтоварів та госп. товарів,364503,Центральний офіс,40422142,Україна,"Сплата за флешпам""ять згідно рахунку СФ-02457002 від 13.09.2019 у т.ч. ПДВ",2600800159741,current,2833.00,"ТОВ ""Розетка.УА""",37193071,юридична особа
СЛУГА НАРОДУ,"Київ, Куренівський провулок, 19/5",70,2019-09-16,5786,Банківські послуги,Інші витрати,364502,Центральний офіс,40422142,Україна,"Оплата за проведення платежів по системі Клієнт-Банк зг. Договору №59741/1 вiд 01.02.2018 за період з 16.09.2019 по 16.09.2019. Без ПДВ. Сума 6,00 грн",2600800159741,current,6.00,"ПАТ КБ ""Глобус""",35591059,юридична особа
СЛУГА НАРОДУ,,72,2019-09-12,55,"Придбання, ремонт офісної техніки та програмного забезпечення (Бухгалтерські програми, Ліга.закон, домени)",Придбання офісної техніки та програмного забезпечення,364501,Центральний офіс,40422142,Україна,Сплата за ноутбук згідно рахунку СФ-02439522 від 10.09.2019 у т.ч. ПДВ,2600800159741,current,32304.00,"ТОВ ""Розетка.УА""",37193071,юридична особа
СЛУГА НАРОДУ,"Київ, Куренівський провулок, 19/5",70,2019-09-12,5552,Банківські послуги,Інші витрати,364500,Центральний офіс,40422142,Україна,Оплата за проведення платежів по системі Клієнт-Банк зг. Договору №59741/1 вiд 01.02.2018 за період з 12.09.2019 по 12.09.2019. Без ПДВ.,2600800159741,current,50.00,"ПАТ КБ ""Глобус""",35591059,юридична особа
СЛУГА НАРОДУ,"Київ, Куренівський провулок, 19/5",70,2019-09-10,6149,Банківські послуги,Інші витрати,364499,Центральний офіс,40422142,Україна,Оплата за проведення платежів по системі Клієнт-Банк зг. Договору №59741/1 вiд 01.02.2018 за період з 10.09.2019 по 10.09.2019. Без ПДВ.,2600800159741,current,4.00,"ПАТ КБ ""Глобус""",35591059,юридична особа
СЛУГА НАРОДУ,,73,2019-09-10,53,Придбання меблів,Придбання меблів,364423,Центральний офіс,40422142,Україна,Сплата за оренду столів згідно рахунку 90/19 від 06.09.2019 ПДВ немає,2600800159741,current,22900.00,Яківець Наталія Іванівна,,фізична особа
СЛУГА НАРОДУ,,73,2019-09-10,54,Придбання меблів,Придбання меблів,364422,Центральний офіс,40422142,Україна,Сплата за оренду меблів згідно рахунку 1510 від 06.09.2019 ПДВ немає,2600800159741,current,15106.00,Коляда Назар Миколайович,,фізична особа
СЛУГА НАРОДУ,"Київ, Куренівський провулок, 19/5",70,2019-09-06,4025,Банківські послуги,Інші витрати,364498,Центральний офіс,40422142,Україна,"Сплата за підключення до системи ПТК ""Клієнт-Банк"" згідно Дог. №59741/2 вiд 07.08.2019. Без ПДВ.",2600800159741,current,90.00,"ПАТ КБ ""Глобус""",35591059,юридична особа
СЛУГА НАРОДУ,,63,2019-09-05,49,Податок на доходи,Податкові платежі,364497,Центральний офіс,40422142,Україна,"*;101;40422142;11010400; Податок на доходи фіз. осіб, із інших доходів за сепрень 2019 р.",2600800159741,current,1170000.00,УДКСУ у Шевченківському районі м. Києва,37995466,юридична особа
СЛУГА НАРОДУ,"Київ, бульвар Лесі Українки, 5А",79,2019-09-05,52,"Оренда будинків і приміщень та експлуатаційні витрати (прибирання, страхування орендованих будинків, охорона, сигналізація, ремонт, вивіз сміття, тощо)",Оренда нерухомості,364496,Центральний офіс,40422142,Україна,"Сплата за оренду приміщення, згідно договору 1/01-19 від 21.01.2019 р у т.ч. ПДВ - 126455,00 грн",2600800159741,current,758730.00,"ТОВ ""Кіностолиця""",37633561,юридична особа
СЛУГА НАРОДУ,"Київ, Паркова дорога, 16",79,2019-09-05,46,"Оренда будинків і приміщень та експлуатаційні витрати (прибирання, страхування орендованих будинків, охорона, сигналізація, ремонт, вивіз сміття, тощо)",Оренда нерухомості,364495,Центральний офіс,40422142,Україна,"Орендна плата за користування Обʼєктом оренди за адресою: 04070, м.Київ, Паркова дорога,16-А, згідно рахнку 212 від 04.09.2019 р.",2600800159741,current,185650.00,"ТОВ ""Акамант""",37956495,юридична особа
СЛУГА НАРОДУ,,61,2019-09-05,48,Військовий збір,Податкові платежі,364494,Центральний офіс,40422142,Україна,"*;101;40422142;11011000; Війсковий збір, із інших доходів за сепрень 2019 р.",2600800159741,current,80000.00,УДКСУ у Шевченківському районі м. Києва,37995466,юридична особа
СЛУГА НАРОДУ,"Харківська область, Харків, вулиця Алчевських, 31",79,2019-09-05,44,"Оренда будинків і приміщень та експлуатаційні витрати (прибирання, страхування орендованих будинків, охорона, сигналізація, ремонт, вивіз сміття, тощо)",Оренда нерухомості,364493,Центральний офіс,40422142,Україна,"Ооренда приміщення за вересень, частково серпень 2019 рах № 31 від 31.08.2019 відповідно до договору найму (оренди) №26 від 20.02.2019",2600800159741,current,40000.00,"ТОВ ""Астарта лайн""",42382966,юридична особа
СЛУГА НАРОДУ,"Харківська область, Харків, вулиця Алчевських, 31",79,2019-09-05,45,"Оренда будинків і приміщень та експлуатаційні витрати (прибирання, страхування орендованих будинків, охорона, сигналізація, ремонт, вивіз сміття, тощо)",Оренда нерухомості,364492,Центральний офіс,40422142,Україна,Відшкодування комун. послуг згідно з рах. №172 від 31.08.2019 відповідно до дог. надан. послуг та відш. вит. №35в-19 від 20.02.2019 без ПДВ,2600800159741,current,9450.97,"ТОВ ""Віза консалт груп""",33481026,юридична особа
СЛУГА НАРОДУ,"Київ, Куренівський провулок, 19/5",70,2019-09-05,5608,Банківські послуги,Інші витрати,364491,Центральний офіс,40422142,Україна,Оплата за проведення платежів по системі Клієнт-Банк зг. Договору №59741/1 вiд 01.02.2018 за період з 05.09.2019 по 05.09.2019. Без ПДВ.,2600800159741,current,18.00,"ПАТ КБ ""Глобус""",35591059,юридична особа
СЛУГА НАРОДУ,,69,2019-09-05,51,Організація заходів та інші організаційні послуги,Організація заходів та інші організаційні послуги,364421,Центральний офіс,40422142,Україна,Організація заходу 05\09\2019 згідно рахунку 12 від 04.09.2019 р.,2600800159741,current,217978.40,Яковенко Назарій Миколайович,,фізична особа
СЛУГА НАРОДУ,,69,2019-09-05,50,Організація заходів та інші організаційні послуги,Організація заходів та інші організаційні послуги,364420,Центральний офіс,40422142,Україна,"Надання послуг з технічного забезпечення заходу ""Конференція"" згідно рахунку 0309/19 від 03.09.2019 р.",2600800159741,current,148939.00,Колесник Євген Станіславович,,фізична особа
СЛУГА НАРОДУ,,73,2019-09-05,47,Придбання меблів,Придбання меблів,364419,Центральний офіс,40422142,Україна,Оренда (прокат) комплекту меблів згідно рахунку 72 від 04 вересня 2019 р.,2600800159741,current,44308.00,Рябих Артем Юрійович,,фізична особа
СЛУГА НАРОДУ,,72,2019-09-03,298,"Придбання, ремонт офісної техніки та програмного забезпечення (Бухгалтерські програми, Ліга.закон, домени)",Придбання офісної техніки та програмного забезпечення,364490,Центральний офіс,40422142,Україна,Сплата за ноутбуки згідно рахунку СФ-02404041 від 03.09.2019 у т.ч. ПДВ,2600800159741,current,160683.00,"ТОВ ""Розетка.УА""",37193071,юридична особа
СЛУГА НАРОДУ,"Київ, Куренівський провулок, 19/5",70,2019-09-03,6130,Банківські послуги,Інші витрати,364489,Центральний офіс,40422142,Україна,Оплата за проведення платежів по системі Клієнт-Банк зг. Договору №59741/1 вiд 01.02.2018 за період з 03.09.2019 по 03.09.2019. Без ПДВ.,2600800159741,current,2.00,"ПАТ КБ ""Глобус""",35591059,юридична особа
СЛУГА НАРОДУ,"Київ, Куренівський провулок, 19/5",70,2019-08-30,78987,Банківські послуги,Інші витрати,364488,Центральний офіс,40422142,Україна,Комісія за пакетне обслуговування зг. договору №59741/1 від 01.02.2018 за період з 01.08.2019 по 31.08.2019р.,2600800159741,current,190.00,"ПАТ КБ ""Глобус""",35591059,юридична особа
СЛУГА НАРОДУ,"Київ, Куренівський провулок, 19/5",70,2019-08-30,73674,Банківські послуги,Інші витрати,364487,Центральний офіс,40422142,Україна,Оплата за проведення платежів по системі Клієнт-Банк зг. Договору №59741/1 вiд 01.02.2018 за період з 30.08.2019 по 30.08.2019. Без ПДВ.,2600800159741,current,2.00,"ПАТ КБ ""Глобус""",35591059,юридична особа
СЛУГА НАРОДУ,,69,2019-08-30,43,Організація заходів та інші організаційні послуги,Організація заходів та інші організаційні послуги,364418,Центральний офіс,40422142,Україна,"Надання послуг з технічного забезпечення заходу ""Конференція"" згідно рахунку 2708/19 від 27.08.2019 р.",2600800159741,current,167120.00,Колесник Євген Станіславович,,фізична особа
СЛУГА НАРОДУ,"Київ, Музейний провулок, 2Б, 7",69,2019-08-28,41,Організація заходів та інші організаційні послуги,Організація заходів та інші організаційні послуги,364486,Центральний офіс,40422142,Україна,Сплата за організацію заходу 28.08.2019 р. згідно рахунку 54 від 27.08.2019 р. у т.ч. ПДВ,2600800159741,current,231513.00,"ТОВ ""Вайт кейтерінг""",42146601,юридична особа
СЛУГА НАРОДУ,"Київ, Куренівський провулок, 19/5",70,2019-08-28,4774,Банківські послуги,Інші витрати,364485,Центральний офіс,40422142,Україна,Оплата за проведення платежів по системі Клієнт-Банк зг. Договору №59741/1 вiд 01.02.2018 за період з 28.08.2019 по 28.08.2019. Без ПДВ.,2600800159741,current,4.00,"ПАТ КБ ""Глобус""",35591059,юридична особа
СЛУГА НАРОДУ,,73,2019-08-28,42,Придбання меблів,Придбання меблів,364417,Центральний офіс,40422142,Україна,Оренда (прокат) комплекту меблів згідно рахунку 71 від 28 серпня 2019 р.,2600800159741,current,44736.00,Рябих Артем Юрійович,,фізична особа
СЛУГА НАРОДУ,"Київ, Паркова дорога, 16",79,2019-08-27,40,"Оренда будинків і приміщень та експлуатаційні витрати (прибирання, страхування орендованих будинків, охорона, сигналізація, ремонт, вивіз сміття, тощо)",Оренда нерухомості,364484,Центральний офіс,40422142,Україна,"Орендна плата за користування Обʼєктом оренди за адресою: 04070, м.Київ, Паркова дорога,16-А Сума 185 804,00 грн ПДВ (20%) 30 967,33 грн",2600800159741,current,185804.00,"ТОВ ""Акамант""",37956495,юридична особа
СЛУГА НАРОДУ,"Київ, Куренівський провулок, 19/5",70,2019-08-27,5196,Банківські послуги,Інші витрати,364483,Центральний офіс,40422142,Україна,Оплата за проведення платежів по системі Клієнт-Банк зг. Договору №59741/1 вiд 01.02.2018 за період з 27.08.2019 по 27.08.2019. Без ПДВ.,2600800159741,current,4.00,"ПАТ КБ ""Глобус""",35591059,юридична особа
СЛУГА НАРОДУ,,57,2019-08-27,39,Виготовлення брендованої продукції,"Виготовлення брендованої продукції (футболки, кепки, парасольки)",364416,Центральний офіс,40422142,Україна,Сплата за нагрудні знаки згідно рахунку 125 від 14.08.2019 р. ПДВ немає,2600800159741,current,16980.00,Брецький А,,фізична особа
СЛУГА НАРОДУ,"Київ, бульвар Лесі Українки, 5А",79,2019-08-20,38,"Оренда будинків і приміщень та експлуатаційні витрати (прибирання, страхування орендованих будинків, охорона, сигналізація, ремонт, вивіз сміття, тощо)",Оренда нерухомості,364482,Центральний офіс,40422142,Україна,"Доплата за оренду приміщення за липень 2019 р, згідно договору 1/01-19 від 21.01.2019 р у т.ч. ПДВ",2600800159741,current,111212.00,"ТОВ ""Кіностолиця""",37633561,юридична особа
СЛУГА НАРОДУ,"Київ, Куренівський провулок, 19/5",70,2019-08-20,5043,Банківські послуги,Інші витрати,364481,Центральний офіс,40422142,Україна,Оплата за проведення платежів по системі Клієнт-Банк зг. Договору №59741/1 вiд 01.02.2018 за період з 20.08.2019 по 20.08.2019. Без ПДВ.,2600800159741,current,2.00,"ПАТ КБ ""Глобус""",35591059,юридична особа
СЛУГА НАРОДУ,,82,2019-08-19,35,"Гонорари, в тому числі за надані консультаційні послуги","Гонорари, в тому числі за надані консультаційні послуги",364480,Центральний офіс,40422142,Україна,"Плата за семінар ""макро- та мікроекономіка"" згідно договору б/Н від 23.07.2019 у т.ч. ПДВ",2600800159741,current,2092224.00,"ТОВ ""Київська школа екон. та менеджм""",37199602,юридична особа
СЛУГА НАРОДУ,"Львівська область, Дрогобич",69,2019-08-19,36,Організація заходів та інші організаційні послуги,Організація заходів та інші організаційні послуги,364479,Центральний офіс,40422142,Україна,"Остаточний платіж за проведення семінару згідно договору б/н 23.06.2019, у т.ч. ПДВ",2600800159741,current,1192185.00,"ТОВ ""Бальнео-Тур""",40246531,юридична особа
СЛУГА НАРОДУ,"Київ, бульвар Лесі Українки, 5А",79,2019-08-19,37,"Оренда будинків і приміщень та експлуатаційні витрати (прибирання, страхування орендованих будинків, охорона, сигналізація, ремонт, вивіз сміття, тощо)",Оренда нерухомості,364478,Центральний офіс,40422142,Україна,"Сплата за оренду приміщення за липень 2019 р, згідно договору 1/01-19 від 21.01.2019 р у т.ч. ПДВ",2600800159741,current,647518.00,"ТОВ ""Кіностолиця""",37633561,юридична особа
СЛУГА НАРОДУ,"Київ, Куренівський провулок, 19/5",70,2019-08-19,6008,Банківські послуги,Інші витрати,364477,Центральний офіс,40422142,Україна,Оплата за проведення платежів по системі Клієнт-Банк зг. Договору №59741/1 вiд 01.02.2018 за період з 19.08.2019 по 19.08.2019. Без ПДВ.,2600800159741,current,6.00,"ПАТ КБ ""Глобус""",35591059,юридична особа
СЛУГА НАРОДУ,"Харківська область, Харків, вулиця Алчевських, 31",79,2019-08-15,33,"Оренда будинків і приміщень та експлуатаційні витрати (прибирання, страхування орендованих будинків, охорона, сигналізація, ремонт, вивіз сміття, тощо)",Оренда нерухомості,364476,Центральний офіс,40422142,Україна,Сплата за оренду приміщення за серпень 2019 р. ПДВ немає.,2600800159741,current,39000.00,"ТОВ ""Астарта лайн""",42382966,юридична особа
СЛУГА НАРОДУ,"Харківська область, Харків, вулиця Алчевських, 31",79,2019-08-15,34,"Оренда будинків і приміщень та експлуатаційні витрати (прибирання, страхування орендованих будинків, охорона, сигналізація, ремонт, вивіз сміття, тощо)",Оренда нерухомості,364475,Центральний офіс,40422142,Україна,Платіж за комун. послуг згідно з рах. №168 від 31.07.2019 відповідно до дог. надан. послуг та відш. вит. №35в-19 від 20.02.2019 без ПДВ,2600800159741,current,9438.64,"ТОВ ""Віза консалт груп""",33481026,юридична особа
СЛУГА НАРОДУ,"Київ, Куренівський провулок, 19/5",70,2019-08-15,5019,Банківські послуги,Інші витрати,364474,Центральний офіс,40422142,Україна,Оплата за проведення платежів по системі Клієнт-Банк зг. Договору №59741/1 вiд 01.02.2018 за період з 15.08.2019 по 15.08.2019. Без ПДВ.,2600800159741,current,6.00,"ПАТ КБ ""Глобус""",35591059,юридична особа
СЛУГА НАРОДУ,,57,2019-08-15,32,Виготовлення брендованої продукції,"Виготовлення брендованої продукції (футболки, кепки, парасольки)",364415,Центральний офіс,40422142,Україна,"Зна-к металевий нагрудний, згідно рахунку 125 від 14 серпня 2019. ПДВ не має.",2600800159741,current,16980.00,Брецький А,,фізична особа
СЛУГА НАРОДУ,"Київ, Куренівський провулок, 19/5",79,2019-08-14,2396,"Оренда будинків і приміщень та експлуатаційні витрати (прибирання, страхування орендованих будинків, охорона, сигналізація, ремонт, вивіз сміття, тощо)",Оренда нерухомості,364473,Центральний офіс,40422142,Україна,Сплата за відкриття поточного рахунку зг. договору №59741/2 вiд 07.08.2019. Без ПДВ.,2600800159741,current,50.00,"ПАТ КБ ""Глобус""",35591059,юридична особа
СЛУГА НАРОДУ,"Львівська область, Дрогобич",69,2019-08-02,31,Організація заходів та інші організаційні послуги,Організація заходів та інші організаційні послуги,364472,Центральний офіс,40422142,Україна,"Авансовий платіж за органызацыю проживання учасникыв заходу згідно рахунку TO-7629/4 від 02.08.2019, ПДВ не має",2600800159741,current,450000.00,"ТОВ ""Бальнео-Тур""",40246531,юридична особа
СЛУГА НАРОДУ,"Київ, Куренівський провулок, 19/5",70,2019-08-02,5814,Банківські послуги,Інші витрати,364471,Центральний офіс,40422142,Україна,Оплата за проведення платежів по системі Клієнт-Банк зг. Договору №59741/1 вiд 01.02.2018 за період з 02.08.2019 по 02.08.2019. Без ПДВ.,2600800159741,current,2.00,"ПАТ КБ ""Глобус""",35591059,юридична особа
СЛУГА НАРОДУ,"Львівська область, Дрогобич",69,2019-07-31,30,Організація заходів та інші організаційні послуги,Організація заходів та інші організаційні послуги,364470,Центральний офіс,40422142,Україна,"Організація проживання учасників заходу 28.07.19-04.08.19 згідно рахунку TO-7629/3 від 31.07.2019, ПДВ не має",2600800159741,current,1500000.00,"ТОВ ""Бальнео-Тур""",40246531,юридична особа
СЛУГА НАРОДУ,"Київ, Куренівський провулок, 19/5",70,2019-07-31,72507,Банківські послуги,Інші витрати,364469,Центральний офіс,40422142,Україна,Оплата за проведення платежів по системі Клієнт-Банк зг. Договору №59741/1 вiд 01.02.2018 за період з 31.07.2019 по 31.07.2019. Без ПДВ.,2600800159741,current,600.00,"ПАТ КБ ""Глобус""",35591059,юридична особа
СЛУГА НАРОДУ,"Київ, Куренівський провулок, 19/5",70,2019-07-31,80147,Банківські послуги,Інші витрати,364468,Центральний офіс,40422142,Україна,Комісія за пакетне обслуговування зг. договору №59741/1 від 01.02.2018 за період з 01.07.2019 по 31.07.2019р.,2600800159741,current,190.00,"ПАТ КБ ""Глобус""",35591059,юридична особа
СЛУГА НАРОДУ,"Львівська область, Дрогобич",69,2019-07-26,27,Організація заходів та інші організаційні послуги,Організація заходів та інші організаційні послуги,364467,Центральний офіс,40422142,Україна,"Авансовий платіж за проведення семіару згідно рахунку TO-7629 від 20.06.2019, ПДВ не має",2600800159741,current,2500000.00,"ТОВ ""Бальнео-Тур""",40246531,юридична особа
СЛУГА НАРОДУ,"Львівська область, Дрогобич",69,2019-07-26,29,Організація заходів та інші організаційні послуги,Організація заходів та інші організаційні послуги,364466,Центральний офіс,40422142,Україна,"Авансовий платіж за проведення семіару згідно рахунку TO-7629 від 20.06.2019, ПДВ не має",2600800159741,current,2000000.00,"ТОВ ""Бальнео-Тур""",40246531,юридична особа
СЛУГА НАРОДУ,,80,2019-07-26,28,"Транспортні послуги (квитки, пасажирські перевезення і т.д.)","Транспортні послуги (квитки, пасажирські перевезення і т.д.)",364465,Центральний офіс,40422142,Україна,"Сплата за проїзд залізничним транспортом, рах 123/39 від 26.07.2019 р. ПДВ не має",2600800159741,current,145032.48,"ПАТ ""Укрзалізниця""",41022900,юридична особа
СЛУГА НАРОДУ,"Київ, Куренівський провулок, 19/5",70,2019-07-26,4530,Банківські послуги,Інші витрати,364464,Центральний офіс,40422142,Україна,Оплата за проведення платежів по системі Клієнт-Банк зг. Договору №59741/1 вiд 01.02.2018 за період з 26.07.2019 по 26.07.2019. Без ПДВ.,2600800159741,current,6.00,"ПАТ КБ ""Глобус""",35591059,юридична особа
СЛУГА НАРОДУ,"Львівська область, Дрогобич",69,2019-07-24,26,Організація заходів та інші організаційні послуги,Організація заходів та інші організаційні послуги,364463,Центральний офіс,40422142,Україна,"Авансовий платіж за проведення семіару згідно рахунку TO-7629 від 20.06.2019, ПДВ не має",2600800159741,current,100000.00,"ТОВ ""Бальнео-Тур""",40246531,юридична особа
СЛУГА НАРОДУ,"Київ, Куренівський провулок, 19/5",70,2019-07-24,4633,Банківські послуги,Інші витрати,364462,Центральний офіс,40422142,Україна,Оплата за проведення платежів по системі Клієнт-Банк зг. Договору №59741/1 вiд 01.02.2018 за період з 24.07.2019 по 24.07.2019. Без ПДВ.,2600800159741,current,2.00,"ПАТ КБ ""Глобус""",35591059,юридична особа
СЛУГА НАРОДУ,"Київ, Паркова дорога, 16",61,2019-07-19,297,Військовий збір,Податкові платежі,364461,Центральний офіс,40422142,Україна,"Орендна плата за користування обʼєктом оренди, згідно з рахунком №8 від 18.07.2019 року, у тому числі ПДВ 20%",2600800159741,current,352876.00,"ТОВ ""Київ Інтернешенел Конвеншен Центр""",42982857,юридична особа
СЛУГА НАРОДУ,"Київ, вулиця Січових Стрільців, 77",46,2019-07-19,295,Перерахування коштів на виборчі рахунки партії,Перерахування коштів до виборчих фондів,364460,Центральний офіс,40422142,Україна,"+;1;Кошти ПОЛІТИЧНОЇ ПАРТІЇ ""СЛУГА НАРОДУ"" внесені до виборчого фонду ПОЛІТИЧНОЇ ПАРТІЇ ""СЛУГА НАРОДУ"", без ПДВ",2600800159741,current,17004.00,Центральний офіс Слуга народу,40422142,юридична особа
СЛУГА НАРОДУ,"Київ, Куренівський провулок, 19/5",70,2019-07-19,5629,Банківські послуги,Інші витрати,364459,Центральний офіс,40422142,Україна,Оплата за проведення платежів по системі Клієнт-Банк зг. Договору №59741/1 вiд 01.02.2018 за період з 19.07.2019 по 19.07.2019. Без ПДВ.,2600800159741,current,4.00,"ПАТ КБ ""Глобус""",35591059,юридична особа
СЛУГА НАРОДУ,,69,2019-07-19,296,Організація заходів та інші організаційні послуги,Організація заходів та інші організаційні послуги,364414,Центральний офіс,40422142,Україна,"Надання послуг з технічного забезпечення заходу (""День виборів"") згідно з рахунком №1907/19 від 19.07.2019. Без ПДВ",2600800159741,current,90000.00,Колесник Євген Станіславович,,фізична особа
СЛУГА НАРОДУ,"Київ, вулиця Січових Стрільців, 77",46,2019-07-18,294,Перерахування коштів на виборчі рахунки партії,Перерахування коштів до виборчих фондів,364458,Центральний офіс,40422142,Україна,"+;1;Кошти ПОЛІТИЧНОЇ ПАРТІЇ ""СЛУГА НАРОДУ"" внесені до виборчого фонду ПОЛІТИЧНОЇ ПАРТІЇ ""СЛУГА НАРОДУ"", без ПДВ",2600800159741,current,32108.00,Центральний офіс Слуга народу,40422142,юридична особа
СЛУГА НАРОДУ,"Київ, вулиця Січових Стрільців, 77",46,2019-07-17,292,Перерахування коштів на виборчі рахунки партії,Перерахування коштів до виборчих фондів,364457,Центральний офіс,40422142,Україна,"+;1;Кошти ПОЛІТИЧНОЇ ПАРТІЇ ""СЛУГА НАРОДУ"" внесені до виборчого фонду ПОЛІТИЧНОЇ ПАРТІЇ ""СЛУГА НАРОДУ"", без ПДВ",2600800159741,current,9512520.45,Центральний офіс Слуга народу,40422142,юридична особа
СЛУГА НАРОДУ,"Київ, Музейний провулок, 2Б, 7",69,2019-07-17,293,Організація заходів та інші організаційні послуги,Організація заходів та інші організаційні послуги,364456,Центральний офіс,40422142,Україна,"Оплата за організацію заходу 21-22.07.2019, згідно з рахунком №38 від 16.07.2019 року, у тому числі ПДВ 20%",2600800159741,current,160000.00,"ТОВ ""Вайт кейтерінг""",42146601,юридична особа
СЛУГА НАРОДУ,"Київ, Куренівський провулок, 19/5",70,2019-07-17,4911,Банківські послуги,Інші витрати,364455,Центральний офіс,40422142,Україна,Оплата за проведення платежів по системі Клієнт-Банк зг. Договору №59741/1 вiд 01.02.2018 за період з 17.07.2019 по 17.07.2019. Без ПДВ.,2600800159741,current,160.00,"ПАТ КБ ""Глобус""",35591059,юридична особа
СЛУГА НАРОДУ,"Київ, вулиця Січових Стрільців, 77",46,2019-07-17,291,Перерахування коштів на виборчі рахунки партії,Перерахування коштів до виборчих фондів,364454,Центральний офіс,40422142,Україна,"+;1;Кошти ПОЛІТИЧНОЇ ПАРТІЇ ""СЛУГА НАРОДУ"" внесені до виборчого фонду ПОЛІТИЧНОЇ ПАРТІЇ ""СЛУГА НАРОДУ"", без ПДВ",2600800159741,current,1000000.00,Центральний офіс Слуга народу,40422142,юридична особа
СЛУГА НАРОДУ,"Київ, вулиця Січових Стрільців, 77",46,2019-07-16,290,Перерахування коштів на виборчі рахунки партії,Перерахування коштів до виборчих фондів,364453,Центральний офіс,40422142,Україна,"+;1;Кошти ПОЛІТИЧНОЇ ПАРТІЇ ""СЛУГА НАРОДУ"" внесені до виборчого фонду ПОЛІТИЧНОЇ ПАРТІЇ ""СЛУГА НАРОДУ"", без ПДВ",2600800159741,current,303580.00,Центральний офіс Слуга народу,40422142,юридична особа
СЛУГА НАРОДУ,"Київ, вулиця Січових Стрільців, 77",46,2019-07-15,287,Перерахування коштів на виборчі рахунки партії,Перерахування коштів до виборчих фондів,364452,Центральний офіс,40422142,Україна,"+;1;Кошти ПОЛІТИЧНОЇ ПАРТІЇ ""СЛУГА НАРОДУ"" внесені до виборчого фонду ПОЛІТИЧНОЇ ПАРТІЇ ""СЛУГА НАРОДУ"", без ПДВ",2600800159741,current,121768.00,Центральний офіс Слуга народу,40422142,юридична особа
СЛУГА НАРОДУ,"Харківська область, Харків, вулиця Алчевських, 31",79,2019-07-15,289,"Оренда будинків і приміщень та експлуатаційні витрати (прибирання, страхування орендованих будинків, охорона, сигналізація, ремонт, вивіз сміття, тощо)",Оренда нерухомості,364451,Центральний офіс,40422142,Україна,Плата за оренду приміщення в червні 2019 року згідно з рахунком №86 від 01.07.2019 відповідно до договору найму (оренди) №26 від 20.02.2019. Без ПДВ,2600800159741,current,39500.00,"ТОВ ""Астарта лайн""",42382966,юридична особа
СЛУГА НАРОДУ,"Харківська область, Харків, вулиця Алчевських, 31",79,2019-07-15,288,"Оренда будинків і приміщень та експлуатаційні витрати (прибирання, страхування орендованих будинків, охорона, сигналізація, ремонт, вивіз сміття, тощо)",Оренда нерухомості,364450,Центральний офіс,40422142,Україна,Відшкодування додаткових витрат при оренді приміщ згідно з рах. №150 від 30.06.19 відповідно до дог. надан. послуг та відш. вит. №35в-19 від 20.02.2019 без ПДВ,2600800159741,current,9543.58,"ТОВ ""Віза консалт груп""",33481026,юридична особа
СЛУГА НАРОДУ,"Київ, Куренівський провулок, 19/5",70,2019-07-15,6204,Банківські послуги,Інші витрати,364449,Центральний офіс,40422142,Україна,Оплата за проведення платежів по системі Клієнт-Банк зг. Договору №59741/1 вiд 01.02.2018 за період з 15.07.2019 по 15.07.2019. Без ПДВ.,2600800159741,current,4.00,"ПАТ КБ ""Глобус""",35591059,юридична особа
СЛУГА НАРОДУ,"Київ, вулиця Бориса Гмирі, 9А, 201",66,2019-07-12,283,Повернення внесків приватних внесків (донорам),Повернення приватних внесків (донорам),364514,Центральний офіс,40422142,Україна,"Повернення добр. внеску ТОВ ""ВЄТЕК-КИЇВ"" (39560368), від якої відповідно до абз. 7 ст.15 ЗУ ""Про політичні партії в Україні"" відмовився Голова Партії",2600800159741,current,2838400.00,"ТОВ ""Вєтек-Київ""",39560368,юридична особа
СЛУГА НАРОДУ,"Київ, вулиця Бориса Гмирі, 9А, 201",66,2019-07-12,263,Повернення внесків приватних внесків (донорам),Повернення приватних внесків (донорам),364513,Центральний офіс,40422142,Україна,"Часткове повернення добр. внеску ТОВ ""ВЄТЕК-КИЇВ"" (39560368), від якої відповідно до абз.7 ст.15 ЗУ ""Про політітичні партії в Україні"" відмовився Голова Партії",2600800159741,current,500000.00,"ТОВ ""Вєтек-Київ""",39560368,юридична особа
СЛУГА НАРОДУ,"Київ, вулиця Січових Стрільців, 77",46,2019-07-12,285,Перерахування коштів на виборчі рахунки партії,Перерахування коштів до виборчих фондів,364448,Центральний офіс,40422142,Україна,"+;1;Кошти ПОЛІТИЧНОЇ ПАРТІЇ ""СЛУГА НАРОДУ"" внесені до виборчого фонду ПОЛІТИЧНОЇ ПАРТІЇ ""СЛУГА НАРОДУ"", без ПДВ",2600800159741,current,5659992.00,Центральний офіс Слуга народу,40422142,юридична особа
СЛУГА НАРОДУ,"Київ, вулиця Січових Стрільців, 77",46,2019-07-12,286,Перерахування коштів на виборчі рахунки партії,Перерахування коштів до виборчих фондів,364447,Центральний офіс,40422142,Україна,"+;1;Кошти ПОЛІТИЧНОЇ ПАРТІЇ ""СЛУГА НАРОДУ"" внесені до виборчого фонду ПОЛІТИЧНОЇ ПАРТІЇ ""СЛУГА НАРОДУ"", без ПДВ",2600800159741,current,149600.00,Центральний офіс Слуга народу,40422142,юридична особа
СЛУГА НАРОДУ,"Київ, Куренівський провулок, 19/5",70,2019-07-12,4867,Банківські послуги,Інші витрати,364446,Центральний офіс,40422142,Україна,Оплата за проведення платежів по системі Клієнт-Банк зг. Договору №59741/1 вiд 01.02.2018 за період з 12.07.2019 по 12.07.2019. Без ПДВ.,2600800159741,current,2.00,"ПАТ КБ ""Глобус""",35591059,юридична особа
СЛУГА НАРОДУ,"Київ, вулиця Січових Стрільців, 77",46,2019-07-11,278,Перерахування коштів на виборчі рахунки партії,Перерахування коштів до виборчих фондів,364445,Центральний офіс,40422142,Україна,"+;1;Кошти ПОЛІТИЧНОЇ ПАРТІЇ ""СЛУГА НАРОДУ"" внесені до виборчого фонду ПОЛІТИЧНОЇ ПАРТІЇ ""СЛУГА НАРОДУ"", без ПДВ",2600800159741,current,392428.02,Центральний офіс Слуга народу,40422142,юридична особа
СЛУГА НАРОДУ,"Київ, вулиця Січових Стрільців, 77",46,2019-07-11,279,Перерахування коштів на виборчі рахунки партії,Перерахування коштів до виборчих фондів,364444,Центральний офіс,40422142,Україна,"+;1;Кошти ПОЛІТИЧНОЇ ПАРТІЇ ""СЛУГА НАРОДУ"" внесені до виборчого фонду ПОЛІТИЧНОЇ ПАРТІЇ ""СЛУГА НАРОДУ"", без ПДВ",2600800159741,current,2075.99,Центральний офіс Слуга народу,40422142,юридична особа
СЛУГА НАРОДУ,"Київ, вулиця Січових Стрільців, 77",46,2019-07-10,276,Перерахування коштів на виборчі рахунки партії,Перерахування коштів до виборчих фондів,364443,Центральний офіс,40422142,Україна,"+;1;Кошти ПОЛІТИЧНОЇ ПАРТІЇ ""СЛУГА НАРОДУ"" внесені до виборчого фонду ПОЛІТИЧНОЇ ПАРТІЇ ""СЛУГА НАРОДУ"", без ПДВ",2600800159741,current,15200000.00,Центральний офіс Слуга народу,40422142,юридична особа
СЛУГА НАРОДУ,"Київ, вулиця Січових Стрільців, 77",46,2019-07-10,277,Перерахування коштів на виборчі рахунки партії,Перерахування коштів до виборчих фондів,364442,Центральний офіс,40422142,Україна,"+;1;Кошти ПОЛІТИЧНОЇ ПАРТІЇ ""СЛУГА НАРОДУ"" внесені до виборчого фонду ПОЛІТИЧНОЇ ПАРТІЇ ""СЛУГА НАРОДУ"", без ПДВ",2600800159741,current,7000000.00,Центральний офіс Слуга народу,40422142,юридична особа
СЛУГА НАРОДУ,"Київ, вулиця Січових Стрільців, 77",82,2019-07-10,275,"Гонорари, в тому числі за надані консультаційні послуги","Гонорари, в тому числі за надані консультаційні послуги",364441,Центральний офіс,40422142,Україна,"Сплата за послуги ведення бухобліку у травні-липні 2019 згідно з рахунками №СФ-0000078 від 02.05.19, №СФ-0000087 від 03.06.19,№СФ-0000078 від 01.07.19р. Без ПДВ",2600800159741,current,47000.00,"Адвокатське бюро ""Качура лоєрс""",41172969,юридична особа
СЛУГА НАРОДУ,"Київ, Куренівський провулок, 19/5",70,2019-07-10,5740,Банківські послуги,Інші витрати,364440,Центральний офіс,40422142,Україна,Оплата за проведення платежів по системі Клієнт-Банк зг. Договору №59741/1 вiд 01.02.2018 за період з 10.07.2019 по 10.07.2019. Без ПДВ.,2600800159741,current,2.00,"ПАТ КБ ""Глобус""",35591059,юридична особа
СЛУГА НАРОДУ,"Київ, бульвар Лесі Українки, 5А",79,2019-07-08,273,"Оренда будинків і приміщень та експлуатаційні витрати (прибирання, страхування орендованих будинків, охорона, сигналізація, ремонт, вивіз сміття, тощо)",Оренда нерухомості,364439,Центральний офіс,40422142,Україна,"Оплата за суборенду приміщення у червні 2019 р, згідно з рахунком №8 від 08.07.2019 (договір 1/01-19 від 21.01.2019 р), у тому числі ПДВ 20%",2600800159741,current,758730.00,"ТОВ ""Кіностолиця""",37633561,юридична особа
СЛУГА НАРОДУ,"Харківська область, Харків, вулиця Полтавський Шлях, 20",79,2019-07-08,274,"Оренда будинків і приміщень та експлуатаційні витрати (прибирання, страхування орендованих будинків, охорона, сигналізація, ремонт, вивіз сміття, тощо)",Оренда нерухомості,364438,Центральний офіс,40422142,Україна,"Оплата за охорону обʼєктів (фізична) у липні 2019 р, згідно з рахунком №32-66823 від 04.07.2019 (договір 32-66832 від 03.07.2019 р), у тому числі ПДВ 20%",2600800159741,current,24000.00,УПО ХАРКІВСЬКОЇ ОБЛАСТІ,40108955,юридична особа
СЛУГА НАРОДУ,"Київ, Куренівський провулок, 19/5",70,2019-07-08,6203,Банківські послуги,Інші витрати,364437,Центральний офіс,40422142,Україна,Оплата за проведення платежів по системі Клієнт-Банк зг. Договору №59741/1 вiд 01.02.2018 за період з 08.07.2019 по 08.07.2019. Без ПДВ.,2600800159741,current,4.00,"ПАТ КБ ""Глобус""",35591059,юридична особа
СЛУГА НАРОДУ,"Київ, вулиця Січових Стрільців, 77",46,2019-07-05,272,Перерахування коштів на виборчі рахунки партії,Перерахування коштів до виборчих фондів,364436,Центральний офіс,40422142,Україна,"+;1;Кошти ПОЛІТИЧНОЇ ПАРТІЇ ""СЛУГА НАРОДУ"" внесені до виборчого фонду ПОЛІТИЧНОЇ ПАРТІЇ ""СЛУГА НАРОДУ"", без ПДВ",2600800159741,current,28000000.00,Центральний офіс Слуга народу,40422142,юридична особа
СЛУГА НАРОДУ,"Київ, вулиця Січових Стрільців, 77",46,2019-07-03,271,Перерахування коштів на виборчі рахунки партії,Перерахування коштів до виборчих фондів,364435,Центральний офіс,40422142,Україна,"+;1;Кошти ПОЛІТИЧНОЇ ПАРТІЇ ""СЛУГА НАРОДУ"" внесені до виборчого фонду ПОЛІТИЧНОЇ ПАРТІЇ ""СЛУГА НАРОДУ"", без ПДВ",2600800159741,current,37000000.00,Центральний офіс Слуга народу,40422142,юридична особа
СЛУГА НАРОДУ,"Дніпропетровська область, Криворізький район, Шевченківське",79,2019-07-03,270,"Оренда будинків і приміщень та експлуатаційні витрати (прибирання, страхування орендованих будинків, охорона, сигналізація, ремонт, вивіз сміття, тощо)",Оренда нерухомості,364434,Центральний офіс,40422142,Україна,"Плата за суборенду приміщення згідно з рах. на оплату №67 від 30.06.2019, відповідно до договору суборенди №б/н від 21.01.2019, у тому числі ПДВ 20%",2600800159741,current,18000.00,"ТОВ ""Кар-гіл""",41662682,юридична особа
СЛУГА НАРОДУ,,72,2019-07-03,269,"Придбання, ремонт офісної техніки та програмного забезпечення (Бухгалтерські програми, Ліга.закон, домени)",Придбання офісної техніки та програмного забезпечення,364433,Центральний офіс,40422142,Україна,"Оплата за послуги хостингу, користувач zf355970, відповідно до рахунку №1-4299994 від 29.06.2019, у тому числі ПДВ 20%",2600800159741,current,5280.00,"ТОВ ""Хостінг Україна""",37593550,юридична особа
СЛУГА НАРОДУ,"Київ, Куренівський провулок, 19/5",70,2019-07-03,4872,Банківські послуги,Інші витрати,364432,Центральний офіс,40422142,Україна,Оплата за проведення платежів по системі Клієнт-Банк зг. Договору №59741/1 вiд 01.02.2018 за період з 03.07.2019 по 03.07.2019. Без ПДВ.,2600800159741,current,4.00,"ПАТ КБ ""Глобус""",35591059,юридична особа
СЛУГА НАРОДУ,"Одеська область, Одеса, вулиця Троїцька, 33а, 304Б",66,2019-07-01,267,Повернення внесків приватних внесків (донорам),Повернення приватних внесків (донорам),364512,Центральний офіс,40422142,Україна,"Повернення добр. внеску ТОВ ""ТАМІРА ТОРГ"" (42558036), від якої відповідно до абз.7 ст.15 ЗУ ""Про політітичні партії в Україні"" відмовився Голова Партії",2600800159741,current,2950000.00,"ТОВ ""Таміра торг""",42558036,юридична особа
СЛУГА НАРОДУ,"Одеська область, Одеса, вулиця Успенська, 39/1, 21",66,2019-07-01,266,Повернення внесків приватних внесків (донорам),Повернення приватних внесків (донорам),364511,Центральний офіс,40422142,Україна,"Повернення добр. внеску ТОВ ""БАРАКА ТРЕЙДІНГ УКР."" (39596113), від якої відповідно до абз.7 ст.15 ЗУ ""Про політітичні партії в Україні"" відмовився Голова Партії",2600800159741,current,2950000.00,"ТОВ ""Барака трейдінг Україна""",39596113,юридична особа
СЛУГА НАРОДУ,"Київ, вулиця Січових Стрільців, 77",46,2019-07-01,264,Перерахування коштів на виборчі рахунки партії,Перерахування коштів до виборчих фондів,364431,Центральний офіс,40422142,Україна,"+;1;Кошти ПОЛІТИЧНОЇ ПАРТІЇ ""СЛУГА НАРОДУ"" внесені до виборчого фонду ПОЛІТИЧНОЇ ПАРТІЇ ""СЛУГА НАРОДУ"", без ПДВ",2600800159741,current,8261796.36,Центральний офіс Слуга народу,40422142,юридична особа
СЛУГА НАРОДУ,"Київ, вулиця Січових Стрільців, 77",46,2019-07-01,268,Перерахування коштів на виборчі рахунки партії,Перерахування коштів до виборчих фондів,364430,Центральний офіс,40422142,Україна,"+;1;Кошти ПОЛІТИЧНОЇ ПАРТІЇ ""СЛУГА НАРОДУ"" внесені до виборчого фонду ПОЛІТИЧНОЇ ПАРТІЇ ""СЛУГА НАРОДУ"", без ПДВ",2600800159741,current,2000000.00,Центральний офіс Слуга народу,40422142,юридична особа
СЛУГА НАРОДУ,"Київ, Куренівський провулок, 19/5",70,2019-07-01,19885,Банківські послуги,Інші витрати,364429,Центральний офіс,40422142,Україна,Оплата за проведення платежів по системі Клієнт-Банк зг. Договору №59741/1 вiд 01.02.2018 за період з 01.07.2019 по 01.07.2019. Без ПДВ.,2600800159741,current,8.00,"ПАТ КБ ""Глобус""",35591059,юридична особа
СЛУГА НАРОДУ,Київ,66,2019-07-01,265,Повернення внесків приватних внесків (донорам),Повернення приватних внесків (донорам),364425,Центральний офіс,40422142,Україна,"Повернення добровільного внеску Петрощук А. В. (3060114895), від якої відповідно до абз.7 ст.15 ЗУ ""Про політичні партії в Україні"" відмовився Голова Партії",2600800159741,current,1600000.00,Петрощук Артем Васильович,,фізична особа
СЛУГА НАРОДУ,"Київ, Куренівський провулок, 19/5",70,2019-06-26,5450,Банківські послуги,Інші витрати,364413,Центральний офіс,40422142,Україна,Оплата за проведення платежів по системі Клієнт-Банк зг. Договору No59741/1 вiд 01.02.2018 за період з 26.06.2019 по 26.06.2019. Без ПДВ.,2600800159741,current,204.78,"ПАТ КБ ""Глобус""",35591059,юридична особа
СЛУГА НАРОДУ,"Харківська область, Харків, вулиця Отакара Яроша, 18А",69,2019-06-26,262,Організація заходів та інші організаційні послуги,Організація заходів та інші організаційні послуги,364412,Центральний офіс,40422142,Україна,"Оплата за оренду зали для проведення заходу, згідно з рахунком No113 від 25.06.2019, у тому числі ПДВ 20%",2600800159741,current,2000.00,"ТОВ ""Форс С""",33677317,юридична особа
СЛУГА НАРОДУ,"Київ, Столичне шосе, 103",69,2019-06-26,261,Організація заходів та інші організаційні послуги,Організація заходів та інші організаційні послуги,364411,Центральний офіс,40422142,Україна,"Оплата за організацію заходу 28.06.2019 , згідно з рахунком No1648 від 25.06.2019, у тому числі ПДВ 20%",2600800159741,current,154780.00,"ТОВ ""Хотел менеджмент груп ЛЛС""",37101111,юридична особа
СЛУГА НАРОДУ,"Київ, Куренівський провулок, 19/5",70,2019-06-25,5596,Банківські послуги,Інші витрати,364410,Центральний офіс,40422142,Україна,Сплата за проведення платежів по системі Клієнт-Банк зг. Договору No59741/1 вiд 01.02.2018 за період з 24.06.2019 по 24.06.2019. Без ПДВ.,2600800159741,current,2.00,"ПАТ КБ ""Глобус""",35591059,юридична особа
СЛУГА НАРОДУ,"Київ, Куренівський провулок, 19/5",70,2019-06-25,5284,Банківські послуги,Інші витрати,364409,Центральний офіс,40422142,Україна,Оплата за проведення платежів по системі Клієнт-Банк зг. Договору No59741/1 вiд 01.02.2018 за період з 25.06.2019 по 25.06.2019. Без ПДВ.,2600800159741,current,4.00,"ПАТ КБ ""Глобус""",35591059,юридична особа
СЛУГА НАРОДУ,"Київ, вулиця Хрещатик, 4",69,2019-06-25,259,Організація заходів та інші організаційні послуги,Організація заходів та інші організаційні послуги,364408,Центральний офіс,40422142,Україна,"Оплата за послуги з підготовки і проведення прес-конференції, згідно з рахунком NoPUA00000771 від",2600800159741,current,2100.00,"ТОВ ""Українське незалежне інформаційне агенство""",21452108,юридична особа
СЛУГА НАРОДУ,"Київ, Новопечерський провулок, 3, 9",72,2019-06-25,260,"Придбання, ремонт офісної техніки та програмного забезпечення (Бухгалтерські програми, Ліга.закон, домени)",Придбання офісної техніки та програмного забезпечення,364407,Центральний офіс,40422142,Україна,"Оплата за реєстрацію (продовження) домену за кодом клієнта--887284611, згідно з рахунком NoСФ-00031306 від 14.06.2019, у тому числі ПДВ 20%",2600800159741,current,4794.00,"ТОВ ""Інтернет інвест""",32493292,юридична особа
СЛУГА НАРОДУ,"Київ, бульвар Лесі Українки, 5А",79,2019-06-24,258,"Оренда будинків і приміщень та експлуатаційні витрати (прибирання, страхування орендованих будинків, охорона, сигналізація, ремонт, вивіз сміття, тощо)",Оренда нерухомості,364406,Центральний офіс,40422142,Україна,"Оплата за суборенду приміщення у травні 2019 р, згідно з рахунком No7 від 05.06.2019 (договір 1/01-19 від 21.01.2019 р), у тому числі ПДВ 20%",2600800159741,current,758730.00,"ТОВ ""Кіностолиця""",37633561,юридична особа
СЛУГА НАРОДУ,"Київ, Куренівський провулок, 19/5",70,2019-06-21,4464,Банківські послуги,Інші витрати,364405,Центральний офіс,40422142,Україна,Сплата за проведення платежів по системі Клієнт-Банк зг. Договору No59741/1 вiд 01.02.2018 за період з 20.06.2019 по 20.06.2019. Без ПДВ.,2600800159741,current,404.00,"ПАТ КБ ""Глобус""",35591059,юридична особа
СЛУГА НАРОДУ,"Київ, вулиця Михайла Бойчука, 18",69,2019-06-20,254,Організація заходів та інші організаційні послуги,Організація заходів та інші організаційні послуги,364404,Центральний офіс,40422142,Україна,"Плата за оренду конференц-залу для проведення Конференції, згідно з рахунком на оплату No5691432 від",2600800159741,current,880.00,"ТОВ ""Рейкарц Хотел Менеджмент""",35850930,юридична особа
СЛУГА НАРОДУ,"Київ, площа Лесі Українки, 1",59,2019-06-20,100,Грошова застава,Грошова застава,364403,Центральний офіс,40422142,Україна,Грошова застава кандидата у народні депутати України в одномандатному виборчому окрузі - Маргітич Іван Володимирович,2600800159741,current,41730.00,Центральна виборча комісія,21661450,юридична особа
СЛУГА НАРОДУ,"Київ, площа Лесі Українки, 1",59,2019-06-20,101,Грошова застава,Грошова застава,364402,Центральний офіс,40422142,Україна,Грошова застава кандидата у народні депутати України в одномандатному виборчому окрузі – Касай Геннадій Олександрович,2600800159741,current,41730.00,Центральна виборча комісія,21661450,юридична особа
СЛУГА НАРОДУ,"Київ, площа Лесі Українки, 1",59,2019-06-20,102,Грошова застава,Грошова застава,364401,Центральний офіс,40422142,Україна,Грошова застава кандидата у народні депутати України в одномандатному виборчому окрузі - Соха Роман Васильович,2600800159741,current,41730.00,Центральна виборча комісія,21661450,юридична особа
СЛУГА НАРОДУ,"Київ, площа Лесі Українки, 1",59,2019-06-20,103,Грошова застава,Грошова застава,364400,Центральний офіс,40422142,Україна,Грошова застава кандидата у народні депутати України в одномандатному виборчому окрузі – Шевченко Євгеній Володимирович,2600800159741,current,41730.00,Центральна виборча комісія,21661450,юридична особа
СЛУГА НАРОДУ,"Київ, площа Лесі Українки, 1",59,2019-06-20,104,Грошова застава,Грошова застава,364399,Центральний офіс,40422142,Україна,Грошова застава кандидата у народні депутати України в одномандатному виборчому окрузі - Штепа Сергій Сергійович,2600800159741,current,41730.00,Центральна виборча комісія,21661450,юридична особа
СЛУГА НАРОДУ,"Київ, площа Лесі Українки, 1",59,2019-06-20,105,Грошова застава,Грошова застава,364398,Центральний офіс,40422142,Україна,Грошова застава кандидата у народні депутати України в одномандатному виборчому окрузі – Боговін Віталій Вікторович,2600800159741,current,41730.00,Центральна виборча комісія,21661450,юридична особа
СЛУГА НАРОДУ,"Київ, площа Лесі Українки, 1",59,2019-06-20,106,Грошова застава,Грошова застава,364397,Центральний офіс,40422142,Україна,Грошова застава кандидата у народні депутати України в одномандатному виборчому окрузі - Яцик Юлія Григорівна,2600800159741,current,41730.00,Центральна виборча комісія,21661450,юридична особа
СЛУГА НАРОДУ,"Київ, площа Лесі Українки, 1",59,2019-06-20,107,Грошова застава,Грошова застава,364396,Центральний офіс,40422142,Україна,Грошова застава кандидата у народні депутати України в одномандатному виборчому окрузі – Гладкий Дмитро Вікторович,2600800159741,current,41730.00,Центральна виборча комісія,21661450,юридична особа
СЛУГА НАРОДУ,"Київ, площа Лесі Українки, 1",59,2019-06-20,108,Грошова застава,Грошова застава,364395,Центральний офіс,40422142,Україна,Грошова застава кандидата у народні депутати України в одномандатному виборчому окрузі – Мельник Павло Вікторович,2600800159741,current,41730.00,Центральна виборча комісія,21661450,юридична особа
СЛУГА НАРОДУ,"Київ, площа Лесі Українки, 1",59,2019-06-20,109,Грошова застава,Грошова застава,364394,Центральний офіс,40422142,Україна,Грошова застава кандидата у народні депутати України в одномандатному виборчому окрузі – Нікітіна Марина Вікторівна,2600800159741,current,41730.00,Центральна виборча комісія,21661450,юридична особа
СЛУГА НАРОДУ,"Київ, площа Лесі Українки, 1",59,2019-06-20,110,Грошова застава,Грошова застава,364393,Центральний офіс,40422142,Україна,Грошова застава кандидата у народні депутати України в одномандатному виборчому окрузі – Сторожук Андрій Леонідович,2600800159741,current,41730.00,Центральна виборча комісія,21661450,юридична особа
СЛУГА НАРОДУ,"Київ, площа Лесі Українки, 1",59,2019-06-20,111,Грошова застава,Грошова застава,364392,Центральний офіс,40422142,Україна,Грошова застава кандидата у народні депутати України в одномандатному виборчому окрузі - Фріс Ігор Павлович,2600800159741,current,41730.00,Центральна виборча комісія,21661450,юридична особа
СЛУГА НАРОДУ,"Київ, площа Лесі Українки, 1",59,2019-06-20,112,Грошова застава,Грошова застава,364391,Центральний офіс,40422142,Україна,Грошова застава кандидата у народні депутати України в одномандатному виборчому окрузі – Прощук Едуард Петрович,2600800159741,current,41730.00,Центральна виборча комісія,21661450,юридична особа
СЛУГА НАРОДУ,"Київ, площа Лесі Українки, 1",59,2019-06-20,113,Грошова застава,Грошова застава,364390,Центральний офіс,40422142,Україна,Грошова застава кандидата у народні депутати України в одномандатному виборчому окрузі – Матусевич Олександр Борисович,2600800159741,current,41730.00,Центральна виборча комісія,21661450,юридична особа
СЛУГА НАРОДУ,"Київ, площа Лесі Українки, 1",59,2019-06-20,114,Грошова застава,Грошова застава,364389,Центральний офіс,40422142,Україна,Грошова застава кандидата у народні депутати України в одномандатному виборчому окрузі – Андрійович Зіновій Мирославович,2600800159741,current,41730.00,Центральна виборча комісія,21661450,юридична особа
СЛУГА НАРОДУ,"Київ, площа Лесі Українки, 1",59,2019-06-20,115,Грошова застава,Грошова застава,364388,Центральний офіс,40422142,Україна,Грошова застава кандидата у народні депутати України в одномандатному виборчому окрузі – Шевченко Андрій Леонідович,2600800159741,current,41730.00,Центральна виборча комісія,21661450,юридична особа
СЛУГА НАРОДУ,"Київ, площа Лесі Українки, 1",59,2019-06-20,116,Грошова застава,Грошова застава,364387,Центральний офіс,40422142,Україна,Грошова застава кандидата у народні депутати України в одномандатному виборчому окрузі – Тимофійчук Володимир Ярославович,2600800159741,current,41730.00,Центральна виборча комісія,21661450,юридична особа
СЛУГА НАРОДУ,"Київ, площа Лесі Українки, 1",59,2019-06-20,117,Грошова застава,Грошова застава,364386,Центральний офіс,40422142,Україна,Грошова застава кандидата у народні депутати України в одномандатному виборчому окрузі – Нестерчук Юрій Вікторович,2600800159741,current,41730.00,Центральна виборча комісія,21661450,юридична особа
СЛУГА НАРОДУ,"Київ, площа Лесі Українки, 1",59,2019-06-20,118,Грошова застава,Грошова застава,364385,Центральний офіс,40422142,Україна,Грошова застава кандидата у народні депутати України в одномандатному виборчому окрузі - Дунда Олег Андрійович,2600800159741,current,41730.00,Центральна виборча комісія,21661450,юридична особа
СЛУГА НАРОДУ,"Київ, площа Лесі Українки, 1",59,2019-06-20,119,Грошова застава,Грошова застава,364384,Центральний офіс,40422142,Україна,Грошова застава кандидата у народні депутати України в одномандатному виборчому окрузі – Колюх Валерій Вікторович,2600800159741,current,41730.00,Центральна виборча комісія,21661450,юридична особа
СЛУГА НАРОДУ,"Київ, площа Лесі Українки, 1",59,2019-06-20,120,Грошова застава,Грошова застава,364383,Центральний офіс,40422142,Україна,Грошова застава кандидата у народні депутати України в одномандатному виборчому окрузі – Скороход Анна Костянтинівна,2600800159741,current,41730.00,Центральна виборча комісія,21661450,юридична особа
СЛУГА НАРОДУ,"Київ, площа Лесі Українки, 1",59,2019-06-20,121,Грошова застава,Грошова застава,364382,Центральний офіс,40422142,Україна,Грошова застава кандидата у народні депутати України в одномандатному виборчому окрузі – Дубінський Олександр Анатолійович,2600800159741,current,41730.00,Центральна виборча комісія,21661450,юридична особа
СЛУГА НАРОДУ,"Київ, площа Лесі Українки, 1",59,2019-06-20,122,Грошова застава,Грошова застава,364381,Центральний офіс,40422142,Україна,Грошова застава кандидата у народні депутати України в одномандатному виборчому окрузі – Горобець Олександр Сергійович,2600800159741,current,41730.00,Центральна виборча комісія,21661450,юридична особа
СЛУГА НАРОДУ,"Київ, площа Лесі Українки, 1",59,2019-06-20,123,Грошова застава,Грошова застава,364380,Центральний офіс,40422142,Україна,Грошова застава кандидата у народні депутати України в одномандатному виборчому окрузі - Василевська-Смаглюк Ольга Михайлівна,2600800159741,current,41730.00,Центральна виборча комісія,21661450,юридична особа
СЛУГА НАРОДУ,"Київ, площа Лесі Українки, 1",59,2019-06-20,124,Грошова застава,Грошова застава,364379,Центральний офіс,40422142,Україна,Грошова застава кандидата у народні депутати України в одномандатному виборчому окрузі – Галушко Микола Леонідович,2600800159741,current,41730.00,Центральна виборча комісія,21661450,юридична особа
СЛУГА НАРОДУ,"Київ, площа Лесі Українки, 1",59,2019-06-20,125,Грошова застава,Грошова застава,364378,Центральний офіс,40422142,Україна,Грошова застава кандидата у народні депутати України в одномандатному виборчому окрузі - Бунін Сергій Валерійович,2600800159741,current,41730.00,Центральна виборча комісія,21661450,юридична особа
СЛУГА НАРОДУ,"Київ, площа Лесі Українки, 1",59,2019-06-20,126,Грошова застава,Грошова застава,364377,Центральний офіс,40422142,Україна,Грошова застава кандидата у народні депутати України в одномандатному виборчому окрузі – Дануца Олександр Анатолійович,2600800159741,current,41730.00,Центральна виборча комісія,21661450,юридична особа
СЛУГА НАРОДУ,"Київ, площа Лесі Українки, 1",59,2019-06-20,127,Грошова застава,Грошова застава,364376,Центральний офіс,40422142,Україна,Грошова застава кандидата у народні депутати України в одномандатному виборчому окрузі - Мурдій Ігор Юрійович,2600800159741,current,41730.00,Центральна виборча комісія,21661450,юридична особа
СЛУГА НАРОДУ,"Київ, площа Лесі Українки, 1",59,2019-06-20,128,Грошова застава,Грошова застава,364375,Центральний офіс,40422142,Україна,Грошова застава кандидата у народні депутати України в одномандатному виборчому окрузі - Кузбит Юрій Михайлович,2600800159741,current,41730.00,Центральна виборча комісія,21661450,юридична особа
СЛУГА НАРОДУ,"Київ, площа Лесі Українки, 1",59,2019-06-20,129,Грошова застава,Грошова застава,364374,Центральний офіс,40422142,Україна,Грошова застава кандидата у народні депутати України в одномандатному виборчому окрузі – Петрощук Артем Васильович,2600800159741,current,41730.00,Центральна виборча комісія,21661450,юридична особа
СЛУГА НАРОДУ,"Київ, площа Лесі Українки, 1",59,2019-06-20,130,Грошова застава,Грошова застава,364373,Центральний офіс,40422142,Україна,Грошова застава кандидата у народні депутати України в одномандатному виборчому окрузі – Воронько Олег Євгенійович,2600800159741,current,41730.00,Центральна виборча комісія,21661450,юридична особа
СЛУГА НАРОДУ,"Київ, площа Лесі Українки, 1",59,2019-06-20,131,Грошова застава,Грошова застава,364372,Центральний офіс,40422142,Україна,Грошова застава кандидата у народні депутати України в одномандатному виборчому окрузі – Кузнєцов Олексій Олександрович,2600800159741,current,41730.00,Центральна виборча комісія,21661450,юридична особа
СЛУГА НАРОДУ,"Київ, площа Лесі Українки, 1",59,2019-06-20,132,Грошова застава,Грошова застава,364371,Центральний офіс,40422142,Україна,Грошова застава кандидата у народні депутати України в одномандатному виборчому окрузі – Сорокін Олександр Олексійович,2600800159741,current,41730.00,Центральна виборча комісія,21661450,юридична особа
СЛУГА НАРОДУ,"Київ, площа Лесі Українки, 1",59,2019-06-20,133,Грошова застава,Грошова застава,364370,Центральний офіс,40422142,Україна,Грошова застава кандидата у народні депутати України в одномандатному виборчому окрузі – Місінкевич Ярослав Петрович,2600800159741,current,41730.00,Центральна виборча комісія,21661450,юридична особа
СЛУГА НАРОДУ,"Київ, площа Лесі Українки, 1",59,2019-06-20,134,Грошова застава,Грошова застава,364369,Центральний офіс,40422142,Україна,Грошова застава кандидата у народні депутати України в одномандатному виборчому окрузі -Сліпець Віта Володимирівна,2600800159741,current,41730.00,Центральна виборча комісія,21661450,юридична особа
СЛУГА НАРОДУ,"Київ, площа Лесі Українки, 1",59,2019-06-20,135,Грошова застава,Грошова застава,364368,Центральний офіс,40422142,Україна,Грошова застава кандидата у народні депутати України в одномандатному виборчому окрузі – Мойсєєв Максим Сергійович,2600800159741,current,41730.00,Центральна виборча комісія,21661450,юридична особа
СЛУГА НАРОДУ,"Київ, площа Лесі Українки, 1",59,2019-06-20,136,Грошова застава,Грошова застава,364367,Центральний офіс,40422142,Україна,Грошова застава кандидата у народні депутати України в одномандатному виборчому окрузі – Шубка Катерина Павлівна,2600800159741,current,41730.00,Центральна виборча комісія,21661450,юридична особа
СЛУГА НАРОДУ,"Київ, площа Лесі Українки, 1",59,2019-06-20,137,Грошова застава,Грошова застава,364366,Центральний офіс,40422142,Україна,Грошова застава кандидата у народні депутати України в одномандатному виборчому окрузі – Мельник Ростислав Леонідович,2600800159741,current,41730.00,Центральна виборча комісія,21661450,юридична особа
СЛУГА НАРОДУ,"Київ, площа Лесі Українки, 1",59,2019-06-20,138,Грошова застава,Грошова застава,364365,Центральний офіс,40422142,Україна,Грошова застава кандидата у народні депутати України в одномандатному виборчому окрузі – Фединяк Роман Анатолійович,2600800159741,current,41730.00,Центральна виборча комісія,21661450,юридична особа
СЛУГА НАРОДУ,"Київ, площа Лесі Українки, 1",59,2019-06-20,139,Грошова застава,Грошова застава,364364,Центральний офіс,40422142,Україна,Грошова застава кандидата у народні депутати України в одномандатному виборчому окрузі – Федецький Артем Андрійович,2600800159741,current,41730.00,Центральна виборча комісія,21661450,юридична особа
СЛУГА НАРОДУ,"Київ, площа Лесі Українки, 1",59,2019-06-20,140,Грошова застава,Грошова застава,364363,Центральний офіс,40422142,Україна,Грошова застава кандидата у народні депутати України в одномандатному виборчому окрузі – Кавецький Орест Юрійович,2600800159741,current,41730.00,Центральна виборча комісія,21661450,юридична особа
СЛУГА НАРОДУ,"Київ, площа Лесі Українки, 1",59,2019-06-20,141,Грошова застава,Грошова застава,364362,Центральний офіс,40422142,Україна,Грошова застава кандидата у народні депутати України в одномандатному виборчому окрузі – Саламаха Орест Ігорович,2600800159741,current,41730.00,Центральна виборча комісія,21661450,юридична особа
СЛУГА НАРОДУ,"Київ, площа Лесі Українки, 1",59,2019-06-20,142,Грошова застава,Грошова застава,364361,Центральний офіс,40422142,Україна,Грошова застава кандидата у народні депутати України в одномандатному виборчому окрузі – Шумський Андрій Миколайович,2600800159741,current,41730.00,Центральна виборча комісія,21661450,юридична особа
СЛУГА НАРОДУ,"Київ, площа Лесі Українки, 1",59,2019-06-20,143,Грошова застава,Грошова застава,364360,Центральний офіс,40422142,Україна,Грошова застава кандидата у народні депутати України в одномандатному виборчому окрузі – Квасецька Наталія Василівна,2600800159741,current,41730.00,Центральна виборча комісія,21661450,юридична особа
СЛУГА НАРОДУ,"Київ, площа Лесі Українки, 1",59,2019-06-20,144,Грошова застава,Грошова застава,364359,Центральний офіс,40422142,Україна,Грошова застава кандидата у народні депутати України в одномандатному виборчому окрузі – Камельчук Юрій Олександрович,2600800159741,current,41730.00,Центральна виборча комісія,21661450,юридична особа
СЛУГА НАРОДУ,"Київ, площа Лесі Українки, 1",59,2019-06-20,145,Грошова застава,Грошова застава,364358,Центральний офіс,40422142,Україна,Грошова застава кандидата у народні депутати України в одномандатному виборчому окрузі – Яворський Микола Миколайович,2600800159741,current,41730.00,Центральна виборча комісія,21661450,юридична особа
СЛУГА НАРОДУ,"Київ, площа Лесі Українки, 1",59,2019-06-20,146,Грошова застава,Грошова застава,364357,Центральний офіс,40422142,Україна,Грошова застава кандидата у народні депутати України в одномандатному виборчому окрузі – Негулевський Ігор Петрович,2600800159741,current,41730.00,Центральна виборча комісія,21661450,юридична особа
СЛУГА НАРОДУ,"Київ, площа Лесі Українки, 1",59,2019-06-20,147,Грошова застава,Грошова застава,364356,Центральний офіс,40422142,Україна,Грошова застава кандидата у народні депутати України в одномандатному виборчому окрузі – Чорноморов Артем Олегович,2600800159741,current,41730.00,Центральна виборча комісія,21661450,юридична особа
СЛУГА НАРОДУ,"Київ, площа Лесі Українки, 1",59,2019-06-20,148,Грошова застава,Грошова застава,364355,Центральний офіс,40422142,Україна,Грошова застава кандидата у народні депутати України в одномандатному виборчому окрузі – Дирдін Максим Євгенович,2600800159741,current,41730.00,Центральна виборча комісія,21661450,юридична особа
СЛУГА НАРОДУ,"Київ, площа Лесі Українки, 1",59,2019-06-20,149,Грошова застава,Грошова застава,364354,Центральний офіс,40422142,Україна,Грошова застава кандидата у народні депутати України в одномандатному виборчому окрузі – Дмитрук Артем Геннадійович,2600800159741,current,41730.00,Центральна виборча комісія,21661450,юридична особа
СЛУГА НАРОДУ,"Київ, площа Лесі Українки, 1",59,2019-06-20,150,Грошова застава,Грошова застава,364353,Центральний офіс,40422142,Україна,Грошова застава кандидата у народні депутати України в одномандатному виборчому окрузі - Колєв Олег Вікторович,2600800159741,current,41730.00,Центральна виборча комісія,21661450,юридична особа
СЛУГА НАРОДУ,"Київ, площа Лесі Українки, 1",59,2019-06-20,151,Грошова застава,Грошова застава,364352,Центральний офіс,40422142,Україна,Грошова застава кандидата у народні депутати України в одномандатному виборчому окрузі – Леонов Олексій Олександрович,2600800159741,current,41730.00,Центральна виборча комісія,21661450,юридична особа
СЛУГА НАРОДУ,"Київ, площа Лесі Українки, 1",59,2019-06-20,152,Грошова застава,Грошова застава,364351,Центральний офіс,40422142,Україна,Грошова застава кандидата у народні депутати України в одномандатному виборчому окрузі - Горенюк Олександр Олександрович,2600800159741,current,41730.00,Центральна виборча комісія,21661450,юридична особа
СЛУГА НАРОДУ,"Київ, площа Лесі Українки, 1",59,2019-06-20,153,Грошова застава,Грошова застава,364350,Центральний офіс,40422142,Україна,Грошова застава кандидата у народні депутати України в одномандатному виборчому окрузі – Муконін Олександр Вікторович,2600800159741,current,41730.00,Центральна виборча комісія,21661450,юридична особа
СЛУГА НАРОДУ,"Київ, площа Лесі Українки, 1",59,2019-06-20,154,Грошова застава,Грошова застава,364349,Центральний офіс,40422142,Україна,Грошова застава кандидата у народні депутати України в одномандатному виборчому окрузі – Чернявський Степан Миколайович,2600800159741,current,41730.00,Центральна виборча комісія,21661450,юридична особа
СЛУГА НАРОДУ,"Київ, площа Лесі Українки, 1",59,2019-06-20,155,Грошова застава,Грошова застава,364348,Центральний офіс,40422142,Україна,Грошова застава кандидата у народні депутати України в одномандатному виборчому окрузі - Васильковський Ігор Ігорович,2600800159741,current,41730.00,Центральна виборча комісія,21661450,юридична особа
СЛУГА НАРОДУ,"Київ, площа Лесі Українки, 1",59,2019-06-20,156,Грошова застава,Грошова застава,364347,Центральний офіс,40422142,Україна,Грошова застава кандидата у народні депутати України в одномандатному виборчому окрузі – Колебошин Сергій Валерійович,2600800159741,current,41730.00,Центральна виборча комісія,21661450,юридична особа
СЛУГА НАРОДУ,"Київ, площа Лесі Українки, 1",59,2019-06-20,157,Грошова застава,Грошова застава,364346,Центральний офіс,40422142,Україна,Грошова застава кандидата у народні депутати України в одномандатному виборчому окрузі – Ткаченко Олександр Михайлович,2600800159741,current,41730.00,Центральна виборча комісія,21661450,юридична особа
СЛУГА НАРОДУ,"Київ, площа Лесі Українки, 1",59,2019-06-20,158,Грошова застава,Грошова застава,364345,Центральний офіс,40422142,Україна,Грошова застава кандидата у народні депутати України в одномандатному виборчому окрузі – Плохой Руслан Ігорович,2600800159741,current,41730.00,Центральна виборча комісія,21661450,юридична особа
СЛУГА НАРОДУ,"Київ, площа Лесі Українки, 1",59,2019-06-20,159,Грошова застава,Грошова застава,364344,Центральний офіс,40422142,Україна,Грошова застава кандидата у народні депутати України в одномандатному виборчому окрузі - Куртєв Віктор Владиславович,2600800159741,current,41730.00,Центральна виборча комісія,21661450,юридична особа
СЛУГА НАРОДУ,"Київ, площа Лесі Українки, 1",59,2019-06-20,160,Грошова застава,Грошова застава,364343,Центральний офіс,40422142,Україна,Грошова застава кандидата у народні депутати України в одномандатному виборчому окрузі – Нальотов Дмитро Олександрович,2600800159741,current,41730.00,Центральна виборча комісія,21661450,юридична особа
СЛУГА НАРОДУ,"Київ, площа Лесі Українки, 1",59,2019-06-20,161,Грошова застава,Грошова застава,364342,Центральний офіс,40422142,Україна,Грошова застава кандидата у народні депутати України в одномандатному виборчому окрузі – Боблях Андрій Ростиславович,2600800159741,current,41730.00,Центральна виборча комісія,21661450,юридична особа
СЛУГА НАРОДУ,"Київ, площа Лесі Українки, 1",59,2019-06-20,162,Грошова застава,Грошова застава,364341,Центральний офіс,40422142,Україна,Грошова застава кандидата у народні депутати України в одномандатному виборчому окрузі - Урін Фелікс Олександрович,2600800159741,current,41730.00,Центральна виборча комісія,21661450,юридична особа
СЛУГА НАРОДУ,"Київ, площа Лесі Українки, 1",59,2019-06-20,163,Грошова застава,Грошова застава,364340,Центральний офіс,40422142,Україна,Грошова застава кандидата у народні депутати України в одномандатному виборчому окрузі – Дудник Сергій Сергійович,2600800159741,current,41730.00,Центральна виборча комісія,21661450,юридична особа
СЛУГА НАРОДУ,"Київ, площа Лесі Українки, 1",59,2019-06-20,164,Грошова застава,Грошова застава,364339,Центральний офіс,40422142,Україна,Грошова застава кандидата у народні депутати України в одномандатному виборчому окрузі – Касай Костянтин Іванович,2600800159741,current,41730.00,Центральна виборча комісія,21661450,юридична особа
СЛУГА НАРОДУ,"Київ, площа Лесі Українки, 1",59,2019-06-20,165,Грошова застава,Грошова застава,364338,Центральний офіс,40422142,Україна,Грошова застава кандидата у народні депутати України в одномандатному виборчому окрузі – Мовчан Олексій Васильович,2600800159741,current,41730.00,Центральна виборча комісія,21661450,юридична особа
СЛУГА НАРОДУ,"Київ, площа Лесі Українки, 1",59,2019-06-20,166,Грошова застава,Грошова застава,364337,Центральний офіс,40422142,Україна,Грошова застава кандидата у народні депутати України в одномандатному виборчому окрузі – Березін Максим Юрійович,2600800159741,current,41730.00,Центральна виборча комісія,21661450,юридична особа
СЛУГА НАРОДУ,"Київ, площа Лесі Українки, 1",59,2019-06-20,167,Грошова застава,Грошова застава,364336,Центральний офіс,40422142,Україна,Грошова застава кандидата у народні депутати України в одномандатному виборчому окрузі – Ковальчук Олександр Володимирович,2600800159741,current,41730.00,Центральна виборча комісія,21661450,юридична особа
СЛУГА НАРОДУ,"Київ, площа Лесі Українки, 1",59,2019-06-20,168,Грошова застава,Грошова застава,364335,Центральний офіс,40422142,Україна,Грошова застава кандидата у народні депутати України в одномандатному виборчому окрузі – Аліксійчук Олександр Васильович,2600800159741,current,41730.00,Центральна виборча комісія,21661450,юридична особа
СЛУГА НАРОДУ,"Київ, площа Лесі Українки, 1",59,2019-06-20,169,Грошова застава,Грошова застава,364334,Центральний офіс,40422142,Україна,Грошова застава кандидата у народні депутати України в одномандатному виборчому окрузі – Рашовський Володимир Володимирович,2600800159741,current,41730.00,Центральна виборча комісія,21661450,юридична особа
СЛУГА НАРОДУ,"Київ, площа Лесі Українки, 1",59,2019-06-20,170,Грошова застава,Грошова застава,364333,Центральний офіс,40422142,Україна,Грошова застава кандидата у народні депутати України в одномандатному виборчому окрузі – Литвиненко Сергій Анатолійович,2600800159741,current,41730.00,Центральна виборча комісія,21661450,юридична особа
СЛУГА НАРОДУ,"Київ, площа Лесі Українки, 1",59,2019-06-20,171,Грошова застава,Грошова застава,364332,Центральний офіс,40422142,Україна,Грошова застава кандидата у народні депутати України в одномандатному виборчому окрузі – Рябуха Тетяна Василівна,2600800159741,current,41730.00,Центральна виборча комісія,21661450,юридична особа
СЛУГА НАРОДУ,"Київ, площа Лесі Українки, 1",59,2019-06-20,172,Грошова застава,Грошова застава,364331,Центральний офіс,40422142,Україна,Грошова застава кандидата у народні депутати України в одномандатному виборчому окрузі - Васильєв Ігор Сергійович,2600800159741,current,41730.00,Центральна виборча комісія,21661450,юридична особа
СЛУГА НАРОДУ,"Київ, площа Лесі Українки, 1",59,2019-06-20,173,Грошова застава,Грошова застава,364330,Центральний офіс,40422142,Україна,Грошова застава кандидата у народні депутати України в одномандатному виборчому окрузі – Шевченко Дмитро Станіславович,2600800159741,current,41730.00,Центральна виборча комісія,21661450,юридична особа
СЛУГА НАРОДУ,"Київ, площа Лесі Українки, 1",59,2019-06-20,174,Грошова застава,Грошова застава,364329,Центральний офіс,40422142,Україна,Грошова застава кандидата у народні депутати України в одномандатному виборчому окрузі – Сахнюк Тетяна Володимирівна,2600800159741,current,41730.00,Центральна виборча комісія,21661450,юридична особа
СЛУГА НАРОДУ,"Київ, площа Лесі Українки, 1",59,2019-06-20,175,Грошова застава,Грошова застава,364328,Центральний офіс,40422142,Україна,Грошова застава кандидата у народні депутати України в одномандатному виборчому окрузі – Гузенко Максим Васильович,2600800159741,current,41730.00,Центральна виборча комісія,21661450,юридична особа
СЛУГА НАРОДУ,"Київ, площа Лесі Українки, 1",59,2019-06-20,176,Грошова застава,Грошова застава,364327,Центральний офіс,40422142,Україна,Грошова застава кандидата у народні депутати України в одномандатному виборчому окрузі – Богданець Андрій Володимирович,2600800159741,current,41730.00,Центральна виборча комісія,21661450,юридична особа
СЛУГА НАРОДУ,"Київ, площа Лесі Українки, 1",59,2019-06-20,177,Грошова застава,Грошова застава,364326,Центральний офіс,40422142,Україна,Грошова застава кандидата у народні депутати України в одномандатному виборчому окрузі - Василів Ігор Володимирович,2600800159741,current,41730.00,Центральна виборча комісія,21661450,юридична особа
СЛУГА НАРОДУ,"Київ, площа Лесі Українки, 1",59,2019-06-20,178,Грошова застава,Грошова застава,364325,Центральний офіс,40422142,Україна,Грошова застава кандидата у народні депутати України в одномандатному виборчому окрузі – Кісілевич Володимир Володимирович,2600800159741,current,41730.00,Центральна виборча комісія,21661450,юридична особа
СЛУГА НАРОДУ,"Київ, площа Лесі Українки, 1",59,2019-06-20,179,Грошова застава,Грошова застава,364324,Центральний офіс,40422142,Україна,Грошова застава кандидата у народні депутати України в одномандатному виборчому окрузі - Сопель Ігор Михайлович,2600800159741,current,41730.00,Центральна виборча комісія,21661450,юридична особа
СЛУГА НАРОДУ,"Київ, площа Лесі Українки, 1",59,2019-06-20,180,Грошова застава,Грошова застава,364323,Центральний офіс,40422142,Україна,Грошова застава кандидата у народні депутати України в одномандатному виборчому окрузі – Гевко Володимир Леонідович,2600800159741,current,41730.00,Центральна виборча комісія,21661450,юридична особа
СЛУГА НАРОДУ,"Київ, площа Лесі Українки, 1",59,2019-06-20,181,Грошова застава,Грошова застава,364322,Центральний офіс,40422142,Україна,Грошова застава кандидата у народні депутати України в одномандатному виборчому окрузі – Мезенцева Марія Сергіївна,2600800159741,current,41730.00,Центральна виборча комісія,21661450,юридична особа
СЛУГА НАРОДУ,"Київ, площа Лесі Українки, 1",59,2019-06-20,182,Грошова застава,Грошова застава,364321,Центральний офіс,40422142,Україна,Грошова застава кандидата у народні депутати України в одномандатному виборчому окрузі – Куницький Олександр Олегович,2600800159741,current,41730.00,Центральна виборча комісія,21661450,юридична особа
СЛУГА НАРОДУ,"Київ, площа Лесі Українки, 1",59,2019-06-20,183,Грошова застава,Грошова застава,364320,Центральний офіс,40422142,Україна,Грошова застава кандидата у народні депутати України в одномандатному виборчому окрузі – Одарченко Андрій Миколайович,2600800159741,current,41730.00,Центральна виборча комісія,21661450,юридична особа
СЛУГА НАРОДУ,"Київ, площа Лесі Українки, 1",59,2019-06-20,184,Грошова застава,Грошова застава,364319,Центральний офіс,40422142,Україна,Грошова застава кандидата у народні депутати України в одномандатному виборчому окрузі – Кінзбурська Вікторія Олександрівна,2600800159741,current,41730.00,Центральна виборча комісія,21661450,юридична особа
СЛУГА НАРОДУ,"Київ, площа Лесі Українки, 1",59,2019-06-20,185,Грошова застава,Грошова застава,364318,Центральний офіс,40422142,Україна,Грошова застава кандидата у народні депутати України в одномандатному виборчому окрузі – Здебський Юрій Вікторович,2600800159741,current,41730.00,Центральна виборча комісія,21661450,юридична особа
СЛУГА НАРОДУ,"Київ, площа Лесі Українки, 1",59,2019-06-20,186,Грошова застава,Грошова застава,364317,Центральний офіс,40422142,Україна,Грошова застава кандидата у народні депутати України в одномандатному виборчому окрузі – Бакумов Олександр Сергійович,2600800159741,current,41730.00,Центральна виборча комісія,21661450,юридична особа
СЛУГА НАРОДУ,"Київ, площа Лесі Українки, 1",59,2019-06-20,187,Грошова застава,Грошова застава,364316,Центральний офіс,40422142,Україна,Грошова застава кандидата у народні депутати України в одномандатному виборчому окрузі – Алєксєйчук Вікторія Іванівна,2600800159741,current,41730.00,Центральна виборча комісія,21661450,юридична особа
СЛУГА НАРОДУ,"Київ, площа Лесі Українки, 1",59,2019-06-20,188,Грошова застава,Грошова застава,364315,Центральний офіс,40422142,Україна,Грошова застава кандидата у народні депутати України в одномандатному виборчому окрузі – Пивоваров Євген Павлович,2600800159741,current,41730.00,Центральна виборча комісія,21661450,юридична особа
СЛУГА НАРОДУ,"Київ, площа Лесі Українки, 1",59,2019-06-20,189,Грошова застава,Грошова застава,364314,Центральний офіс,40422142,Україна,Грошова застава кандидата у народні депутати України в одномандатному виборчому окрузі – Счисльонок Олександр Васильович,2600800159741,current,41730.00,Центральна виборча комісія,21661450,юридична особа
СЛУГА НАРОДУ,"Київ, площа Лесі Українки, 1",59,2019-06-20,190,Грошова застава,Грошова застава,364313,Центральний офіс,40422142,Україна,Грошова застава кандидата у народні депутати України в одномандатному виборчому окрузі – Любота Дмитро Валерійович,2600800159741,current,41730.00,Центральна виборча комісія,21661450,юридична особа
СЛУГА НАРОДУ,"Київ, площа Лесі Українки, 1",59,2019-06-20,191,Грошова застава,Грошова застава,364312,Центральний офіс,40422142,Україна,Грошова застава кандидата у народні депутати України в одномандатному виборчому окрузі – Літвінов Олександр Миколайович,2600800159741,current,41730.00,Центральна виборча комісія,21661450,юридична особа
СЛУГА НАРОДУ,"Київ, площа Лесі Українки, 1",59,2019-06-20,192,Грошова застава,Грошова застава,364311,Центральний офіс,40422142,Україна,Грошова застава кандидата у народні депутати України в одномандатному виборчому окрузі – Кучер Олексій Володимирович,2600800159741,current,41730.00,Центральна виборча комісія,21661450,юридична особа
СЛУГА НАРОДУ,"Київ, площа Лесі Українки, 1",59,2019-06-20,193,Грошова застава,Грошова застава,364310,Центральний офіс,40422142,Україна,Грошова застава кандидата у народні депутати України в одномандатному виборчому окрузі – Красов Олексій Ігорович,2600800159741,current,41730.00,Центральна виборча комісія,21661450,юридична особа
СЛУГА НАРОДУ,"Київ, площа Лесі Українки, 1",59,2019-06-20,194,Грошова застава,Грошова застава,364309,Центральний офіс,40422142,Україна,Грошова застава кандидата у народні депутати України в одномандатному виборчому окрузі - Микиша Дмитро Сергійович,2600800159741,current,41730.00,Центральна виборча комісія,21661450,юридична особа
СЛУГА НАРОДУ,"Київ, площа Лесі Українки, 1",59,2019-06-20,195,Грошова застава,Грошова застава,364308,Центральний офіс,40422142,Україна,Грошова застава кандидата у народні депутати України в одномандатному виборчому окрузі – Павліш Павло Васильович,2600800159741,current,41730.00,Центральна виборча комісія,21661450,юридична особа
СЛУГА НАРОДУ,"Київ, площа Лесі Українки, 1",59,2019-06-20,196,Грошова застава,Грошова застава,364307,Центральний офіс,40422142,Україна,Грошова застава кандидата у народні депутати України в одномандатному виборчому окрузі – Вагнєр Вікторія Олександрівна,2600800159741,current,41730.00,Центральна виборча комісія,21661450,юридична особа
СЛУГА НАРОДУ,"Київ, площа Лесі Українки, 1",59,2019-06-20,197,Грошова застава,Грошова застава,364306,Центральний офіс,40422142,Україна,Грошова застава кандидата у народні депутати України в одномандатному виборчому окрузі – Іванов Володимир Ілліч,2600800159741,current,41730.00,Центральна виборча комісія,21661450,юридична особа
СЛУГА НАРОДУ,"Київ, площа Лесі Українки, 1",59,2019-06-20,198,Грошова застава,Грошова застава,364305,Центральний офіс,40422142,Україна,Грошова застава кандидата у народні депутати України в одномандатному виборчому окрузі – Ковальов Олексій Іванович,2600800159741,current,41730.00,Центральна виборча комісія,21661450,юридична особа
СЛУГА НАРОДУ,"Київ, площа Лесі Українки, 1",59,2019-06-20,199,Грошова застава,Грошова застава,364304,Центральний офіс,40422142,Україна,Грошова застава кандидата у народні депутати України в одномандатному виборчому окрузі – Стефанчук Микола Олексійович,2600800159741,current,41730.00,Центральна виборча комісія,21661450,юридична особа
СЛУГА НАРОДУ,"Київ, площа Лесі Українки, 1",59,2019-06-20,200,Грошова застава,Грошова застава,364303,Центральний офіс,40422142,Україна,Грошова застава кандидата у народні депутати України в одномандатному виборчому окрузі – Бочкарьова Оксана Валеріївна,2600800159741,current,41730.00,Центральна виборча комісія,21661450,юридична особа
СЛУГА НАРОДУ,"Київ, площа Лесі Українки, 1",59,2019-06-20,201,Грошова застава,Грошова застава,364302,Центральний офіс,40422142,Україна,Грошова застава кандидата у народні депутати України в одномандатному виборчому окрузі – Копанчук Олена Євгенівна,2600800159741,current,41730.00,Центральна виборча комісія,21661450,юридична особа
СЛУГА НАРОДУ,"Київ, площа Лесі Українки, 1",59,2019-06-20,202,Грошова застава,Грошова застава,364301,Центральний офіс,40422142,Україна,Грошова застава кандидата у народні депутати України в одномандатному виборчому окрузі – Потапова Марина Валеріївна,2600800159741,current,41730.00,Центральна виборча комісія,21661450,юридична особа
СЛУГА НАРОДУ,"Київ, площа Лесі Українки, 1",59,2019-06-20,203,Грошова застава,Грошова застава,364300,Центральний офіс,40422142,Україна,Грошова застава кандидата у народні депутати України в одномандатному виборчому окрузі – Гуменюк Василь Васильович,2600800159741,current,41730.00,Центральна виборча комісія,21661450,юридична особа
СЛУГА НАРОДУ,"Київ, площа Лесі Українки, 1",59,2019-06-20,204,Грошова застава,Грошова застава,364299,Центральний офіс,40422142,Україна,Грошова застава кандидата у народні депутати України в одномандатному виборчому окрузі - Марчук Ігор Петрович,2600800159741,current,41730.00,Центральна виборча комісія,21661450,юридична особа
СЛУГА НАРОДУ,"Київ, площа Лесі Українки, 1",59,2019-06-20,205,Грошова застава,Грошова застава,364298,Центральний офіс,40422142,Україна,Грошова застава кандидата у народні депутати України в одномандатному виборчому окрузі - Шпак Любов Олександрівна,2600800159741,current,41730.00,Центральна виборча комісія,21661450,юридична особа
СЛУГА НАРОДУ,"Київ, площа Лесі Українки, 1",59,2019-06-20,206,Грошова застава,Грошова застава,364297,Центральний офіс,40422142,Україна,Грошова застава кандидата у народні депутати України в одномандатному виборчому окрузі – Арсенюк Олег Олексійович,2600800159741,current,41730.00,Центральна виборча комісія,21661450,юридична особа
СЛУГА НАРОДУ,"Київ, площа Лесі Українки, 1",59,2019-06-20,207,Грошова застава,Грошова застава,364296,Центральний офіс,40422142,Україна,Грошова застава кандидата у народні депутати України в одномандатному виборчому окрузі – Стріхарський Андрій Петрович,2600800159741,current,41730.00,Центральна виборча комісія,21661450,юридична особа
СЛУГА НАРОДУ,"Київ, площа Лесі Українки, 1",59,2019-06-20,208,Грошова застава,Грошова застава,364295,Центральний офіс,40422142,Україна,Грошова застава кандидата у народні депутати України в одномандатному виборчому окрузі – Скічко Олександр Олександрович,2600800159741,current,41730.00,Центральна виборча комісія,21661450,юридична особа
СЛУГА НАРОДУ,"Київ, площа Лесі Українки, 1",59,2019-06-20,209,Грошова застава,Грошова застава,364294,Центральний офіс,40422142,Україна,Грошова застава кандидата у народні депутати України в одномандатному виборчому окрузі – Воронцова Олена Володимирівна,2600800159741,current,41730.00,Центральна виборча комісія,21661450,юридична особа
СЛУГА НАРОДУ,"Київ, площа Лесі Українки, 1",59,2019-06-20,210,Грошова застава,Грошова застава,364293,Центральний офіс,40422142,Україна,Грошова застава кандидата у народні депутати України в одномандатному виборчому окрузі - Лис Олена Георгіївна,2600800159741,current,41730.00,Центральна виборча комісія,21661450,юридична особа
СЛУГА НАРОДУ,"Київ, площа Лесі Українки, 1",59,2019-06-20,211,Грошова застава,Грошова застава,364292,Центральний офіс,40422142,Україна,Грошова застава кандидата у народні депутати України в одномандатному виборчому окрузі – Мазурашу Георгій Георгійович,2600800159741,current,41730.00,Центральна виборча комісія,21661450,юридична особа
СЛУГА НАРОДУ,"Київ, площа Лесі Українки, 1",59,2019-06-20,212,Грошова застава,Грошова застава,364291,Центральний офіс,40422142,Україна,Грошова застава кандидата у народні депутати України в одномандатному виборчому окрузі – Семінський Олег Валерійович,2600800159741,current,41730.00,Центральна виборча комісія,21661450,юридична особа
СЛУГА НАРОДУ,"Київ, площа Лесі Українки, 1",59,2019-06-20,213,Грошова застава,Грошова застава,364290,Центральний офіс,40422142,Україна,Грошова застава кандидата у народні депутати України в одномандатному виборчому окрузі - Зуєв Максим Сергійович,2600800159741,current,41730.00,Центральна виборча комісія,21661450,юридична особа
СЛУГА НАРОДУ,"Київ, площа Лесі Українки, 1",59,2019-06-20,214,Грошова застава,Грошова застава,364289,Центральний офіс,40422142,Україна,Грошова застава кандидата у народні депутати України в одномандатному виборчому окрузі – Панченко Антон Олександрович,2600800159741,current,41730.00,Центральна виборча комісія,21661450,юридична особа
СЛУГА НАРОДУ,"Київ, площа Лесі Українки, 1",59,2019-06-20,215,Грошова застава,Грошова застава,364288,Центральний офіс,40422142,Україна,Грошова застава кандидата у народні депутати України в одномандатному виборчому окрузі - Зуб Валерій Олексійович,2600800159741,current,41730.00,Центральна виборча комісія,21661450,юридична особа
СЛУГА НАРОДУ,"Київ, площа Лесі Українки, 1",59,2019-06-20,216,Грошова застава,Грошова застава,364287,Центральний офіс,40422142,Україна,Грошова застава кандидата у народні депутати України в одномандатному виборчому окрузі – Пахомов Дмитро Анатолійович,2600800159741,current,41730.00,Центральна виборча комісія,21661450,юридична особа
СЛУГА НАРОДУ,"Київ, площа Лесі Українки, 1",59,2019-06-20,217,Грошова застава,Грошова застава,364286,Центральний офіс,40422142,Україна,Грошова застава кандидата у народні депутати України в одномандатному виборчому окрузі – Юрченко Олександр Миколайович,2600800159741,current,41730.00,Центральна виборча комісія,21661450,юридична особа
СЛУГА НАРОДУ,"Київ, площа Лесі Українки, 1",59,2019-06-20,218,Грошова застава,Грошова застава,364285,Центральний офіс,40422142,Україна,Грошова застава кандидата у народні депутати України в одномандатному виборчому окрузі – Перебийніс Максим Вікторович,2600800159741,current,41730.00,Центральна виборча комісія,21661450,юридична особа
СЛУГА НАРОДУ,"Київ, площа Лесі Українки, 1",59,2019-06-20,219,Грошова застава,Грошова застава,364284,Центральний офіс,40422142,Україна,Грошова застава кандидата у народні депутати України в одномандатному виборчому окрузі – Дубнов Артем Васильович,2600800159741,current,41730.00,Центральна виборча комісія,21661450,юридична особа
СЛУГА НАРОДУ,"Київ, площа Лесі Українки, 1",59,2019-06-20,220,Грошова застава,Грошова застава,364283,Центральний офіс,40422142,Україна,Грошова застава кандидата у народні депутати України в одномандатному виборчому окрузі - Швець Сергій Федорович,2600800159741,current,41730.00,Центральна виборча комісія,21661450,юридична особа
СЛУГА НАРОДУ,"Київ, площа Лесі Українки, 1",59,2019-06-20,221,Грошова застава,Грошова застава,364282,Центральний офіс,40422142,Україна,Грошова застава кандидата у народні депутати України в одномандатному виборчому окрузі – Яременко Богдан Васильович,2600800159741,current,41730.00,Центральна виборча комісія,21661450,юридична особа
СЛУГА НАРОДУ,"Київ, площа Лесі Українки, 1",59,2019-06-20,222,Грошова застава,Грошова застава,364281,Центральний офіс,40422142,Україна,Грошова застава кандидата у народні депутати України в одномандатному виборчому окрузі – Забуранна Леся Валентинівна,2600800159741,current,41730.00,Центральна виборча комісія,21661450,юридична особа
СЛУГА НАРОДУ,"Київ, площа Лесі Українки, 1",59,2019-06-20,223,Грошова застава,Грошова застава,364280,Центральний офіс,40422142,Україна,Грошова застава кандидата у народні депутати України в одномандатному виборчому окрузі – Безугла Марʼяна Володимирівна,2600800159741,current,41730.00,Центральна виборча комісія,21661450,юридична особа
СЛУГА НАРОДУ,"Київ, площа Лесі Українки, 1",59,2019-06-20,224,Грошова застава,Грошова застава,364279,Центральний офіс,40422142,Україна,Грошова застава кандидата у народні депутати України в одномандатному виборчому окрузі - Гурін Дмитро Олександрович,2600800159741,current,41730.00,Центральна виборча комісія,21661450,юридична особа
СЛУГА НАРОДУ,"Київ, площа Лесі Українки, 1",59,2019-06-20,225,Грошова застава,Грошова застава,364278,Центральний офіс,40422142,Україна,Грошова застава кандидата у народні депутати України в одномандатному виборчому окрузі – Тищенко Микола Миколайович,2600800159741,current,41730.00,Центральна виборча комісія,21661450,юридична особа
СЛУГА НАРОДУ,"Київ, площа Лесі Українки, 1",59,2019-06-20,226,Грошова застава,Грошова застава,364277,Центральний офіс,40422142,Україна,Грошова застава кандидата у народні депутати України в одномандатному виборчому окрузі - Бондар Ганна Вячеславівна,2600800159741,current,41730.00,Центральна виборча комісія,21661450,юридична особа
СЛУГА НАРОДУ,"Київ, площа Лесі Українки, 1",59,2019-06-20,227,Грошова застава,Грошова застава,364276,Центральний офіс,40422142,Україна,Грошова застава кандидата у народні депутати України в одномандатному виборчому окрузі -Пуртова Анна Анатоліївна,2600800159741,current,41730.00,Центральна виборча комісія,21661450,юридична особа
СЛУГА НАРОДУ,"Київ, площа Лесі Українки, 1",59,2019-06-20,228,Грошова застава,Грошова застава,364275,Центральний офіс,40422142,Україна,Грошова застава кандидата у народні депутати України в одномандатному виборчому окрузі – Грищук Роман Павлович,2600800159741,current,41730.00,Центральна виборча комісія,21661450,юридична особа
СЛУГА НАРОДУ,"Київ, площа Лесі Українки, 1",59,2019-06-20,229,Грошова застава,Грошова застава,364274,Центральний офіс,40422142,Україна,Грошова застава кандидата у народні депутати України в одномандатному виборчому окрузі – Буймістер Людмила Анатоліївна,2600800159741,current,41730.00,Центральна виборча комісія,21661450,юридична особа
СЛУГА НАРОДУ,"Київ, площа Лесі Українки, 1",59,2019-06-20,230,Грошова застава,Грошова застава,364273,Центральний офіс,40422142,Україна,Грошова застава кандидата у народні депутати України в одномандатному виборчому окрузі – Коваль Олександр Леонідович,2600800159741,current,41730.00,Центральна виборча комісія,21661450,юридична особа
СЛУГА НАРОДУ,"Київ, площа Лесі Українки, 1",59,2019-06-20,231,Грошова застава,Грошова застава,364272,Центральний офіс,40422142,Україна,Грошова застава кандидата у народні депутати України в одномандатному виборчому окрузі – Мисковець Назар Сергійович,2600800159741,current,41730.00,Центральна виборча комісія,21661450,юридична особа
СЛУГА НАРОДУ,"Київ, площа Лесі Українки, 1",59,2019-06-20,232,Грошова застава,Грошова застава,364271,Центральний офіс,40422142,Україна,Грошова застава кандидата у народні депутати України в одномандатному виборчому окрузі - Лічман Ганна Василівна,2600800159741,current,41730.00,Центральна виборча комісія,21661450,юридична особа
СЛУГА НАРОДУ,"Київ, площа Лесі Українки, 1",59,2019-06-20,233,Грошова застава,Грошова застава,364270,Центральний офіс,40422142,Україна,Грошова застава кандидата у народні депутати України в одномандатному виборчому окрузі – Медяник Вʼячеслав Анатолійович,2600800159741,current,41730.00,Центральна виборча комісія,21661450,юридична особа
СЛУГА НАРОДУ,"Київ, площа Лесі Українки, 1",59,2019-06-20,234,Грошова застава,Грошова застава,364269,Центральний офіс,40422142,Україна,Грошова застава кандидата у народні депутати України в одномандатному виборчому окрузі – Салгалов Вячеслав Сергійович,2600800159741,current,41730.00,Центральна виборча комісія,21661450,юридична особа
СЛУГА НАРОДУ,"Київ, площа Лесі Українки, 1",59,2019-06-20,235,Грошова застава,Грошова застава,364268,Центральний офіс,40422142,Україна,Грошова застава кандидата у народні депутати України в одномандатному виборчому окрузі – Романюк Віктор Валерійович,2600800159741,current,41730.00,Центральна виборча комісія,21661450,юридична особа
СЛУГА НАРОДУ,"Київ, площа Лесі Українки, 1",59,2019-06-20,236,Грошова застава,Грошова застава,364267,Центральний офіс,40422142,Україна,Грошова застава кандидата у народні депутати України в одномандатному виборчому окрузі – Сігачов Вячеслав Валерійович,2600800159741,current,41730.00,Центральна виборча комісія,21661450,юридична особа
СЛУГА НАРОДУ,"Київ, площа Лесі Українки, 1",59,2019-06-20,237,Грошова застава,Грошова застава,364266,Центральний офіс,40422142,Україна,Грошова застава кандидата у народні депутати України в одномандатному виборчому окрузі – Грищенко Тетяна Миколаївна,2600800159741,current,41730.00,Центральна виборча комісія,21661450,юридична особа
СЛУГА НАРОДУ,"Київ, площа Лесі Українки, 1",59,2019-06-20,238,Грошова застава,Грошова застава,364265,Центральний офіс,40422142,Україна,Грошова застава кандидата у народні депутати України в одномандатному виборчому окрузі - Носа Вадим Іванович,2600800159741,current,41730.00,Центральна виборча комісія,21661450,юридична особа
СЛУГА НАРОДУ,"Київ, площа Лесі Українки, 1",59,2019-06-20,239,Грошова застава,Грошова застава,364264,Центральний офіс,40422142,Україна,Грошова застава кандидата у народні депутати України в одномандатному виборчому окрузі - Кобзар Сергій Олегович,2600800159741,current,41730.00,Центральна виборча комісія,21661450,юридична особа
СЛУГА НАРОДУ,"Київ, площа Лесі Українки, 1",59,2019-06-20,240,Грошова застава,Грошова застава,364263,Центральний офіс,40422142,Україна,Грошова застава кандидата у народні депутати України в одномандатному виборчому окрузі - Голяк Леся Володимирівна,2600800159741,current,41730.00,Центральна виборча комісія,21661450,юридична особа
СЛУГА НАРОДУ,"Київ, площа Лесі Українки, 1",59,2019-06-20,241,Грошова застава,Грошова застава,364262,Центральний офіс,40422142,Україна,Грошова застава кандидата у народні депутати України в одномандатному виборчому окрузі – Наконечний Володимир Михайлович,2600800159741,current,41730.00,Центральна виборча комісія,21661450,юридична особа
СЛУГА НАРОДУ,"Київ, площа Лесі Українки, 1",59,2019-06-20,242,Грошова застава,Грошова застава,364261,Центральний офіс,40422142,Україна,Грошова застава кандидата у народні депутати України в одномандатному виборчому окрузі – Пасічний Олександр Станіславович,2600800159741,current,41730.00,Центральна виборча комісія,21661450,юридична особа
СЛУГА НАРОДУ,"Київ, площа Лесі Українки, 1",59,2019-06-20,243,Грошова застава,Грошова застава,364260,Центральний офіс,40422142,Україна,Грошова застава кандидата у народні депутати України в одномандатному виборчому окрузі – Гайду Олександр Васильович,2600800159741,current,41730.00,Центральна виборча комісія,21661450,юридична особа
СЛУГА НАРОДУ,"Київ, площа Лесі Українки, 1",59,2019-06-20,244,Грошова застава,Грошова застава,364259,Центральний офіс,40422142,Україна,Грошова застава кандидата у народні депутати України в одномандатному виборчому окрузі - Копитін Ігор Володимирович,2600800159741,current,41730.00,Центральна виборча комісія,21661450,юридична особа
СЛУГА НАРОДУ,"Київ, площа Лесі Українки, 1",59,2019-06-20,245,Грошова застава,Грошова застава,364258,Центральний офіс,40422142,Україна,Грошова застава кандидата у народні депутати України в одномандатному виборчому окрузі – Ляшенко Анастасія Олексіївна,2600800159741,current,41730.00,Центральна виборча комісія,21661450,юридична особа
СЛУГА НАРОДУ,"Київ, площа Лесі Українки, 1",59,2019-06-20,246,Грошова застава,Грошова застава,364257,Центральний офіс,40422142,Україна,Грошова застава кандидата у народні депутати України в одномандатному виборчому окрузі – Іванісов Роман Валерійович,2600800159741,current,41730.00,Центральна виборча комісія,21661450,юридична особа
СЛУГА НАРОДУ,"Київ, площа Лесі Українки, 1",59,2019-06-20,247,Грошова застава,Грошова застава,364256,Центральний офіс,40422142,Україна,Грошова застава кандидата у народні депутати України в одномандатному виборчому окрузі – Задорожній Микола Миколайович,2600800159741,current,41730.00,Центральна виборча комісія,21661450,юридична особа
СЛУГА НАРОДУ,"Київ, площа Лесі Українки, 1",59,2019-06-20,248,Грошова застава,Грошова застава,364255,Центральний офіс,40422142,Україна,Грошова застава кандидата у народні депутати України в одномандатному виборчому окрузі – Репілевський Данило Едуардович,2600800159741,current,41730.00,Центральна виборча комісія,21661450,юридична особа
СЛУГА НАРОДУ,"Київ, площа Лесі Українки, 1",59,2019-06-20,249,Грошова застава,Грошова застава,364254,Центральний офіс,40422142,Україна,Грошова застава кандидата у народні депутати України в одномандатному виборчому окрузі - Жмеренецький Олексій Сергійович,2600800159741,current,41730.00,Центральна виборча комісія,21661450,юридична особа
СЛУГА НАРОДУ,"Київ, площа Лесі Українки, 1",59,2019-06-20,250,Грошова застава,Грошова застава,364253,Центральний офіс,40422142,Україна,Грошова застава кандидата у народні депутати України в одномандатному виборчому окрузі - Дʼяченко Наталія Олександрівна,2600800159741,current,41730.00,Центральна виборча комісія,21661450,юридична особа
СЛУГА НАРОДУ,"Київ, площа Лесі Українки, 1",59,2019-06-20,251,Грошова застава,Грошова застава,364252,Центральний офіс,40422142,Україна,Грошова застава кандидата у народні депутати України в одномандатному виборчому окрузі – Заремський Максим Валентинович,2600800159741,current,41730.00,Центральна виборча комісія,21661450,юридична особа
СЛУГА НАРОДУ,"Київ, площа Лесі Українки, 1",59,2019-06-20,252,Грошова застава,Грошова застава,364251,Центральний офіс,40422142,Україна,Грошова застава кандидата у народні депутати України в одномандатному виборчому окрузі – Божик Валерій Іванович,2600800159741,current,41730.00,Центральна виборча комісія,21661450,юридична особа
СЛУГА НАРОДУ,"Київ, площа Лесі Українки, 1",59,2019-06-20,253,Грошова застава,Грошова застава,364250,Центральний офіс,40422142,Україна,Грошова застава кандидата у народні депутати України в одномандатному виборчому окрузі – Поляков Антон Едуардович,2600800159741,current,41730.00,Центральна виборча комісія,21661450,юридична особа
СЛУГА НАРОДУ,"Київ, площа Лесі Українки, 1",59,2019-06-20,255,Грошова застава,Грошова застава,364249,Центральний офіс,40422142,Україна,Грошова застава кандидата у народні депутати України в одномандатному виборчому окрузі – Нагорняк Сергій Володимирович,2600800159741,current,41730.00,Центральна виборча комісія,21661450,юридична особа
СЛУГА НАРОДУ,"Київ, площа Лесі Українки, 1",59,2019-06-20,256,Грошова застава,Грошова застава,364248,Центральний офіс,40422142,Україна,Грошова застава кандидата у народні депутати України в одномандатному виборчому окрузі - Деревʼяго Вероніка Сергіївна,2600800159741,current,41730.00,Центральна виборча комісія,21661450,юридична особа
СЛУГА НАРОДУ,"Київ, площа Лесі Українки, 1",59,2019-06-20,257,Грошова застава,Грошова застава,364247,Центральний офіс,40422142,Україна,Грошова застава кандидата у народні депутати України в одномандатному виборчому окрузі – Мангер Михайло Омелянович,2600800159741,current,41730.00,Центральна виборча комісія,21661450,юридична особа
СЛУГА НАРОДУ,"Київ, площа Лесі Українки, 1",59,2019-06-20,55,Грошова застава,Грошова застава,364246,Центральний офіс,40422142,Україна,Грошова застава кандидата у народні депутати України в одномандатному виборчому окрузі - Пашковський Максим Ігорович,2600800159741,current,41730.00,Центральна виборча комісія,21661450,юридична особа
СЛУГА НАРОДУ,"Київ, площа Лесі Українки, 1",59,2019-06-20,56,Грошова застава,Грошова застава,364245,Центральний офіс,40422142,Україна,Грошова застава кандидата у народні депутати України в одномандатному виборчому окрузі – Драбовський Анатолій Григорович,2600800159741,current,41730.00,Центральна виборча комісія,21661450,юридична особа
СЛУГА НАРОДУ,"Київ, площа Лесі Українки, 1",59,2019-06-20,57,Грошова застава,Грошова застава,364244,Центральний офіс,40422142,Україна,Грошова застава кандидата у народні депутати України в одномандатному виборчому окрузі – Максименко Юрій Володимирович,2600800159741,current,41730.00,Центральна виборча комісія,21661450,юридична особа
СЛУГА НАРОДУ,"Київ, площа Лесі Українки, 1",59,2019-06-20,58,Грошова застава,Грошова застава,364243,Центральний офіс,40422142,Україна,Грошова застава кандидата у народні депутати України в одномандатному виборчому окрузі - Борзова Ірина Наумівна,2600800159741,current,41730.00,Центральна виборча комісія,21661450,юридична особа
СЛУГА НАРОДУ,"Київ, площа Лесі Українки, 1",59,2019-06-20,59,Грошова застава,Грошова застава,364242,Центральний офіс,40422142,Україна,Грошова застава кандидата у народні депутати України в одномандатному виборчому окрузі – Пращук Віталій Юрійович,2600800159741,current,41730.00,Центральна виборча комісія,21661450,юридична особа
СЛУГА НАРОДУ,"Київ, площа Лесі Українки, 1",59,2019-06-20,60,Грошова застава,Грошова застава,364241,Центральний офіс,40422142,Україна,Грошова застава кандидата у народні депутати України в одномандатному виборчому окрузі - Томляк Таїса Сергіївна,2600800159741,current,41730.00,Центральна виборча комісія,21661450,юридична особа
СЛУГА НАРОДУ,"Київ, площа Лесі Українки, 1",59,2019-06-20,61,Грошова застава,Грошова застава,364240,Центральний офіс,40422142,Україна,Грошова застава кандидата у народні депутати України в одномандатному виборчому окрузі - Васілі Євген Ігорович,2600800159741,current,41730.00,Центральна виборча комісія,21661450,юридична особа
СЛУГА НАРОДУ,"Київ, площа Лесі Українки, 1",59,2019-06-20,62,Грошова застава,Грошова застава,364239,Центральний офіс,40422142,Україна,Грошова застава кандидата у народні депутати України в одномандатному виборчому окрузі – Довгань Павло Олегович,2600800159741,current,41730.00,Центральна виборча комісія,21661450,юридична особа
СЛУГА НАРОДУ,"Київ, площа Лесі Українки, 1",59,2019-06-20,63,Грошова застава,Грошова застава,364238,Центральний офіс,40422142,Україна,Грошова застава кандидата у народні депутати України в одномандатному виборчому окрузі - Сівохо СергійАнатолійович,2600800159741,current,41730.00,Центральна виборча комісія,21661450,юридична особа
СЛУГА НАРОДУ,"Київ, площа Лесі Українки, 1",59,2019-06-20,64,Грошова застава,Грошова застава,364237,Центральний офіс,40422142,Україна,Грошова застава кандидата у народні депутати України в одномандатному виборчому окрузі – Рубльов Вячеслав Володимирович,2600800159741,current,41730.00,Центральна виборча комісія,21661450,юридична особа
СЛУГА НАРОДУ,"Київ, площа Лесі Українки, 1",59,2019-06-20,65,Грошова застава,Грошова застава,364236,Центральний офіс,40422142,Україна,Грошова застава кандидата у народні депутати України в одномандатному виборчому окрузі - Лев Андрій Миколайович,2600800159741,current,41730.00,Центральна виборча комісія,21661450,юридична особа
СЛУГА НАРОДУ,"Київ, площа Лесі Українки, 1",59,2019-06-20,66,Грошова застава,Грошова застава,364235,Центральний офіс,40422142,Україна,Грошова застава кандидата у народні депутати України в одномандатному виборчому окрузі – Пісачук Сергій Васильович,2600800159741,current,41730.00,Центральна виборча комісія,21661450,юридична особа
СЛУГА НАРОДУ,"Київ, площа Лесі Українки, 1",59,2019-06-20,67,Грошова застава,Грошова застава,364234,Центральний офіс,40422142,Україна,Грошова застава кандидата у народні депутати України в одномандатному виборчому окрузі – Приймачук Максим Петрович,2600800159741,current,41730.00,Центральна виборча комісія,21661450,юридична особа
СЛУГА НАРОДУ,"Київ, площа Лесі Українки, 1",59,2019-06-20,68,Грошова застава,Грошова застава,364233,Центральний офіс,40422142,Україна,Грошова застава кандидата у народні депутати України в одномандатному виборчому окрузі – Кисилевський Дмитро Давидович,2600800159741,current,41730.00,Центральна виборча комісія,21661450,юридична особа
СЛУГА НАРОДУ,"Київ, площа Лесі Українки, 1",59,2019-06-20,69,Грошова застава,Грошова застава,364232,Центральний офіс,40422142,Україна,Грошова застава кандидата у народні депутати України в одномандатному виборчому окрузі – Бужанський Максим Аркадійович,2600800159741,current,41730.00,Центральна виборча комісія,21661450,юридична особа
СЛУГА НАРОДУ,"Київ, площа Лесі Українки, 1",59,2019-06-20,70,Грошова застава,Грошова застава,364231,Центральний офіс,40422142,Україна,Грошова застава кандидата у народні депутати України в одномандатному виборчому окрузі – Нестеренко Кирилл Олександрович,2600800159741,current,41730.00,Центральна виборча комісія,21661450,юридична особа
СЛУГА НАРОДУ,"Київ, площа Лесі Українки, 1",59,2019-06-20,71,Грошова застава,Грошова застава,364230,Центральний офіс,40422142,Україна,Грошова застава кандидата у народні депутати України в одномандатному виборчому окрузі - Мисягін Юрій Михайлович,2600800159741,current,41730.00,Центральна виборча комісія,21661450,юридична особа
СЛУГА НАРОДУ,"Київ, площа Лесі Українки, 1",59,2019-06-20,72,Грошова застава,Грошова застава,364229,Центральний офіс,40422142,Україна,Грошова застава кандидата у народні депутати України в одномандатному виборчому окрузі – Демченко Сергій Олексійович,2600800159741,current,41730.00,Центральна виборча комісія,21661450,юридична особа
СЛУГА НАРОДУ,"Київ, площа Лесі Українки, 1",59,2019-06-20,73,Грошова застава,Грошова застава,364228,Центральний офіс,40422142,Україна,Грошова застава кандидата у народні депутати України в одномандатному виборчому окрузі – Вощанов Родіон Ігорович,2600800159741,current,41730.00,Центральна виборча комісія,21661450,юридична особа
СЛУГА НАРОДУ,"Київ, площа Лесі Українки, 1",59,2019-06-20,74,Грошова застава,Грошова застава,364227,Центральний офіс,40422142,Україна,Грошова застава кандидата у народні депутати України в одномандатному виборчому окрузі –Захарченко Володимир Васильович,2600800159741,current,41730.00,Центральна виборча комісія,21661450,юридична особа
СЛУГА НАРОДУ,"Київ, площа Лесі Українки, 1",59,2019-06-20,75,Грошова застава,Грошова застава,364226,Центральний офіс,40422142,Україна,Грошова застава кандидата у народні депутати України в одномандатному виборчому окрузі – Криворучкіна Олена Володимирівна,2600800159741,current,41730.00,Центральна виборча комісія,21661450,юридична особа
СЛУГА НАРОДУ,"Київ, площа Лесі Українки, 1",59,2019-06-20,76,Грошова застава,Грошова застава,364225,Центральний офіс,40422142,Україна,Грошова застава кандидата у народні депутати України в одномандатному виборчому окрузі – Корявченков Юрій Валерійович,2600800159741,current,41730.00,Центральна виборча комісія,21661450,юридична особа
СЛУГА НАРОДУ,"Київ, площа Лесі Українки, 1",59,2019-06-20,77,Грошова застава,Грошова застава,364224,Центральний офіс,40422142,Україна,Грошова застава кандидата у народні депутати України в одномандатному виборчому окрузі – Чорний Дмитро Сергійович,2600800159741,current,41730.00,Центральна виборча комісія,21661450,юридична особа
СЛУГА НАРОДУ,"Київ, площа Лесі Українки, 1",59,2019-06-20,78,Грошова застава,Грошова застава,364223,Центральний офіс,40422142,Україна,Грошова застава кандидата у народні депутати України в одномандатному виборчому окрузі - Герман Денис Вадимович,2600800159741,current,41730.00,Центральна виборча комісія,21661450,юридична особа
СЛУГА НАРОДУ,"Київ, площа Лесі Українки, 1",59,2019-06-20,79,Грошова застава,Грошова застава,364222,Центральний офіс,40422142,Україна,Грошова застава кандидата у народні депутати України в одномандатному виборчому окрузі – Каптєлов Роман Володимирович,2600800159741,current,41730.00,Центральна виборча комісія,21661450,юридична особа
СЛУГА НАРОДУ,"Київ, площа Лесі Українки, 1",59,2019-06-20,80,Грошова застава,Грошова застава,364221,Центральний офіс,40422142,Україна,Грошова застава кандидата у народні депутати України в одномандатному виборчому окрузі – Фартушний Ігор Іванович,2600800159741,current,41730.00,Центральна виборча комісія,21661450,юридична особа
СЛУГА НАРОДУ,"Київ, площа Лесі Українки, 1",59,2019-06-20,81,Грошова застава,Грошова застава,364220,Центральний офіс,40422142,Україна,Грошова застава кандидата у народні депутати України в одномандатному виборчому окрузі – Бородін Владислав Валерійович,2600800159741,current,41730.00,Центральна виборча комісія,21661450,юридична особа
СЛУГА НАРОДУ,"Київ, площа Лесі Українки, 1",59,2019-06-20,82,Грошова застава,Грошова застава,364219,Центральний офіс,40422142,Україна,Грошова застава кандидата у народні депутати України в одномандатному виборчому окрузі – Северин Сергій Сергійович,2600800159741,current,41730.00,Центральна виборча комісія,21661450,юридична особа
СЛУГА НАРОДУ,"Київ, площа Лесі Українки, 1",59,2019-06-20,83,Грошова застава,Грошова застава,364218,Центральний офіс,40422142,Україна,Грошова застава кандидата у народні депутати України в одномандатному виборчому окрузі – Трухін Олександр Миколайович,2600800159741,current,41730.00,Центральна виборча комісія,21661450,юридична особа
СЛУГА НАРОДУ,"Київ, площа Лесі Українки, 1",59,2019-06-20,84,Грошова застава,Грошова застава,364217,Центральний офіс,40422142,Україна,Грошова застава кандидата у народні депутати України в одномандатному виборчому окрузі – Кюрджиєв Георгій Тимофійович,2600800159741,current,41730.00,Центральна виборча комісія,21661450,юридична особа
СЛУГА НАРОДУ,"Київ, площа Лесі Українки, 1",59,2019-06-20,85,Грошова застава,Грошова застава,364216,Центральний офіс,40422142,Україна,Грошова застава кандидата у народні депутати України в одномандатному виборчому окрузі – Патлачук Василь Никифорович,2600800159741,current,41730.00,Центральна виборча комісія,21661450,юридична особа
СЛУГА НАРОДУ,"Київ, площа Лесі Українки, 1",59,2019-06-20,86,Грошова застава,Грошова застава,364215,Центральний офіс,40422142,Україна,Грошова застава кандидата у народні депутати України в одномандатному виборчому окрузі – Радченко Дмитро Андрійович,2600800159741,current,41730.00,Центральна виборча комісія,21661450,юридична особа
СЛУГА НАРОДУ,"Київ, площа Лесі Українки, 1",59,2019-06-20,88,Грошова застава,Грошова застава,364214,Центральний офіс,40422142,Україна,Грошова застава кандидата у народні депутати України в одномандатному виборчому окрузі – Романцова Тетяна Володимирівна,2600800159741,current,41730.00,Центральна виборча комісія,21661450,юридична особа
СЛУГА НАРОДУ,"Київ, площа Лесі Українки, 1",59,2019-06-20,89,Грошова застава,Грошова застава,364213,Центральний офіс,40422142,Україна,Грошова застава кандидата у народні депутати України в одномандатному виборчому окрузі - Губа Сергій Васильович,2600800159741,current,41730.00,Центральна виборча комісія,21661450,юридична особа
СЛУГА НАРОДУ,"Київ, площа Лесі Українки, 1",59,2019-06-20,90,Грошова застава,Грошова застава,364212,Центральний офіс,40422142,Україна,Грошова застава кандидата у народні депутати України в одномандатному виборчому окрузі – Цибань Наталія Володимирівна,2600800159741,current,41730.00,Центральна виборча комісія,21661450,юридична особа
СЛУГА НАРОДУ,"Київ, площа Лесі Українки, 1",59,2019-06-20,91,Грошова застава,Грошова застава,364211,Центральний офіс,40422142,Україна,Грошова застава кандидата у народні депутати України в одномандатному виборчому окрузі – Безуглий Олександр Миколайович,2600800159741,current,41730.00,Центральна виборча комісія,21661450,юридична особа
СЛУГА НАРОДУ,"Київ, площа Лесі Українки, 1",59,2019-06-20,92,Грошова застава,Грошова застава,364210,Центральний офіс,40422142,Україна,Грошова застава кандидата у народні депутати України в одномандатному виборчому окрузі – Герасименко Ігор Леонідович,2600800159741,current,41730.00,Центральна виборча комісія,21661450,юридична особа
СЛУГА НАРОДУ,"Київ, площа Лесі Українки, 1",59,2019-06-20,93,Грошова застава,Грошова застава,364209,Центральний офіс,40422142,Україна,Грошова застава кандидата у народні депутати України в одномандатному виборчому окрузі - Кицак Богдан Вікторович,2600800159741,current,41730.00,Центральна виборча комісія,21661450,юридична особа
СЛУГА НАРОДУ,"Київ, площа Лесі Українки, 1",59,2019-06-20,94,Грошова застава,Грошова застава,364208,Центральний офіс,40422142,Україна,Грошова застава кандидата у народні депутати України в одномандатному виборчому окрузі – Костюк Дмитро Сергійович,2600800159741,current,41730.00,Центральна виборча комісія,21661450,юридична особа
СЛУГА НАРОДУ,"Київ, площа Лесі Українки, 1",59,2019-06-20,95,Грошова застава,Грошова застава,364207,Центральний офіс,40422142,Україна,Грошова застава кандидата у народні депутати України в одномандатному виборчому окрузі – Кузьміних Сергій Володимирович,2600800159741,current,41730.00,Центральна виборча комісія,21661450,юридична особа
СЛУГА НАРОДУ,"Київ, площа Лесі Українки, 1",59,2019-06-20,96,Грошова застава,Грошова застава,364206,Центральний офіс,40422142,Україна,Грошова застава кандидата у народні депутати України в одномандатному виборчому окрузі – Пекарь Олександр Вікторович,2600800159741,current,41730.00,Центральна виборча комісія,21661450,юридична особа
СЛУГА НАРОДУ,"Київ, площа Лесі Українки, 1",59,2019-06-20,97,Грошова застава,Грошова застава,364205,Центральний офіс,40422142,Україна,Грошова застава кандидата у народні депутати України в одномандатному виборчому окрузі - Токар Едгар Володимирович,2600800159741,current,41730.00,Центральна виборча комісія,21661450,юридична особа
СЛУГА НАРОДУ,"Київ, площа Лесі Українки, 1",59,2019-06-20,98,Грошова застава,Грошова застава,364204,Центральний офіс,40422142,Україна,Грошова застава кандидата у народні депутати України в одномандатному виборчому окрузі – Лаба Михайло Михайлович,2600800159741,current,41730.00,Центральна виборча комісія,21661450,юридична особа
СЛУГА НАРОДУ,"Київ, площа Лесі Українки, 1",59,2019-06-20,99,Грошова застава,Грошова застава,364203,Центральний офіс,40422142,Україна,Грошова застава кандидата у народні депутати України в одномандатному виборчому окрузі - Грабар Сергій Володимирович,2600800159741,current,41730.00,Центральна виборча комісія,21661450,юридична особа
СЛУГА НАРОДУ,,76,2019-06-18,87,Послуги зв’язку,Послуги зв’язку,364202,Центральний офіс,40422142,Україна,"Доплата за послугу забезп. світловим обладнанням (договір No060619 від 06.06.2019), згідно з рахунком No69 від 06.06.2019 року, у тому числі ПДВ 20%",2600800159741,current,0.80,"ТОВ ""МЕДІАЛАЙТ""",38013409,юридична особа
СЛУГА НАРОДУ,"Київ, Куренівський провулок, 19/5",70,2019-06-18,7040,Банківські послуги,Інші витрати,364201,Центральний офіс,40422142,Україна,Сплата за проведення платежів по системі Клієнт-Банк зг. Договору No59741/1 вiд 01.02.2018 за період з 13.06.2019 по 13.06.2019. Без ПДВ.,2600800159741,current,2.00,"ПАТ КБ ""Глобус""",35591059,юридична особа
СЛУГА НАРОДУ,"Київ, Куренівський провулок, 19/5",70,2019-06-18,5850,Банківські послуги,Інші витрати,364200,Центральний офіс,40422142,Україна,Оплата за проведення платежів по системі Клієнт-Банк зг. Договору No59741/1 вiд 01.02.2018 за період з 18.06.2019 по 18.06.2019. Без ПДВ.,2600800159741,current,4.00,"ПАТ КБ ""Глобус""",35591059,юридична особа
СЛУГА НАРОДУ,"Київ, площа Лесі Українки, 1",59,2019-06-18,54,Грошова застава,Грошова застава,364199,Центральний офіс,40422142,Україна,"Грошова застава кандидатів у народні депутати України у загальнодержавному окрузі, висунутих ПОЛІТИЧНОЮ ПАРТІЄЮ ""СЛУГА НАРОДУ""",2600800159741,current,4173000.00,Центральна виборча комісія,21661450,юридична особа
СЛУГА НАРОДУ,"Київ, вулиця Милославська, 12, 52",69,2019-06-13,53,Організація заходів та інші організаційні послуги,Організація заходів та інші організаційні послуги,364198,Центральний офіс,40422142,Україна,"Оплата за технічне забезпечення Заходу ""Зʼїзд партії"" (договір No190604 від 03.06.2019) згідно з рахунком від 06.06.2019 No156, в тому числі ПДВ 20%",2600800159741,current,48240.00,"ТОВ ""Операторські технології.ЮА""",38997361,юридична особа
СЛУГА НАРОДУ,"Київ, Куренівський провулок, 19/5",70,2019-06-12,6021,Банківські послуги,Інші витрати,364197,Центральний офіс,40422142,Україна,Оплата за проведення платежів по системі Клієнт-Банк зг. Договору No59741/1 вiд 01.02.2018 за період з 12.06.2019 по 12.06.2019. Без ПДВ.,2600800159741,current,4.00,"ПАТ КБ ""Глобус""",35591059,юридична особа
СЛУГА НАРОДУ,"Київ, вулиця Милославська, 12, 52",69,2019-06-12,52,Організація заходів та інші організаційні послуги,Організація заходів та інші організаційні послуги,364196,Центральний офіс,40422142,Україна,"Оплата за друк матеріалів для заходу ""Зʼїзд партії"" згідно з рахунком NoМ-00000245 від 11.06.2019, у тому числі ПДВ 20%",2600800159741,current,25280.28,"ТОВ ""Масив А.І.""",36346731,юридична особа
СЛУГА НАРОДУ,"Київ, вулиця Деревообробна, 5",69,2019-06-12,51,Організація заходів та інші організаційні послуги,Організація заходів та інші організаційні послуги,364195,Центральний офіс,40422142,Україна,"Оплата за послуги під час проведення заходу ""зʼїзд партії"" (дог. No06/06/2019 від 06.06.2019), згідно з рахунком No829 від 10.06.2019 року, у тому числі ПДВ 20%",2600800159741,current,140470.80,"ТОВ ""Старваген""",37412621,юридична особа
СЛУГА НАРОДУ,"Київ, Куренівський провулок, 19/5",70,2019-06-11,6621,Банківські послуги,Інші витрати,364194,Центральний офіс,40422142,Україна,Оплата за проведення платежів по системі Клієнт-Банк зг. Договору No59741/1 вiд 01.02.2018 за період з 11.06.2019 по 11.06.2019. Без ПДВ.,2600800159741,current,2.00,"ПАТ КБ ""Глобус""",35591059,юридична особа
СЛУГА НАРОДУ,"Дніпропетровська область, Криворізький район, Шевченківське",79,2019-06-11,50,"Оренда будинків і приміщень та експлуатаційні витрати (прибирання, страхування орендованих будинків, охорона, сигналізація, ремонт, вивіз сміття, тощо)",Оренда нерухомості,364193,Центральний офіс,40422142,Україна,"Плата за суборенду приміщення згідно з рах. на оплату No67 від 31.05.2019, відповідно до договору суборенди Noб/н від 21.01.2019, у тому числі ПДВ 20%",2600800159741,current,18000.00,"ТОВ ""Кар-гіл""",41662682,юридична особа
СЛУГА НАРОДУ,"Київ, Куренівський провулок, 19/5",70,2019-06-10,6621,Банківські послуги,Інші витрати,364192,Центральний офіс,40422142,Україна,Оплата за проведення платежів по системі Клієнт-Банк зг. Договору No59741/1 вiд 01.02.2018 за період з 10.06.2019 по 10.06.2019. Без ПДВ.,2600800159741,current,2.00,"ПАТ КБ ""Глобус""",35591059,юридична особа
СЛУГА НАРОДУ,,70,2019-06-10,49,Банківські послуги,Інші витрати,364133,Центральний офіс,40422142,Україна,"Оплата за послуги згідно умов договору No1 від 07.06.2019, рахунок-фактура No3 від 07.06.2019, без ПДВ",2600800159741,current,20000.00,Костюк К Г,,фізична особа
СЛУГА НАРОДУ,"Київ, Куренівський провулок, 19/5",70,2019-06-07,6669,Банківські послуги,Інші витрати,364191,Центральний офіс,40422142,Україна,Оплата за проведення платежів по системі Клієнт-Банк зг. Договору No59741/1 вiд 01.02.2018 за період з 07.06.2019 по 07.06.2019. Без ПДВ.,2600800159741,current,10.00,"ПАТ КБ ""Глобус""",35591059,юридична особа
СЛУГА НАРОДУ,"Київ, вулиця Клеманська, 3",79,2019-06-07,48,"Оренда будинків і приміщень та експлуатаційні витрати (прибирання, страхування орендованих будинків, охорона, сигналізація, ремонт, вивіз сміття, тощо)",Оренда нерухомості,364190,Центральний офіс,40422142,Україна,"Оплата за послугу згідно умов договору No08-215/19 від 06.06.2019, у тому числі ПДВ 20%",2600800159741,current,7500.00,"ТОВ ""Боріс""",21522748,юридична особа
СЛУГА НАРОДУ,"Київ, вулиця Костянтинівська, 10",69,2019-06-07,46,Організація заходів та інші організаційні послуги,Організація заходів та інші організаційні послуги,364189,Центральний офіс,40422142,Україна,"Оплата за послуги з технічного забезпечення Заходу (договір від 05.06.2019), згідно з рахунком No88 від 06.06.2019 року, у тому числі ПДВ 20%",2600800159741,current,78480.00,"ТОВ ""ТІК-ТАК""",23539724,юридична особа
СЛУГА НАРОДУ,"Київ, вулиця Старосільська, 1",79,2019-06-07,47,"Оренда будинків і приміщень та експлуатаційні витрати (прибирання, страхування орендованих будинків, охорона, сигналізація, ремонт, вивіз сміття, тощо)",Оренда нерухомості,364188,Центральний офіс,40422142,Україна,"Оплата за послугу забезп. світловим обладнанням (договір No060619 від 06.06.2019), згідно з рахунком No65 від 06.06.2019 року, у тому числі ПДВ 20%",2600800159741,current,178156.00,"ТОВ ""МЕДІАЛАЙТ""",38013409,юридична особа
СЛУГА НАРОДУ,"Київ, Ярославський провулок, 7/9, 3",69,2019-06-07,45,Організація заходів та інші організаційні послуги,Організація заходів та інші організаційні послуги,364187,Центральний офіс,40422142,Україна,"Оплата за послуги з забезпечення Заходу (договір No19/06/06 від 06.06.19), згідно з рахунком від",2600800159741,current,660000.00,"ТОВ ""Брідж-Біз""",42599198,юридична особа
СЛУГА НАРОДУ,,70,2019-06-07,44,Банківські послуги,Інші витрати,364132,Центральний офіс,40422142,Україна,"Оплата за виконання робіт відповідно до договіру No4 від 05.06.2019, рахунк No4 від 05.06.2019 року, без",2600800159741,current,212765.00,Грицуляк Марина Андріївна,,фізична особа
СЛУГА НАРОДУ,"Київ, Куренівський провулок, 19/5",70,2019-06-06,6732,Банківські послуги,Інші витрати,364186,Центральний офіс,40422142,Україна,Оплата за проведення платежів по системі Клієнт-Банк зг. Договору No59741/1 вiд 01.02.2018 за період з 06.06.2019 по 06.06.2019. Без ПДВ.,2600800159741,current,8.00,"ПАТ КБ ""Глобус""",35591059,юридична особа
СЛУГА НАРОДУ,"Київ, Куренівський провулок, 19/5",70,2019-06-06,6733,Банківські послуги,Інші витрати,364185,Центральний офіс,40422142,Україна,Оплата за проведення платежів по системі Клієнт-Банк зг. Договору No59741/1 вiд 01.02.2018 за період з 06.06.2019 по 06.06.2019. Без ПДВ.,2600800159741,current,126.00,"ПАТ КБ ""Глобус""",35591059,юридична особа
СЛУГА НАРОДУ,"Київ, вулиця Кирилівська, 23",69,2019-06-06,43,Організація заходів та інші організаційні послуги,Організація заходів та інші організаційні послуги,364184,Центральний офіс,40422142,Україна,"Оплата за послугу відеозйомки та запису заходу 08.06.2019 (договір No170519 від 17.05.2019), згідно з",2600800159741,current,126000.00,"Іноземне підприємство ""1+1 продакшн""",23389360,юридична особа
СЛУГА НАРОДУ,"Київ, вулиця Милославська, 16",69,2019-06-06,41,Організація заходів та інші організаційні послуги,Організація заходів та інші організаційні послуги,364183,Центральний офіс,40422142,Україна,"Оплата за послуги з технічного забезпечення відеообладнанням Заходу 08.06.19 (дог. No05/06/19), згідно з рахунком No19 від 05.06.2019 року, у тому числі ПДВ 20%",2600800159741,current,194184.00,"ТОВ ""СКРІН ПРОДАКШН""",39449941,юридична особа
СЛУГА НАРОДУ,,69,2019-06-06,40,Організація заходів та інші організаційні послуги,Організація заходів та інші організаційні послуги,364131,Центральний офіс,40422142,Україна,"Оплата за послуги під час проведення заходу 08.06.2019 (договір No01/06-19 від 04.06.2019), згідно з",2600800159741,current,43200.00,Погорілий Г С,,фізична особа
СЛУГА НАРОДУ,,78,2019-06-06,42,Оренда обладнання та технічних засобів,Оренда обладнання та технічних засобів,364130,Центральний офіс,40422142,Україна,Оплата за оренду обладнання під час проведення заходу 08.06.2019 (договір No0506/19-01 від 05.06.2019),2600800159741,current,97350.00,Сокол О В,,фізична особа
СЛУГА НАРОДУ,,69,2019-06-06,39,Організація заходів та інші організаційні послуги,Організація заходів та інші організаційні послуги,364129,Центральний офіс,40422142,Україна,"Оплата за оренду тентової конструкції під час проведення заходу 08.06.2019, згідно з рахунком No3 від",2600800159741,current,345168.00,Дишкантюк С З,,фізична особа
СЛУГА НАРОДУ,"Київ, Куренівський провулок, 19/5",70,2019-06-05,5802,Банківські послуги,Інші витрати,364182,Центральний офіс,40422142,Україна,Оплата за проведення платежів по системі Клієнт-Банк зг. Договору No59741/1 вiд 01.02.2018 за період з 05.06.2019 по 05.06.2019. Без ПДВ.,2600800159741,current,8.00,"ПАТ КБ ""Глобус""",35591059,юридична особа
СЛУГА НАРОДУ,"Київ, Куренівський провулок, 19/5",70,2019-06-05,5803,Банківські послуги,Інші витрати,364181,Центральний офіс,40422142,Україна,Оплата за проведення платежів по системі Клієнт-Банк зг. Договору No59741/1 вiд 01.02.2018 за період з 05.06.2019 по 05.06.2019. Без ПДВ.,2600800159741,current,260.00,"ПАТ КБ ""Глобус""",35591059,юридична особа
СЛУГА НАРОДУ,"Харківська область, Харків, вулиця Алчевських, 31",79,2019-06-05,34,"Оренда будинків і приміщень та експлуатаційні витрати (прибирання, страхування орендованих будинків, охорона, сигналізація, ремонт, вивіз сміття, тощо)",Оренда нерухомості,364180,Центральний офіс,40422142,Україна,Відшкодування додаткових витрат при оренді приміщ згідно з рах. No122 від 31.05.19 відповідно до дог. надан. послуг та відш. вит. No35в-19 від 20.02.2019 без ПДВ,2600800159741,current,8656.69,"ТОВ ""Віза консалт груп""",33481026,юридична особа
СЛУГА НАРОДУ,"Харківська область, Харків, вулиця Алчевських, 31",79,2019-06-05,33,"Оренда будинків і приміщень та експлуатаційні витрати (прибирання, страхування орендованих будинків, охорона, сигналізація, ремонт, вивіз сміття, тощо)",Оренда нерухомості,364179,Центральний офіс,40422142,Україна,Плата за оренду приміщення в червні 2019 року згідно з рахунком No76 від 31.05.2019 відповідно до договору найму (оренди) No26 від 20.02.2019. Без ПДВ,2600800159741,current,39500.00,"ТОВ ""Астарта лайн""",42382966,юридична особа
СЛУГА НАРОДУ,"Київ, вулиця Вавилових, 15",78,2019-06-05,35,Оренда обладнання та технічних засобів,Оренда обладнання та технічних засобів,364178,Центральний офіс,40422142,Україна,"Оплата за оренду обладнання на Заході 20.05.2019, згідно з рахунком No246 від 21.05.2019 року, у тому числі ПДВ 20%",2600800159741,current,60100.80,"ТОВ ""Інженер-сервіс""",31201484,юридична особа
СЛУГА НАРОДУ,"Київ, вулиця Тимірязєвська, 1",69,2019-06-05,37,Організація заходів та інші організаційні послуги,Організація заходів та інші організаційні послуги,364177,Центральний офіс,40422142,Україна,"Оплата за рекреаційний захід на території бот. саду 08.06.2019, згідно з рахунком No91 від 05.06.2019 року, у тому числі ПДВ 20%",2600800159741,current,80000.00,Національний ботанічний сад імені М. М. Гришка НАН України,05417228,юридична особа
СЛУГА НАРОДУ,"Київ, Музейний провулок, 2Б, 7",69,2019-06-05,38,Організація заходів та інші організаційні послуги,Організація заходів та інші організаційні послуги,364176,Центральний офіс,40422142,Україна,"Оплата за організацію заходу 08.06.2019, згідно з рахунком No23 від 05.06.2019 року, у тому числі ПДВ 20%",2600800159741,current,180000.00,"ТОВ ""Вайт кейтерінг""",42146601,юридична особа
СЛУГА НАРОДУ,,69,2019-06-05,23,Організація заходів та інші організаційні послуги,Організація заходів та інші організаційні послуги,364128,Центральний офіс,40422142,Україна,"Оплата за виконання робіт на Заході 20.05.2019 (договір No3 від 17.05.2019), згідно з рахунком No3 від 17.05.2019 року, без ПДВ",2600800159741,current,371649.00,Грицуляк Марина Андріївна,,фізична особа
СЛУГА НАРОДУ,"Київ, Куренівський провулок, 19/5",70,2019-06-03,24098,Банківські послуги,Інші витрати,364175,Центральний офіс,40422142,Україна,Оплата за проведення платежів по системі Клієнт-Банк зг. Договору No59741/1 вiд 01.02.2018 за період з 03.06.2019 по 03.06.2019. Без ПДВ.,2600800159741,current,4.00,"ПАТ КБ ""Глобус""",35591059,юридична особа
СЛУГА НАРОДУ,"Київ, вулиця Костянтинівська, 10",69,2019-06-03,31,Організація заходів та інші організаційні послуги,Організація заходів та інші організаційні послуги,364174,Центральний офіс,40422142,Україна,"Оплата за послуги з технічного забезпечення Заходу 19-20.05.19, згідно з рахунком No82 від 21.05.2019 року, у тому числі ПДВ 20%",2600800159741,current,56856.00,"ТОВ ""ТІК-ТАК""",23539724,юридична особа
СЛУГА НАРОДУ,"Київ, вулиця Кирилівська, 23",69,2019-06-03,32,Організація заходів та інші організаційні послуги,Організація заходів та інші організаційні послуги,364173,Центральний офіс,40422142,Україна,"Оплата за послуги з технічного забезпечення Заходу 20.05.2019, згідно з рахунком No481 від 17.05.2019 року, у тому числі ПДВ 20%",2600800159741,current,302100.00,"Іноземне підприємство ""1+1 продакшн""",23389360,юридична особа
СЛУГА НАРОДУ,"Київ, Куренівський провулок, 19/5",70,2019-05-31,68615,Банківські послуги,Інші витрати,364172,Центральний офіс,40422142,Україна,Оплата за проведення платежів по системі Клієнт-Банк зг. Договору No59741/1 вiд 01.02.2018 за період з,2600800159741,current,2.00,"ПАТ КБ ""Глобус""",35591059,юридична особа
СЛУГА НАРОДУ,"Київ, Куренівський провулок, 19/5",70,2019-05-31,73003,Банківські послуги,Інші витрати,364171,Центральний офіс,40422142,Україна,Комісія за пакетне обслуговування зг. договору No59741/1 від 01.02.2018 за період з 01.05.2019 по 31.05.2019р.,2600800159741,current,190.00,"ПАТ КБ ""Глобус""",35591059,юридична особа
СЛУГА НАРОДУ,"Київ, вулиця Милославська, 16",69,2019-05-31,28,Організація заходів та інші організаційні послуги,Організація заходів та інші організаційні послуги,364170,Центральний офіс,40422142,Україна,"Оплата за послуги з технічного забезпечення відеоекранами Заходу 20.05.19, згідно з рахунком No17 від 17.05.2019 року, у тому числі ПДВ 20%",2600800159741,current,62400.00,"ТОВ ""СКРІН ПРОДАКШН""",39449941,юридична особа
СЛУГА НАРОДУ,"Київ, Куренівський провулок, 19/5",70,2019-05-30,6018,Банківські послуги,Інші витрати,364169,Центральний офіс,40422142,Україна,Оплата за проведення платежів по системі Клієнт-Банк зг. Договору No59741/1 вiд 01.02.2018 за період з,2600800159741,current,6.00,"ПАТ КБ ""Глобус""",35591059,юридична особа
СЛУГА НАРОДУ,"Київ, вулиця Рейтарська, 8/5А",69,2019-05-30,27,Організація заходів та інші організаційні послуги,Організація заходів та інші організаційні послуги,364168,Центральний офіс,40422142,Україна,Плата за організацію та проведення прес-конференції 27.05.2019 згідно з рахунком NoСФ-0000244 від,2600800159741,current,6000.00,"ТОВ ""Інформаційне агенство ""Інтерфакс-Україна""",23732734,юридична особа
СЛУГА НАРОДУ,"Київ, Ярославський провулок, 7/9, 3",69,2019-05-30,30,Організація заходів та інші організаційні послуги,Організація заходів та інші організаційні послуги,364167,Центральний офіс,40422142,Україна,"Оплата за послуги з забезпечення Заходу 20.05.2019, згідно з рахунком від 17.05.2019 No38, в тому числі ПДВ 20%.",2600800159741,current,478462.00,"ТОВ ""Брідж-Біз""",42599198,юридична особа
СЛУГА НАРОДУ,"Київ, вулиця Миколи Закревського, 22",69,2019-05-30,29,Організація заходів та інші організаційні послуги,Організація заходів та інші організаційні послуги,364166,Центральний офіс,40422142,Україна,"Оплата за технічне забезпечення Заходу 20.05.2019, згідно з рахунком від 16.05.2019 No134, в тому числі ПДВ 20%",2600800159741,current,801252.00,"ТОВ ""Операторські технології.ЮА""",38997361,юридична особа
СЛУГА НАРОДУ,"Київ, Куренівський провулок, 19/5",70,2019-05-16,5002,Банківські послуги,Інші витрати,364165,Центральний офіс,40422142,Україна,Оплата за проведення платежів по системі Клієнт-Банк зг. Договору No59741/1 вiд 01.02.2018 за період з 16.05.2019 по 16.05.2019. Без ПДВ.,2600800159741,current,4.00,"ПАТ КБ ""Глобус""",35591059,юридична особа
СЛУГА НАРОДУ,"Київ, Куренівський провулок, 19/5",70,2019-05-16,5807,Банківські послуги,Інші витрати,364164,Центральний офіс,40422142,Україна,Сплата за проведення платежів по системі Клієнт-Банк зг. Договору No59741/1 вiд 01.02.2018 за період з 26.04.2019 по 26.04.2019. Без ПДВ.,2600800159741,current,4.00,"ПАТ КБ ""Глобус""",35591059,юридична особа
СЛУГА НАРОДУ,"Київ, Куренівський провулок, 19/5",70,2019-05-16,5808,Банківські послуги,Інші витрати,364163,Центральний офіс,40422142,Україна,Сплата за проведення платежів по системі Клієнт-Банк зг. Договору No59741/1 вiд 01.02.2018 за період з 15.05.2019 по 15.05.2019. Без ПДВ.,2600800159741,current,4.00,"ПАТ КБ ""Глобус""",35591059,юридична особа
СЛУГА НАРОДУ,"Харківська область, Харків, вулиця Алчевських, 31",79,2019-05-16,25,"Оренда будинків і приміщень та експлуатаційні витрати (прибирання, страхування орендованих будинків, охорона, сигналізація, ремонт, вивіз сміття, тощо)",Оренда нерухомості,364162,Центральний офіс,40422142,Україна,Відшкодування додаткових витрат при оренді приміщ згідно з рах. No93 від 30.04.2019 відповідно до дог. надан. послуг та відш. вит. No35в-19 від 20.02.2019 без ПДВ,2600800159741,current,9343.47,"ТОВ ""Віза консалт груп""",33481026,юридична особа
СЛУГА НАРОДУ,"Харківська область, Харків, вулиця Алчевських, 31",79,2019-05-16,24,"Оренда будинків і приміщень та експлуатаційні витрати (прибирання, страхування орендованих будинків, охорона, сигналізація, ремонт, вивіз сміття, тощо)",Оренда нерухомості,364161,Центральний офіс,40422142,Україна,Плата за оренду приміщення в квітні 2019 року згідно з рахунком No71 від 31.04.2019 відповідно до договору найму (оренди) No26 від 20.02.2019. Без ПДВ,2600800159741,current,39500.00,"ТОВ ""Астарта лайн""",42382966,юридична особа
СЛУГА НАРОДУ,"Дніпропетровська область, Криворізький район, Шевченківське",79,2019-05-15,26,"Оренда будинків і приміщень та експлуатаційні витрати (прибирання, страхування орендованих будинків, охорона, сигналізація, ремонт, вивіз сміття, тощо)",Оренда нерухомості,364160,Центральний офіс,40422142,Україна,"Плата за суборенду приміщення згідно з рах. на оплату No13 від 26.04.2019, відповідно до договору суборенди Noб/н від 21.01.2019, у тому числі ПДВ 20%",2600800159741,current,18000.00,"ТОВ ""Кар-гіл""",41662682,юридична особа
СЛУГА НАРОДУ,"Київ, вулиця Кирилівська, 23",69,2019-05-15,23,Організація заходів та інші організаційні послуги,Організація заходів та інші організаційні послуги,364159,Центральний офіс,40422142,Україна,Плата за тех. послуги щодо здійснення відеозйомки та запису Заходу 19.04.19 згідно з рахунком No385 від,2600800159741,current,91260.00,"ТОВ ""ТРК ""Студія 1+1""",23729809,юридична особа
СЛУГА НАРОДУ,"Київ, вулиця Деревообробна, 5",69,2019-04-26,22,Організація заходів та інші організаційні послуги,Організація заходів та інші організаційні послуги,364158,Центральний офіс,40422142,Україна,Плата за надання послуги з технічного забезпечення знімального процесу Заходу 19.04.19 згідно договору,2600800159741,current,53341.44,"ТОВ ""Старваген""",37412621,юридична особа
СЛУГА НАРОДУ,"Київ, вулиця Кирилівська, 23",69,2019-04-26,21,Організація заходів та інші організаційні послуги,Організація заходів та інші організаційні послуги,364157,Центральний офіс,40422142,Україна,Плата за тех. послуги щодо здійснення відеозйомки та запису Заходу 19.04.19 згідно договору No180419 від,2600800159741,current,91260.00,"ТОВ ""Масив А.І.""",36346731,юридична особа
СЛУГА НАРОДУ,"Київ, Куренівський провулок, 19/5",70,2019-04-19,5014,Банківські послуги,Інші витрати,364156,Центральний офіс,40422142,Україна,Оплата за проведення платежів по системі Клієнт-Банк зг. Договору No59741/1 вiд 01.02.2018 за період з,2600800159741,current,6.00,"ПАТ КБ ""Глобус""",35591059,юридична особа
СЛУГА НАРОДУ,"Київ, вулиця Милославська, 12, 52",69,2019-04-19,21,Організація заходів та інші організаційні послуги,Організація заходів та інші організаційні послуги,364155,Центральний офіс,40422142,Україна,"Плата за бейджи для захода ""Дебати"" згідно з рахунком No168 від 19.04.2019 ПДВ немає",2600800159741,current,14280.00,"ТОВ ""Масив А.І.""",36346731,юридична особа
СЛУГА НАРОДУ,"Київ, Паркова дорога, 16",69,2019-04-19,25,Організація заходів та інші організаційні послуги,Організація заходів та інші організаційні послуги,364154,Центральний офіс,40422142,Україна,"Плата за суборенду нежит-го приміщення для проведення Заходу в КВЦ Парковой, згідно з рахунком на оплату No83 від 19.04.2019, у тому числі ПДВ 20%",2600800159741,current,203961.20,"ТОВ ""Акамант""",37956495,юридична особа
СЛУГА НАРОДУ,,45,2019-04-19,20,Перерахування коштів на виборчі рахунки кандидата від партії,Перерахування коштів до виборчих фондів,364153,Центральний офіс,40422142,Україна,"+;1;Кошти політичної партії ""СЛУГА НАРОДУ"" внесені до виборчого фонду кандидата на пост Президента України Зеленського В.О., без ПДВ",2600800159741,current,2800000.00,Виборчий фонд кандидата на пост Президента Зеленського,,юридична особа
СЛУГА НАРОДУ,,45,2019-04-19,24,Перерахування коштів на виборчі рахунки кандидата від партії,Перерахування коштів до виборчих фондів,364152,Центральний офіс,40422142,Україна,"+;1;Кошти політичної партії ""СЛУГА НАРОДУ"" внесені до виборчого фонду кандидата на пост Президента України Зеленського В.О., без ПДВ",2600800159741,current,948334.31,Виборчий фонд кандидата на пост Президента Зеленського,,юридична особа
СЛУГА НАРОДУ,,69,2019-04-19,23,Організація заходів та інші організаційні послуги,Організація заходів та інші організаційні послуги,364127,Центральний офіс,40422142,Україна,"Плата за декоративне оформлення заходу ""Дебати"" згідно з рахунком No2 від 18.04.2019 ПДВ немає",2600800159741,current,392690.00,Грицуляк Марина Андріївна,,фізична особа
СЛУГА НАРОДУ,"Київ, Куренівський провулок, 19/5",70,2019-04-18,4433,Банківські послуги,Інші витрати,364151,Центральний офіс,40422142,Україна,Оплата за проведення платежів по системі Клієнт-Банк зг. Договору No59741/1 вiд 01.02.2018 за період з 18.04.2019 по 18.04.2019. Без ПДВ.,2600800159741,current,2.00,"ПАТ КБ ""Глобус""",35591059,юридична особа
СЛУГА НАРОДУ,"Київ, Музейний провулок, 2Б, 7",69,2019-04-18,18,Організація заходів та інші організаційні послуги,Організація заходів та інші організаційні послуги,364150,Центральний офіс,40422142,Україна,"Плата за організацію заходу 21/04-22/04 2019р, згідно з рахунком на оплату No11 від 17.04.2019, у тому числі ПДВ 20%",2600800159741,current,100000.00,"ТОВ ""Вайт кейтерінг""",42146601,юридична особа
СЛУГА НАРОДУ,,45,2019-04-17,17,Перерахування коштів на виборчі рахунки кандидата від партії,Перерахування коштів до виборчих фондів,364149,Центральний офіс,40422142,Україна,"+;1;Кошти політичної партії ""СЛУГА НАРОДУ"" внесені до виборчого фонду кандидата на пост Президента України Зеленського В.О., без ПДВ",2600800159741,current,1730693.86,Виборчий фонд кандидата на пост Президента Зеленського,,юридична особа
СЛУГА НАРОДУ,"Київ, Куренівський провулок, 19/5",70,2019-04-16,912,Банківські послуги,Інші витрати,364148,Центральний офіс,40422142,Україна,Сплата за проведення платежів по системі Клієнт-Банк зг. Договору No59741/1 вiд 01.02.2018 за період з 12.04.2019 по 12.04.2019. Без ПДВ.,2600800159741,current,600.00,"ПАТ КБ ""Глобус""",35591059,юридична особа
СЛУГА НАРОДУ,,45,2019-04-16,16,Перерахування коштів на виборчі рахунки кандидата від партії,Перерахування коштів до виборчих фондів,364147,Центральний офіс,40422142,Україна,"+;1;Кошти політичної партії ""СЛУГА НАРОДУ"" внесені до виборчого фонду кандидата на пост Президента України Зеленського В.О., без ПДВ",2600800159741,current,88749.56,Виборчий фонд кандидата на пост Президента Зеленського,,юридична особа
СЛУГА НАРОДУ,"Київ, бульвар Лесі Українки, 5А",79,2019-04-12,14,"Оренда будинків і приміщень та експлуатаційні витрати (прибирання, страхування орендованих будинків, охорона, сигналізація, ремонт, вивіз сміття, тощо)",Оренда нерухомості,364146,Центральний офіс,40422142,Україна,"Оплата за суборенду приміщення, згідно з рахунками No3 від 12.03.2019 та No8 від 08.04.2019 (договір 1/01-19 від 21.01.2019 р), у тому числі ПДВ 20%",2600800159741,current,647518.00,"ТОВ ""Кіностолиця""",37633561,юридична особа
СЛУГА НАРОДУ,,45,2019-04-12,15,Перерахування коштів на виборчі рахунки кандидата від партії,Перерахування коштів до виборчих фондів,364145,Центральний офіс,40422142,Україна,"+;1;Кошти політичної партії ""СЛУГА НАРОДУ"" внесені до виборчого фонду кандидата на пост Президента України Зеленського В.О., без ПДВ",2600800159741,current,6597440.00,Виборчий фонд кандидата на пост Президента Зеленського,,юридична особа
СЛУГА НАРОДУ,"Київ, Куренівський провулок, 19/5",70,2019-04-09,2724,Банківські послуги,Інші витрати,364144,Центральний офіс,40422142,Україна,Сплата за проведення платежів по системі Клієнт-Банк зг. Договору No59741/1 вiд 01.02.2018 за період з 08.04.2019 по 08.04.2019. Без ПДВ.,2600800159741,current,2.00,"ПАТ КБ ""Глобус""",35591059,юридична особа
СЛУГА НАРОДУ,,45,2019-04-09,13,Перерахування коштів на виборчі рахунки кандидата від партії,Перерахування коштів до виборчих фондів,364143,Центральний офіс,40422142,Україна,"+;1;Кошти політичної партії ""СЛУГА НАРОДУ"" внесені до виборчого фонду кандидата на пост Президента України Зеленського В.О., без ПДВ",2600800159741,current,38000000.00,Виборчий фонд кандидата на пост Президента Зеленського,,юридична особа
СЛУГА НАРОДУ,"Київ, Куренівський провулок, 19/5",70,2019-04-08,3285,Банківські послуги,Інші витрати,364142,Центральний офіс,40422142,Україна,Сплата за проведення платежів по системі Клієнт-Банк зг. Договору No59741/1 вiд 01.02.2018 за період з 03.04.2019 по 03.04.2019. Без ПДВ.,2600800159741,current,10.00,"ПАТ КБ ""Глобус""",35591059,юридична особа
СЛУГА НАРОДУ,"Київ, бульвар Лесі Українки, 5А",79,2019-04-08,12,"Оренда будинків і приміщень та експлуатаційні витрати (прибирання, страхування орендованих будинків, охорона, сигналізація, ремонт, вивіз сміття, тощо)",Оренда нерухомості,364141,Центральний офіс,40422142,Україна,"Оплата за суборенду приміщення у квітні 2019 р, згідно з рахунком No8 від 08.04.2019 (договір 1/01-19 від 21.01.2019 р), у тому числі ПДВ 20%",2600800159741,current,141382.50,"ТОВ ""Кіностолиця""",37633561,юридична особа
СЛУГА НАРОДУ,"Київ, вулиця Січових Стрільців, 77",82,2019-04-03,10,"Гонорари, в тому числі за надані консультаційні послуги","Гонорари, в тому числі за надані консультаційні послуги",364140,Центральний офіс,40422142,Україна,Сплата за послуги ведення бухобліку згідно з рахунком NoСФ-0000059 від 01.04.2019 р. за квітень 2019 року. Без ПДВ,2600800159741,current,10000.00,"Адвокатське бюро ""Качура лоєрс""",41172969,юридична особа
СЛУГА НАРОДУ,"Харківська область, Харків, вулиця Алчевських, 31",79,2019-04-03,9,"Оренда будинків і приміщень та експлуатаційні витрати (прибирання, страхування орендованих будинків, охорона, сигналізація, ремонт, вивіз сміття, тощо)",Оренда нерухомості,364139,Центральний офіс,40422142,Україна,Відшкодування додаткових витрат при оренді приміщ згідно з рах. No71 від 31.03.2019 відповідно до дог. надан. послуг та відш. вит. No35в-19 від 20.02.2019 без ПДВ,2600800159741,current,11736.64,"ТОВ ""Віза консалт груп""",33481026,юридична особа
СЛУГА НАРОДУ,"Дніпропетровська область, Криворізький район, Шевченківське",79,2019-04-03,11,"Оренда будинків і приміщень та експлуатаційні витрати (прибирання, страхування орендованих будинків, охорона, сигналізація, ремонт, вивіз сміття, тощо)",Оренда нерухомості,364138,Центральний офіс,40422142,Україна,"Плата за суборенду приміщення за квітень згідно з рах. на оплату No13 від 19.03.2019, відповідно до",2600800159741,current,18000.00,"ТОВ ""Кар-гіл""",41662682,юридична особа
СЛУГА НАРОДУ,"Харківська область, Харків, вулиця Алчевських, 31",79,2019-04-03,8,"Оренда будинків і приміщень та експлуатаційні витрати (прибирання, страхування орендованих будинків, охорона, сигналізація, ремонт, вивіз сміття, тощо)",Оренда нерухомості,364137,Центральний офіс,40422142,Україна,Плата за оренду приміщення в квітні 2019 року згідно з рахунком No56 від 31.03.2019 відповідно до договору найму (оренди) No26 від 20.02.2019. Без ПДВ,2600800159741,current,39500.00,"ТОВ ""Астарта лайн""",42382966,юридична особа
СЛУГА НАРОДУ,"Київ, Паркова дорога, 16",79,2019-04-03,7,"Оренда будинків і приміщень та експлуатаційні витрати (прибирання, страхування орендованих будинків, охорона, сигналізація, ремонт, вивіз сміття, тощо)",Оренда нерухомості,364136,Центральний офіс,40422142,Україна,"Плата за додаткові послуги при оренді приміщення, згідно з рахунком на оплату No52 від 01.04.2019, у тому числі ПДВ 20%",2600800159741,current,52325.50,"ТОВ ""Акамант""",37956495,юридична особа
СЛУГА НАРОДУ,"Київ, Куренівський провулок, 19/5",70,2019-04-02,708,Банківські послуги,Інші витрати,364135,Центральний офіс,40422142,Україна,Сплата за проведення платежів по системі Клієнт-Банк зг. Договору No59741/1 вiд 01.02.2018 за період з 29.03.2019 по 29.03.2019. Без ПДВ.,2600800159741,current,2.00,"ПАТ КБ ""Глобус""",35591059,юридична особа
СЛУГА НАРОДУ,"Київ, Куренівський провулок, 19/5",70,2019-04-02,707,Банківські послуги,Інші витрати,364134,Центральний офіс,40422142,Україна,Сплата за проведення платежів по системі Клієнт-Банк зг. Договору No59741/1 вiд 01.02.2018 за період з 25.03.2019 по 25.03.2019. Без ПДВ..,2600800159741,current,207.15,"ПАТ КБ ""Глобус""",35591059,юридична особа
СЛУГА НАРОДУ,"Київ, Музейний провулок, 2Б, 7",69,2019-03-29,6,Організація заходів та інші організаційні послуги,Організація заходів та інші організаційні послуги,364126,Центральний офіс,40422142,Україна,"Плата за організацію заходу 31/03-01/04, згідно з рахунком на оплату №9 від 29.03.2019, у тому числі ПДВ 20%",2600800159741,current,100000.00,"ТОВ ""Вайт кейтерінг""",42146601,юридична особа
СЛУГА НАРОДУ,"Київ, Куренівський провулок, 19/5",70,2019-03-25,4455,Банківські послуги,Інші витрати,364125,Центральний офіс,40422142,Україна,Сплата за проведення платежів по системі Клієнт-Банк зг. Договору №59741/1 вiд 01.02.2018 за період з 21.03.2019 по 21.03.2019. Без ПДВ.,2600800159741,current,50.00,"ПАТ КБ ""Глобус""",35591059,юридична особа
СЛУГА НАРОДУ,"Київ, Паркова дорога, 16",69,2019-03-25,5,Організація заходів та інші організаційні послуги,Організація заходів та інші організаційні послуги,364124,Центральний офіс,40422142,Україна,"Плата за суборенду нежит-го приміщення для проведення Заходу в КВЦ Парковой, згідно з рахунком на оплату №38 від 25.03.2019, у тому числі ПДВ 20%",2600800159741,current,207148.00,"ТОВ ""Акамант""",37956495,юридична особа
СЛУГА НАРОДУ,Київ,66,2019-03-21,12,Повернення внесків приватних внесків (донорам),Повернення приватних внесків (донорам),364096,Центральний офіс,40422142,Україна,"Повернення внеска на підпримку політичної партії ""СЛУГА НАРОДУ"" Ткаченко Павла Володимировича м.Київ",2600800159741,current,20000.00,Ткаченко Павло Володимирович,,фізична особа
СЛУГА НАРОДУ,,45,2019-03-18,4,Перерахування коштів на виборчі рахунки кандидата від партії,Перерахування коштів до виборчих фондів,364123,Центральний офіс,40422142,Україна,"Кошти політичної партії ""СЛУГА НАРОДУ"" внесені до виборчого фонду кандидата в президенти України Зеленського В.О., без ПДВ",2600800159741,current,10000000.00,Виборчий фонд кандидата на пост Президента Зеленського,,юридична особа
СЛУГА НАРОДУ,"Київ, Куренівський провулок, 19/5",70,2019-03-15,3137,Банківські послуги,Інші витрати,364122,Центральний офіс,40422142,Україна,Сплата за проведення платежів по системі Клієнт-Банк зг. Договору №59741/1 вiд 01.02.2018 за період з 11.03.2019 по 11.03.2019. Без ПДВ.,2600800159741,current,4.00,"ПАТ КБ ""Глобус""",35591059,юридична особа
СЛУГА НАРОДУ,"Київ, Куренівський провулок, 19/5",70,2019-03-15,5546,Банківські послуги,Інші витрати,364121,Центральний офіс,40422142,Україна,Оплата за проведення платежів по системі Клієнт-Банк зг. Договору №59741/1 вiд 01.02.2018 за період з 15.03.2019 по 15.03.2019. Без ПДВ.,2600800159741,current,4.00,"ПАТ КБ ""Глобус""",35591059,юридична особа
СЛУГА НАРОДУ,"Дніпропетровська область, Криворізький район, Шевченківське",79,2019-03-15,2,"Оренда будинків і приміщень та експлуатаційні витрати (прибирання, страхування орендованих будинків, охорона, сигналізація, ремонт, вивіз сміття, тощо)",Оренда нерухомості,364120,Центральний офіс,40422142,Україна,"Плата за суборенду приміщення згідно з рах. на оплату №7 від 28.02.2019, відповідно до договору суборенди №б/н від 21.01.2019, у тому числі ПДВ 20%",2600800159741,current,18000.00,"ТОВ ""Кар-гіл""",41662682,юридична особа
СЛУГА НАРОДУ,"Київ, бульвар Лесі Українки, 5А",79,2019-03-15,1,"Оренда будинків і приміщень та експлуатаційні витрати (прибирання, страхування орендованих будинків, охорона, сигналізація, ремонт, вивіз сміття, тощо)",Оренда нерухомості,364119,Центральний офіс,40422142,Україна,"Оплата за суборенду приміщення за березень 2019 р, згідно з рахунком №3 від 12.03.2019 (договір 1/01-19 від 21.01.2019 р), у тому числі ПДВ 20%",2600800159741,current,141382.50,"ТОВ ""Кіностолиця""",37633561,юридична особа
СЛУГА НАРОДУ,"Київ, Куренівський провулок, 19/5",70,2019-03-07,978,Банківські послуги,Інші витрати,364118,Центральний офіс,40422142,Україна,Сплата за проведення платежів по системі Клієнт-Банк зг. Договору №59741/1 вiд 01.02.2018 за період з 06.03.2019 по 06.03.2019. Без ПДВ.,2600800159741,current,50.00,"ПАТ КБ ""Глобус""",35591059,юридична особа
СЛУГА НАРОДУ,"Харківська область, Харків, вулиця Алчевських, 31",79,2019-03-07,3,"Оренда будинків і приміщень та експлуатаційні витрати (прибирання, страхування орендованих будинків, охорона, сигналізація, ремонт, вивіз сміття, тощо)",Оренда нерухомості,364117,Центральний офіс,40422142,Україна,Відшкодування додаткових витрат при оренді приміщ згідно з рах. №49 від 28.02.2019 відповідно до дог. надан. послуг та відш. вит. №35в-19 від 20.02.2019 без ПДВ,2600800159741,current,4028.18,"ТОВ ""Віза консалт груп""",33481026,юридична особа
СЛУГА НАРОДУ,"Харківська область, Харків, вулиця Алчевських, 31",79,2019-03-07,2,"Оренда будинків і приміщень та експлуатаційні витрати (прибирання, страхування орендованих будинків, охорона, сигналізація, ремонт, вивіз сміття, тощо)",Оренда нерухомості,364116,Центральний офіс,40422142,Україна,Плата за оренду приміщення в березні 2019 року згідно з рахунком №40 від 28.02.2019 відповідно до договору найму (оренди) №26 від 20.02.2019. Без ПДВ,2600800159741,current,39500.00,"ТОВ ""Астарта лайн""",42382966,юридична особа
СЛУГА НАРОДУ,"Київ, Куренівський провулок, 19/5",70,2019-03-06,5460,Банківські послуги,Інші витрати,364115,Центральний офіс,40422142,Україна,Сплата за пакетне обслуговування зг. договору №59741/1 вiд 01.02.2018 за період з 01.02.2019 по 28.02.2019. Без ПДВ.,2600800159741,current,190.00,"ПАТ КБ ""Глобус""",35591059,юридична особа
СЛУГА НАРОДУ,"Київ, вулиця Січових Стрільців, 77",82,2019-03-06,1,"Гонорари, в тому числі за надані консультаційні послуги","Гонорари, в тому числі за надані консультаційні послуги",364114,Центральний офіс,40422142,Україна,Сплата за послуги ведення бухобліку згідно з рахунком №СФ-0000035 від 01.03.2019 р. за березень 2019 року без ПДВ,2600800159741,current,10000.00,"Адвокатське бюро ""Качура лоєрс""",41172969,юридична особа
СЛУГА НАРОДУ,,45,2019-03-04,11,Перерахування коштів на виборчі рахунки кандидата від партії,Перерахування коштів до виборчих фондів,364113,Центральний офіс,40422142,Україна,"Кошти політичної партії ""СЛУГА НАРОДУ"" внесені до виборчого фонду кандидата в президенти України Зеленського В.О., без ПДВ",2600800159741,current,3200000.00,Виборчий фонд кандидата на пост Президента Зеленського,,юридична особа
СЛУГА НАРОДУ,"Київ, Куренівський провулок, 19/5",70,2019-02-28,7448,Банківські послуги,Інші витрати,364112,Центральний офіс,40422142,Україна,Сплата за проведення платежів по системі Клієнт-Банк зг. Договору №59741/1 вiд 01.02.2018 за період з 20.02.2019 по 20.02.2019. Без ПДВ.,2600800159741,current,6.00,"ПАТ КБ ""Глобус""",35591059,юридична особа
СЛУГА НАРОДУ,,45,2019-02-28,10,Перерахування коштів на виборчі рахунки кандидата від партії,Перерахування коштів до виборчих фондів,364111,Центральний офіс,40422142,Україна,"1;Кошти політичної партії ""СЛУГА НАРОДУ"" внесені до виборчого фонду кандидата в президенти України Зеленського В.О., без ПДВ",2600800159741,current,2500000.00,Виборчий фонд кандидата на пост Президента Зеленського,,юридична особа
СЛУГА НАРОДУ,"Київ, Куренівський провулок, 19/5",70,2019-02-27,4110,Банківські послуги,Інші витрати,364110,Центральний офіс,40422142,Україна,Оплата за проведення платежів по системі Клієнт-Банк зг. Договору №59741/1 вiд 01.02.2018 за період з 27.02.2019 по 27.02.2019. Без ПДВ.,2600800159741,current,2.00,"ПАТ КБ ""Глобус""",35591059,юридична особа
СЛУГА НАРОДУ,"Дніпропетровська область, Криворізький район, Шевченківське",79,2019-02-27,9,"Оренда будинків і приміщень та експлуатаційні витрати (прибирання, страхування орендованих будинків, охорона, сигналізація, ремонт, вивіз сміття, тощо)",Оренда нерухомості,364109,Центральний офіс,40422142,Україна,"Плата за суборенду приміщення згідно з рах. на оплату №3 від 31.01.2019, відповідно до договору суборенди №б/н від 21.01.2019",2600800159741,current,18000.00,"ТОВ ""Кар-гіл""",41662682,юридична особа
СЛУГА НАРОДУ,"Харківська область, Харків, вулиця Алчевських, 31",79,2019-02-20,6,"Оренда будинків і приміщень та експлуатаційні витрати (прибирання, страхування орендованих будинків, охорона, сигналізація, ремонт, вивіз сміття, тощо)",Оренда нерухомості,364108,Центральний офіс,40422142,Україна,Плата за оренду приміщення в лютому 2019 року згідно з рахунком №24 від 20.02.2019 відповідно до договору найму (оренди) №26 від 20.02.2019 без ПДВ,2600800159741,current,12696.43,"ТОВ ""Астарта лайн""",42382966,юридична особа
СЛУГА НАРОДУ,"Харківська область, Харків, вулиця Алчевських, 31",79,2019-02-20,8,"Оренда будинків і приміщень та експлуатаційні витрати (прибирання, страхування орендованих будинків, охорона, сигналізація, ремонт, вивіз сміття, тощо)",Оренда нерухомості,364107,Центральний офіс,40422142,Україна,Гарантійний платіж з відшкодування комун. послуг згідно з рах. №27 від 20.02.2019 відповідно до дог. надан. послуг та відш. вит. №35в-19 від 20.02.2019 без ПДВ,2600800159741,current,15000.00,"ТОВ ""Віза консалт груп""",33481026,юридична особа
СЛУГА НАРОДУ,"Харківська область, Харків, вулиця Алчевських, 31",79,2019-02-20,7,"Оренда будинків і приміщень та експлуатаційні витрати (прибирання, страхування орендованих будинків, охорона, сигналізація, ремонт, вивіз сміття, тощо)",Оренда нерухомості,364106,Центральний офіс,40422142,Україна,Гарантійний платіж за оренду приміщення згідно з рахунком №23 від 20.02.2019 відповідно до договору найму (оренди) №26 від 20.02.2019 без ПДВ,2600800159741,current,39500.00,"ТОВ ""Астарта лайн""",42382966,юридична особа
СЛУГА НАРОДУ,"Київ, бульвар Лесі Українки, 5А",79,2019-02-14,5,"Оренда будинків і приміщень та експлуатаційні витрати (прибирання, страхування орендованих будинків, охорона, сигналізація, ремонт, вивіз сміття, тощо)",Оренда нерухомості,364105,Центральний офіс,40422142,Україна,"Сплата за оренду приміщення за сячень, лютий 2019 р, згідно договору 1/01-19 від 21.01.2019 р у т.ч. ПДВ - 31925,08 грн",2600800159741,current,191550.48,"ТОВ ""Кіностолиця""",37633561,юридична особа
СЛУГА НАРОДУ,"Київ, Куренівський провулок, 19/5",70,2019-02-14,4373,Банківські послуги,Інші витрати,364104,Центральний офіс,40422142,Україна,Оплата за проведення платежів по системі Клієнт-Банк зг. Договору №59741/1 вiд 01.02.2018 за період з 14.02.2019 по 14.02.2019. Без ПДВ.,2600800159741,current,2.00,"ПАТ КБ ""Глобус""",35591059,юридична особа
СЛУГА НАРОДУ,"Київ, Куренівський провулок, 19/5",70,2019-02-11,5146,Банківські послуги,Інші витрати,364103,Центральний офіс,40422142,Україна,Оплата за проведення платежів по системі Клієнт-Банк зг. Договору №59741/1 вiд 01.02.2018 за період з 11.02.2019 по 11.02.2019. Без ПДВ.,2600800159741,current,2.00,"ПАТ КБ ""Глобус""",35591059,юридична особа
СЛУГА НАРОДУ,"Київ, вулиця Січових Стрільців, 77",82,2019-02-11,4,"Гонорари, в тому числі за надані консультаційні послуги","Гонорари, в тому числі за надані консультаційні послуги",364102,Центральний офіс,40422142,Україна,Сплата за послуги ведення бухобліку згідно рахунку 31 від 05.02.2019 р. за січень та лютий 2019 року. ПДВ немає,2600800159741,current,20000.00,"Адвокатське бюро ""Качура лоєрс""",41172969,юридична особа
СЛУГА НАРОДУ,"Київ, Куренівський провулок, 19/5",70,2019-01-31,4685,Банківські послуги,Інші витрати,364101,Центральний офіс,40422142,Україна,"Сплата за обслуговування по системі ""Клієнт-Банк"" зг. Договору №59741/1 вiд 01.02.2018 за період з 01.01.2019 по 31.01.2019. Без ПДВ.",2600800159741,current,90.00,"ПАТ КБ ""Глобус""",35591059,юридична особа
СЛУГА НАРОДУ,,59,2019-01-22,3,Грошова застава,Грошова застава,364100,Центральний офіс,40422142,Україна,Грошова застава кандидата на пост Президента України Зеленського Володимира Олександровича,2600800159741,current,2500000.00,Центральна виборча комісія,21661450,юридична особа
СЛУГА НАРОДУ,"Київ, Куренівський провулок, 19/5",70,2019-01-22,4326,Банківські послуги,Інші витрати,364099,Центральний офіс,40422142,Україна,Сплата за проведення платежів по системі Клієнт-Банк зг. Договору №59741/1 вiд 01.02.2018 за період з 08.01.2019 по 08.01.2019. Без ПДВ.,2600800159741,current,2.00,"ПАТ КБ ""Глобус""",35591059,юридична особа
СЛУГА НАРОДУ,"Київ, Куренівський провулок, 19/5",70,2019-01-22,4042,Банківські послуги,Інші витрати,364098,Центральний офіс,40422142,Україна,Оплата за проведення платежів по системі Клієнт-Банк зг. Договору №59741/1 вiд 01.02.2018 за період з 20.11.2019 по 20.11.2019. Без ПДВ.,2600800159741,current,2.00,"ПАТ КБ ""Глобус""",35591059,юридична особа
СЛУГА НАРОДУ,"Київ, вулиця Січових Стрільців, 77",82,2019-01-08,2,"Гонорари, в тому числі за надані консультаційні послуги","Гонорари, в тому числі за надані консультаційні послуги",364097,Центральний офіс,40422142,Україна,"Cплата за послуги ведення бух.обліку за листопад, грудень 2018 р., згідно договору б/н від 03.09.2018. ПДВ немає.",2600800159741,current,20000.00,"Адвокатське бюро ""Качура лоєрс""",41172969,юридична особа
